{"text_format":"1","workbook":"xlsx","n_sheets":10,"sheets":["Calcs","NAC Voltage Drop","SLC1_and_SLC2","SLC3_and_SLC4","SLC5_and_SLC6","SLC7_and_SLC8","SLC9_and_SLC10","SLC11_and_SLC12","SLC13_and_SLC14","SLC15_and_SLC16"],"not_rendered":{"charts":0,"images":2,"macros":1,"external_links":0,"defined_names":3,"comments":1,"pivot_tables":0},"unopened":[],"bounds":{"document_bytes":16777216,"sheet_cells":100000,"rows_first":2000,"rows_last":500,"rows_between":2000,"halvings":0,"cell_chars":16384,"cell_head_chars":4096},"cells_cut":0,"cells_raw":0,"read":"whole","date_system":"1900"}

{"sheet":"Calcs","index":0,"n_rows":119,"n_cols":66,"rows_kept":119,"cut":false,"hidden":false,"merged":[[106,9,106,18],[106,19,106,21],[62,3,62,4],[62,6,62,8],[61,15,61,16],[61,18,61,20],[62,15,62,16],[62,18,62,20],[65,18,65,20],[66,15,66,16],[66,18,66,20],[65,3,65,4],[65,6,65,8],[66,3,66,4],[66,6,66,8],[65,15,65,16],[71,7,71,8],[71,1,71,6],[74,13,74,18],[76,13,76,18],[90,19,90,21],[82,13,82,18],[84,13,84,18],[82,19,82,21],[53,18,53,20],[54,15,54,16],[54,18,54,20],[57,18,57,20],[58,15,58,16],[58,18,58,20],[61,3,61,4],[61,6,61,8],[57,3,57,4],[57,6,57,8],[58,3,58,4],[58,6,58,8],[57,15,57,16],[53,3,53,4],[53,6,53,8],[49,3,49,4],[49,6,49,8],[50,3,50,4],[50,6,50,8],[49,15,49,16],[54,3,54,4],[54,6,54,8],[53,15,53,16],[46,3,46,4],[46,6,46,8],[45,15,45,16],[45,18,45,20],[46,15,46,16],[46,18,46,20],[49,18,49,20],[50,15,50,16],[50,18,50,20],[37,15,37,16],[42,15,42,16],[37,18,37,20],[38,15,38,16],[38,18,38,20],[41,15,41,16],[41,18,41,20],[42,18,42,20],[45,3,45,4],[45,6,45,8],[33,1,33,5],[33,7,33,8],[37,3,37,4],[38,3,38,4],[38,6,38,8],[37,6,37,8],[41,3,41,4],[41,6,41,8],[42,3,42,4],[42,6,42,8],[18,7,18,8],[20,7,20,8],[29,1,29,5],[29,7,29,8],[31,1,31,5],[31,7,31,8],[27,11,27,22],[27,1,27,5],[27,7,27,8],[18,11,18,17],[20,11,20,17],[23,1,23,5],[23,7,23,8],[25,1,25,5],[25,7,25,8],[18,4,18,5],[20,4,20,5],[7,1,7,4],[7,5,7,10],[10,19,10,20],[12,19,12,20],[14,4,14,5],[14,11,14,17],[10,9,10,10],[12,9,12,10],[16,11,16,17],[14,19,14,20],[14,7,14,8],[16,4,16,5],[16,7,16,8],[84,19,84,21],[74,1,74,6],[74,7,74,8],[76,1,76,6],[78,1,78,6],[76,7,76,8],[80,1,80,6],[78,7,78,8],[80,7,80,8],[76,9,76,12],[74,19,74,21],[76,19,76,21],[78,13,78,18],[78,19,78,21],[80,13,80,18],[80,19,80,21],[92,1,92,6],[92,7,92,8],[94,13,94,18],[94,19,94,21],[94,23,94,25],[92,13,92,18],[92,19,92,21],[72,19,72,21],[72,23,72,25],[74,23,74,25],[76,23,76,25],[78,23,78,25],[80,23,80,25],[82,23,82,25],[84,23,84,25],[86,23,86,25],[88,23,88,25],[90,23,90,25],[92,23,92,25],[86,13,86,18],[86,19,86,21],[88,13,88,18],[88,19,88,21],[90,13,90,18],[102,13,102,18],[102,19,102,21],[102,23,102,25],[104,19,104,21],[104,23,104,25],[98,13,98,18],[98,19,98,21],[98,23,98,25],[100,13,100,18],[100,19,100,21],[100,23,100,25],[104,9,104,18],[98,1,98,11]]}
[]
[null,null,null,null,null,null,null,null,null,null,null,null,null,null,null,null,null,null,null,null,null,null,null,null,null,null,null,"Revision 2.07 082125",null,null,null,null,null,null,null,null,null,null,null,null,null,null,null,null,null,null,null,null,null,null,null,null,"Times"]
[null,null,null,null,null,null,null,null,null,null,null,null,null,null,null,null,null,null,null,null,null,null,null,null,null,null,null,null,null,null,null,null,null,null,null,null,null,null,null,null,null,null,null,null,null,null,null,null,null,null,null,null,24,5,null,0," <- this is the checkbox status on form 2"]
[null,null,null,null,null,null,null,null,null,null,null,null,null,null,null,null,null,null,null,null,null,null,null,null,null,null,null,null,null,null,null,null,null,null,null,null,null,null,null,null,null,null,null,null,null,null,null,null,null,null,null,null,48,15]
[null,null,null,null,null,null,null,null,null,null,null,null,null,null,null,null,null,null,null,null,null,null,null,null,null,null,null,null,null,null,null,null,null,null,null,null,null,null,null,null,null,null,null,null,null,null,null,null,null,null,null,null,60,20]
[null,null,null,null,null,null,null,null,null,null,null,null,null,null,null,null,null,null,null,null,null,null,null,null,null,null,null,null,null,null,null,null,null,null,null,null,null,null,null,null,null,null,null,null,null,null,null,null,null,null,null,null,72,30]
[null,null,null,null,null,null,null,null,null,null,null,null,null,null,null,null,null,null,null,null,null,null,null,null,null,null,null,null,null,null,null,null,null,null,null,null,null,null,null,null,null,null,null,null,null,null,null,null,null,null,null,null,90]
[null,"Project Name: ",null,null,null,"Latitude"]
[]
[]
[null,null,null,null,null,null,null,null,null,24,null,null,null,null,null,null,null,null,null,"Yes",null,null,null,null,null,null,null,null,null,null,null,null,null,null,null,null,null,null,null,null,null,null,null,null,null,null,null,null,null,null,null,null,"Yes"]
[null,null,null,null,null,null,null,null,null,null,null,null,null,null,null,null,null,null,null,null,null,null,null,null,null,null,null,null,null,null,null,null,null,null,null,null,null,null,null,null,null,null,null,null,null,null,null,null,null,null,null,null,"No"]
[null,null,null,null,null,null,null,null,null,5,null,null,null,null,null,null,null,null,null,"Yes",null,null,null,null,null,null,null,null,null,null,null,null,null,null,null,null,null,null,null,null,null,null,null,null,null,null,null,null,null,null,null,null,null,null,null,"Board Counting",null,null,null,null,null,null,"For NAC V-drop calcs",null,null,"Class A/B (0=B 1=A)"]
[null,null,null,null,null,null,null,null,null,null,null,null,null,null,null,null,null,null,null,null,null,null,null,null,null,null,null,null,null,null,null,null,null,null,null,null,null,null,null,null,null,null,null,null,null,null,null,null,null,null,null,null,"Class B",4,null,{"$f":"IF(T11=\"YES\",1,0)","v":1},"MG?",null,null,null,null,null,{"$f":"H15","v":0},"NAC 1",null,{"$f":"IF(E15=BA14,0,1)","v":0}]
[null,null,"NAC 1",null,"Class B",null,null,0,null,"  amps",null,{"$f":"IF(H15>2.5,\"You have exceeded the 2.5 amp limit !\",\"\")","v":""},null,null,null,null,null,null,null,null,null,null,null,null,null,null,null,null,null,null,null,null,null,null,null,null,null,null,null,null,null,null,null,null,null,null,null,null,null,null,null,null,"Class A",8,null,{"$f":"H30","v":2},"SLC?",null,null,null,null,null,{"$f":"IF(E17=BA14,H17,0)","v":0},"NAC 2",null,{"$f":"IF(E17=BA14,0,1)","v":0}]
[null,null,null,null,null,null,null,null,null,null,null,null,null,null,null,null,null,null,null,null,null,null,null,null,null,null,null,null,null,null,null,null,null,null,null,null,null,null,null,null,null,null,null,null,null,null,null,null,null,null,null,null,null,null,null,{"$f":"H32","v":0},"Other?",null,null,null,null,null,{"$f":"H19","v":0},"NAC 3",null,{"$f":"IF(E19=BA14,0,1)","v":0}]
[null,null,"NAC 2",null,{"$f":"E15","v":"Class B"},null,null,0,null,"  amps",null,{"$f":"IF(H17>2.5,\"You have exceeded the 2.5 amp limit !\",\"\")","v":""},null,null,null,null,null,null,{"$f":"IF(AND(E15=BA15,H17>0),\"NAC 2 is Class A. Do not enter alarm current. Set NAC 2 as 0 amps.\",\"\")","v":""},null,null,null,null,null,null,null,null,null,null,null,null,null,null,null,null,null,null,null,null,null,null,null,null,null,null,null,null,null,null,null,null,null,null,1,0,{"$f":"BD14+BD15+BD16","v":3},"Total plug in boards",null,null,null,null,null,{"$f":"IF(E21=BA14,H21,0)","v":0},"NAC 4",null,{"$f":"IF(E21=BA14,0,1)","v":0}]
[null,null,null,null,null,null,null,null,null,null,null,null,null,null,null,null,null,null,null,null,null,null,null,null,null,null,null,null,null,null,null,null,null,null,null,null,null,null,null,null,null,null,null,null,null,null,null,null,null,null,null,null,null,2,1]
[null,null,"NAC 3",null,"Class B",null,null,0,null,"  amps",null,{"$f":"IF(H19>2.5,\"You have exceeded the 2.5 amp limit !\",\"\")","v":""},null,null,null,null,null,null,null,null,null,null,null,null,null,null,null,null,null,null,null,null,null,null,null,null,null,null,null,null,null,null,null,null,null,null,null,null,null,null,null,null,null,3,2,{"$f":"H28","v":4},"number of slots"]
[null,null,null,null,null,null,null,null,null,null,null,null,null,null,null,null,null,null,null,null,null,null,null,null,null,null,null,null,null,null,null,null,null,null,null,null,null,null,null,null,null,null,null,null,null,null,null,null,null,null,null,null,null,4,3]
[null,null,"NAC 4",null,{"$f":"E19","v":"Class B"},null,null,0,null,"  amps",null,{"$f":"IF(H21>2.5,\"You have exceeded the 2.5 amp limit !\",\"\")","v":""},null,null,null,null,null,null,{"$f":"IF(AND(E19=BA15,H21>0),\"NAC 4 is Class A. Do not enter alarm current. Set NAC 4 as 0 amps.\",\"\")","v":""},null,null,null,null,null,null,null,null,null,null,null,null,null,null,null,null,null,null,null,null,null,null,null,null,null,null,null,null,null,null,null,null,null,null,5,4]
[null,null,null,null,null,null,null,null,null,null,null,null,null,null,null,null,null,null,null,null,null,null,null,null,null,null,null,null,null,null,null,null,null,null,null,null,null,null,null,null,null,null,null,null,null,null,null,null,null,null,null,null,null,6,5]
[null,null,null,null,null,null,null,null,null,null,null,null,null,null,null,null,null,null,null,null,null,null,null,null,null,null,null,null,null,null,null,null,null,null,null,null,null,null,null,null,null,null,null,null,null,null,null,null,null,null,null,null,null,7,6]
[null,"Standby Aux Power (total) ",null,null,null,null,null,0,null,"  amps",null,{"$f":"IF(H24>1.79,\"NOTE - Do not exceed a maximum of 0.9 amps per Aux Power circuit!\",\"\")","v":""},null,null,null,null,null,null,null,null,null,null,null,null,null,null,null,null,null,null,null,null,null,null,null,null,null,null,null,null,null,null,null,null,null,null,null,null,null,null,null,null,null,8]
[null,null,null,null,null,null,null,null,null,null,null,null,null,null,null,null,null,null,null,null,null,null,null,null,null,null,null,null,null,null,null,null,null,null,null,null,null,null,null,null,null,null,null,null,null,null,null,null,null,null,null,null,10.25]
[null,"Alarm Aux Power (total) ",null,null,null,null,null,0,null,"  amps",null,{"$f":"IF(H26>1.79,\"NOTE - Do not exceed a maximum of 0.9 amps per Aux Power circuit!\",\"\")","v":""},null,null,null,null,null,null,null,null,null,null,null,null,null,null,null,null,null,null,null,null,null,null,null,null,null,null,null,null,null,null,null,null,null,null,null,null,null,null,null,null,5.25]
[]
[null,"Plug-In Slot Capacity ",null,null,null,null,null,4,null,null,null,{"$f":"IF(BD17>BD19,\"You have more Plug-In Boards than the Panel can Support!\",\"\")","v":""}]
[]
[null,"Number of SLC Boards ",null,null,null,null,null,2,null,null,null,null,null,null,null,null,null,null,null,null,null,null,null,null,null,null,null,null,null,null,null,null,null,null,null,null,null,null,null,null,null,null,null,null,null,null,null,null,null,null,null,null,{"$f":"H30","v":2},"<-  this is the number of SLC loop cards"]
[null," "]
[null,"16 I/O, Relay, or NAC Boards ",null,null,null,null,null,0]
[]
[null,"Total # of Plug-In Boards ",null,null,null,null,null,{"$f":"BD17","v":3},null,"  SLC, MG, 16-Channel I/O, Relay, NAC"]
[]
[null,null,null,null,null,null,null,null,null,null,null,null,null,null,null,null,null,null,null,null,null,null,null,null,null,null,null,null,null,null,null,null,null,null,null,null,null,null,null,null,null,null,null,null,null,null,null,null,null,null,null,null,"slc board logic stuff is here",null,null,null," Only "]
[null,null,null,null,null,null,null,null,null,null,null,null,null,null,null,null,null,null,null,null,null,null,null,null,null,null,null,null,null,null,null,null,null,null,null,null,null,null,null,null,null,null,null,null,null,null,null,null,null,null,null,null,{"$f":"IF(D43>0,1,0)","v":0},{"$f":"IF(P43>0,1,0)","v":0},{"$f":"BA37+BB37","v":0},"3&4",{"$f":"H30","v":2}]
[null,"SLC 1",null,"Standby",null,null,"Alarm",null,null,null,null,null,null,"SLC 2",null,"Standby",null,null,"Alarm",null,null,null,null,null,null,null,null,null,null,null,null,null,null,null,null,null,null,null,null,null,null,null,null,null,null,null,null,null,null,null,null,null,{"$f":"IF(D47>0,1,0)","v":0},{"$f":"IF(P47>0,1,0)","v":0},{"$f":"BA38+BB38","v":0},"5&6"," SLC Board is Installed.",null,null,{"$f":"CONCATENATE(BE36,BE37,BE38)","v":" Only 2 SLC Board is Installed."}]
[null,null,null,{"$f":"SLC1_and_SLC2!AE51","v":0},null,"mA",{"$f":"SLC1_and_SLC2!AF51","v":0},null,null,"mA",null,null,null,null,null,{"$f":"SLC1_and_SLC2!AH51","v":0},null,"mA",{"$f":"SLC1_and_SLC2!AI51","v":0},null,null,"mA",null,null,null,null,null,null,null,null,null,null,null,null,null,null,null,null,null,null,null,null,null,null,null,null,null,null,null,null,null,null,{"$f":"IF(D51>0,1,0)","v":0},{"$f":"IF(P51>0,1,0)","v":0},0,"7&8"]
[null,null,null,null,null,null,null,null,null,null,null,null,null,null,null,null,null,null,null,null,null,null,null,null,null,null,null,null,null,null,null,null,null,null,null,null,null,null,null,null,null,null,null,null,null,null,null,null,null,null,null,null,{"$f":"IF(D55>0,1,0)","v":0},{"$f":"IF(P55>0,1,0)","v":0},0,"9&10"]
[null,null,null,null,null,null,null,null,null,null,null,null,null,null,null,null,null,null,null,null,null,null,null,null,null,null,null,null,null,null,null,null,null,null,null,null,null,null,null,null,null,null,null,null,null,null,null,null,null,null,null,null,{"$f":"IF(D59>0,1,0)","v":0},{"$f":"IF(P59>0,1,0)","v":0},0,"11&12"," SLC Boards are installed.",null,null,{"$f":"CONCATENATE(BE36,BE37,BE41)","v":" Only 2 SLC Boards are installed."}]
[null,"SLC 3",null,"Standby",null,null,"Alarm",null,null,null,null,null,null,"SLC 4",null,"Standby",null,null,"Alarm",null,null,null,null,{"$f":"IF(AND(H30<2,BC37>0),BH38,\"\")","v":""},null,null,null,null,null,null,null,null,null,null,null,null,null,null,null,null,null,null,null,null,null,null,null,null,null,null,null,null,{"$f":"IF(D63>0,1,0)","v":0},{"$f":"IF(P63>0,1,0)","v":0},0,"13&14"]
[null,null,null,{"$f":"SLC3_and_SLC4!AE51","v":0},null,"mA",{"$f":"SLC3_and_SLC4!AF51","v":0},null,null,"mA",null,null,null,null,null,{"$f":"SLC3_and_SLC4!AH51","v":0},null,"mA",{"$f":"SLC3_and_SLC4!AI51","v":0},null,null,"mA",null,null,null,null,null,null,null,null,null,null,null,null,null,null,null,null,null,null,null,null,null,null,null,null,null,null,null,null,null,null,{"$f":"IF(D67>0,1,0)","v":0},{"$f":"IF(P67>0,1,0)","v":0},0,"15&16",null,null,null,{"$f":"IF(BE37<2,BH38,BH41)","v":" Only 2 SLC Boards are installed."}]
[]
[]
[null,"SLC 5",null,"Standby",null,null,"Alarm",null,null,null,null,null,null,"SLC 6",null,"Standby",null,null,"Alarm",null,null,null,null,{"$f":"IF(AND(H30<3,BC38>0),BH43,\"\")","v":""}]
[null,null,null,{"$f":"SLC5_and_SLC6!AE51","v":0},null,"mA",{"$f":"SLC5_and_SLC6!AF51","v":0},null,null,"mA",null,null,null,null,null,{"$f":"SLC5_and_SLC6!AH51","v":0},null,"mA",{"$f":"SLC5_and_SLC6!AI51","v":0},null,null,"mA"]
[]
[]
[null,"SLC 7",null,"Standby",null,null,"Alarm",null,null,null,null,null,null,"SLC 8",null,"Standby",null,null,"Alarm",null,null,null,null,{"$f":"IF(AND(H30<4,BC39>0),BH43,\"\")","v":""}]
[null,null,null,{"$f":"SLC7_and_SLC8!AE51","v":0},null,"mA",{"$f":"SLC7_and_SLC8!AF51","v":0},null,null,"mA",null,null,null,null,null,{"$f":"SLC7_and_SLC8!AH51","v":0},null,"mA",{"$f":"SLC7_and_SLC8!AI51","v":0},null,null,"mA"]
[]
[null,null,null,null,null,null,null,null,null,null,null,null,null,null,null,null,null,null,null,null,null,null,null,null,null,null,null,null,null,null,null,null,null,null,null,null,null,null,null,null,null,null,null,null,null,null,null,null,null,null,null,null,"SLC Board Count",null,null,null,"Panel in amps"]
[null,"SLC 9",null,"Standby",null,null,"Alarm",null,null,null,null,null,null,"SLC 10",null,"Standby",null,null,"Alarm",null,null,null,null,{"$f":"IF(AND(H30<5,BC40>0),BH43,\"\")","v":""},null,null,null,null,null,null,null,null,null,null,null,null,null,null,null,null,null,null,null,null,null,null,null,null,null,null,null,null,{"$f":"IF(D39>0,1,0)","v":0},1,null,null,"Standby","Alarm"]
[null,null,null,{"$f":"SLC9_and_SLC10!$AE$51","v":0},null,"mA",{"$f":"SLC9_and_SLC10!$AF$51","v":0},null,null,"mA",null,null,null,null,null,{"$f":"SLC9_and_SLC10!$AH$51","v":0},null,"mA",{"$f":"SLC9_and_SLC10!$AI$51","v":0},null,null,"mA",null,null,null,null,null,null,null,null,null,null,null,null,null,null,null,null,null,null,null,null,null,null,null,null,null,null,null,null,null,null,{"$f":"IF(P39>0,1,0)","v":0},2,null,null,0.36,0.65500000000000003]
[null,null,null,null,null,null,null,null,null,null,null,null,null,null,null,null,null,null,null,null,null,null,null,null,null,null,null,null,null,null,null,null,null,null,null,null,null,null,null,null,null,null,null,null,null,null,null,null,null,null,null,null,{"$f":"IF(D43>0,1,0)","v":0},3,null,null,{"$f":"IF(T11=\"Yes\",0.125,0)","v":0.125},{"$f":"BE56","v":0.125},"media gateway",null,0.114]
[null,null,null,null,null,null,null,null,null,null,null,null,null,null,null,null,null,null,null,null,null,null,null,null,null,null,null,null,null,null,null,null,null,null,null,null,null,null,null,null,null,null,null,null,null,null,null,null,null,null,null,null,{"$f":"IF(P43>0,1,0)","v":0},4,null,null,{"$f":"IF(T13=\"Yes\",0.085,0)","v":8.5000000000000006E-2},{"$f":"IF(T13=\"Yes\",0.085,0)","v":8.5000000000000006E-2},"network card",null,0.08]
[null,"SLC 11",null,"Standby",null,null,"Alarm",null,null,null,null,null,null,"SLC 12",null,"Standby",null,null,"Alarm",null,null,null,null,{"$f":"IF(AND(H30<6,BC41>0),BH43,\"\")","v":""},null,null,null,null,null,null,null,null,null,null,null,null,null,null,null,null,null,null,null,null,null,null,null,null,null,null,null,null,{"$f":"IF(D47>0,1,0)","v":0},5,null,null,{"$f":"BE55+BE56+BE57","v":0.56999999999999995},{"$f":"BF55+BF56+BF57","v":0.86499999999999999},"  <- totals"]
[null,null,null,{"$f":"SLC11_and_SLC12!AE51","v":0},null,"mA",{"$f":"SLC11_and_SLC12!AF51","v":0},null,null,"mA",null,null,null,null,null,{"$f":"SLC11_and_SLC12!AH51","v":0},null,"mA",{"$f":"SLC11_and_SLC12!AI51","v":0},null,null,"mA",null,null,null,null,null,null,null,null,null,null,null,null,null,null,null,null,null,null,null,null,null,null,null,null,null,null,null,null,null,null,{"$f":"IF(P47>0,1,0)","v":0},6]
[null,null,null,null,null,null,null,null,null,null,null,null,null,null,null,null,null,null,null,null,null,null,null,null,null,null,null,null,null,null,null,null,null,null,null,null,null,null,null,null,null,null,null,null,null,null,null,null,null,null,null,null,{"$f":"IF(D51>0,1,0)","v":0},7]
[null,null,null,null,null,null,null,null,null,null,null,null,null,null,null,null,null,null,null,null,null,null,null,null,null,null,null,null,null,null,null,null,null,null,null,null,null,null,null,null,null,null,null,null,null,null,null,null,null,null,null,null,{"$f":"IF(P51>0,1,0)","v":0},8,null,null,"other plug in boards",null,null,null,"SLC "]
[null,"SLC 13",null,"Standby",null,null,"Alarm",null,null,null,null,null,null,"SLC 14",null,"Standby",null,null,"Alarm",null,null,null,null,{"$f":"IF(AND(H30<7,BC42>0),BH43,\"\")","v":""},null,null,null,null,null,null,null,null,null,null,null,null,null,null,null,null,null,null,null,null,null,null,null,null,null,null,null,null,{"$f":"IF(D55>0,1,0)","v":0},9,null,null,{"$f":"H32","v":0},null,null,null,"standby",null,"alarm","loop#"]
[null,null,null,{"$f":"SLC13_and_SLC14!AE51","v":0},null,"mA",{"$f":"SLC13_and_SLC14!AF51","v":0},null,null,"mA",null,null,null,null,null,{"$f":"SLC13_and_SLC14!AH51","v":0},null,"mA",{"$f":"SLC13_and_SLC14!AI51","v":0},null,null,"mA",null,null,null,null,null,null,null,null,null,null,null,null,null,null,null,null,null,null,null,null,null,null,null,null,null,null,null,null,null,null,{"$f":"IF(P55>0,1,0)","v":0},10,null,null,"standby","alarm",null,null,{"$f":"D39","v":0},null,{"$f":"G39","v":0},1]
[null,null,null,null,null,null,null,null,null,null,null,null,null,null,null,null,null,null,null,null,null,null,null,null,null,null,null,null,null,null,null,null,null,null,null,null,null,null,null,null,null,null,null,null,null,null,null,null,null,null,null,null,{"$f":"IF(D59>0,1,0)","v":0},11,null,null,{"$f":"BE62*0.6","v":0},{"$f":"BE62*0.7","v":0},null,null,{"$f":"P39","v":0},null,{"$f":"S39","v":0},2]
[null,null,null,null,null,null,null,null,null,null,null,null,null,null,null,null,null,null,null,null,null,null,null,null,null,null,null,null,null,null,null,null,null,null,null,null,null,null,null,null,null,null,null,null,null,null,null,null,null,null,null,null,{"$f":"IF(P59>0,1,0)","v":0},12,null,null,null,null,null,null,{"$f":"D43","v":0},null,{"$f":"G43","v":0},3]
[null,"SLC 15",null,"Standby",null,null,"Alarm",null,null,null,null,null,null,"SLC 16",null,"Standby",null,null,"Alarm",null,null,null,null,{"$f":"IF(AND(H30<8,BC43>0),BH43,\"\")","v":""},null,null,null,null,null,null,null,null,null,null,null,null,null,null,null,null,null,null,null,null,null,null,null,null,null,null,null,null,{"$f":"IF(D63>0,1,0)","v":0},13,null,null,null,null,null,null,{"$f":"P43","v":0},null,{"$f":"S43","v":0},4]
[null,null,null,{"$f":"SLC15_and_SLC16!AE51","v":0},null,"mA",{"$f":"SLC15_and_SLC16!AF51","v":0},null,null,"mA",null,null,null,null,null,{"$f":"SLC15_and_SLC16!AH51","v":0},null,"mA",{"$f":"SLC15_and_SLC16!AI51","v":0},null,null,"mA",null,null,null,null,null,null,null,null,null,null,null,null,null,null,null,null,null,null,null,null,null,null,null,null,null,null,null,null,null,null,{"$f":"IF(P63>0,1,0)","v":0},14,null,null,"NACs",null,null,null,{"$f":"D47","v":0},null,{"$f":"G47","v":0},5]
[null,null,null,null,null,null,null,null,null,null,null,null,null,null,null,null,null,null,null,null,null,null,null,null,null,null,null,null,null,null,null,null,null,null,null,null,null,null,null,null,null,null,null,null,null,null,null,null,null,null,null,null,{"$f":"IF(D67>0,1,0)","v":0},15,null,null,null,null,null,null,{"$f":"P47","v":0},null,{"$f":"S47","v":0},6]
[null,null,null,null,null,null,null,null,null,null,null,null,null,null,null,null,null,null,null,null,null,null,null,null,null,null,null,null,null,null,null,null,null,null,null,null,null,null,null,null,null,null,null,null,null,null,null,null,null,null,null,null,{"$f":"IF(P67>0,1,0)","v":0},16,null,null,"Yes",null,null,null,{"$f":"D51","v":0},null,{"$f":"G51","v":0},7]
[null,null,null,null,null,null,null,null,null,null,null,null,null,null,null,null,null,null,null,null,null,null,null,null,null,null,null,null,null,null,null,null,null,null,null,null,null,null,null,null,null,null,null,null,null,null,null,null,null,null,null,null,null,null,null,null,"No",null,null,null,{"$f":"P51","v":0},null,{"$f":"S51","v":0},8]
[null,null,null,null,null,null,null,null,null,null,null,null,null,null,null,null,null,null,null,null,null,null,null,null,null,null,null,null,null,null,null,null,null,null,null,null,null,null,null,null,null,null,null,null,null,null,null,null,null,null,null,null,{"$f":"SUM(BA54:BA69)","v":0},{"$f":"H30*0.115","v":0.23},null,null,null,null,null,null,{"$f":"D55","v":0},null,{"$f":"G55","v":0},9]
[null,"Power Supply   ",null,null,null,null,null,5.25,null,null,null,null,null,null,null,null,null,null,null,null,null,null,null,null,null,null,null,null,null,null,null,null,null,null,null,null,null,null,null,null,null,null,null,null,null,null,null,null,null,null,null,null,null,null,null,null,null,null,null,null,{"$f":"P55","v":0},null,{"$f":"S55","v":0},10]
[null,null,null,null,null,null,null,null,null,null,null,null,null,null,null,null,null,null,null,"Standby",null,null,null,"Alarm",null,null,null,null,null,null,null,null,null,null,null,null,null,null,null,null,null,null,null,null,null,null,null,null,null,null,null,null,null,null,null,null,null,null,null,null,{"$f":"D59","v":0},null,{"$f":"G59","v":0},11]
[null,null,null,null,null,null,null,null,null,null,null,null,null,null,null,null,null,null,null,null,null,null,null,null,null,null,null,null,null,null,null,null,null,null,null,null,null,null,null,null,null,null,null,null,null,null,null,null,null,null,null,null,null,null,null,null,null,null,null,null,{"$f":"P59","v":0},null,{"$f":"S59","v":0},12]
[null,"Is NAC 1 used for Aux Power?  ",null,null,null,null,null,"No",null,null,null,null,null,"Control Panel  ",null,null,null,null,null,{"$f":"BE58","v":0.56999999999999995},null,null,null,{"$f":"BF58","v":0.86499999999999999},null,null,"  amps",null,null,null,null,null,null,null,null,null,null,null,null,null,null,null,null,null,null,null,null,null,null,null,null,null,null,null,null,null,"standby","alarm",null,null,{"$f":"D63","v":0},null,{"$f":"G63","v":0},13]
[null,null,null,null,null,null,null,null,null,null,null,null,null,null,null,null,null,null,null,null,null,null,null,null,null,null,null,null,null,null,null,null,null,null,null,null,null,null,null,null,null,null,null,null,null,null,null,null,null,null,null,null,null,null,null,null,{"$f":"IF(H75=\"Yes\",H15,0)","v":0},{"$f":"H15","v":0},null,null,{"$f":"P63","v":0},null,{"$f":"S63","v":0},14]
[null,"Is NAC 2 used for Aux Power?  ",null,null,null,null,null,"No",null,{"$f":"IF(E17=\"Class A\",\" NAC 2 is Class A.\",\"\")","v":""},null,null,null,"Aux Power  ",null,null,null,null,null,{"$f":"H24","v":0},null,null,null,{"$f":"H26","v":0},null,null,"  amps",null,null,null,null,null,null,null,null,null,null,null,null,null,null,null,null,null,null,null,null,null,null,null,null,null,null,null,null,null,{"$f":"IF(H77=\"Yes\",H17,0)","v":0},{"$f":"H17","v":0},null,null,{"$f":"D67","v":0},null,{"$f":"G67","v":0},15]
[null,null,null,null,null,null,null,null,null,null,null,null,null,null,null,null,null,null,null,null,null,null,null,null,null,null,null,null,null,null,null,null,null,null,null,null,null,null,null,null,null,null,null,null,null,null,null,null,null,null,null,null,null,null,null,null,{"$f":"IF(H79=\"Yes\",H19,0)","v":0},{"$f":"H19","v":0},null,null,{"$f":"P67","v":0},null,{"$f":"S67","v":0},16]
[null,"Is NAC 3 used for Aux Power?  ",null,null,null,null,null,"No",null,null,null,null,null,"SLC Boards ",null,null,null,null,null,{"$f":"BB71","v":0.23},null,null,null,{"$f":"BB71","v":0.23},null,null,"  amps",null,null,null,null,null,null,null,null,null,null,null,null,null,null,null,null,null,null,null,null,null,null,null,null,null,null,null,null,null,{"$f":"IF(H81=\"Yes\",H21,0)","v":0},{"$f":"H21","v":0}]
[null,null,null,null,null,null,null,null,null,null,null,null,null,null,null,null,null,null,null,null,null,null,null,null,null,null,null,null,null,null,null,null,null,null,null,null,null,null,null,null,null,null,null,null,null,null,null,null,null,null,null,null,"PSU max output"]
[null,"Is NAC 4 used for Aux Power?  ",null,null,null,null,null,"No",null,{"$f":"IF(E21=\"Class A\",\" NAC 4 is Class A.\",\"\")","v":""},null,null,null,"Other Plug-In Boards  ",null,null,null,null,null,{"$f":"BE64","v":0},null,null,null,{"$f":"BF64","v":0},null,null,"  amps",null,null,null,null,null,null,null,null,null,null,null,null,null,null,null,null,null,null,null,null,null,null,"5.25A",null,null,{"$f":"IF(AND(H72=BA26,T99>4),\"You have exceeded the power supply maximum output!\",\"\")","v":""},null,null,null,null,null,null,null,{"$f":"SUM(BI63:BI78)*2.75","v":0},null,{"$f":"SUM(BK63:BK78)*1.75","v":0},"Total in ma"]
[]
[null,null,null,null,null,null,null,null,null,null,null,null,null,"4-Channel NAC Boards  ",null,null,null,null,null,0,null,null,null,0,null,null,"  amps",null,null,null,null,null,null,null,null,null,null,null,null,null,null,null,null,null,null,null,null,null,null,"10.25A",null,null,{"$f":"IF(AND(H72=BA25,T99>8),\"You have exceeded the power supply maximum output!\",\"\")","v":""},null,null,null,"PSU",null,null,null,{"$f":"BI81/1000","v":0},null,{"$f":"BK81/1000","v":0}," adjust to amps"]
[]
[null,null,null,null,null,null,null,null,null,null,null,null,null,"NAC 1  ",null,null,null,null,null,{"$f":"BE76","v":0},null,null,null,{"$f":"BF76","v":0},null,null,"  amps",null,null,null,null,null,null,null,null,null,null,null,null,null,null,null,null,null,null,null,null,null,null,null,"5.25A",null,{"$f":"IF(AND(H72=BA26,T105>60),1,0)","v":0},null,null,null,null,null,null,null,{"$f":"ROUNDUP(BI83,4)","v":0},null,{"$f":"ROUNDUP(BK83,4)","v":0},"FINAL TOTAL FOR ALL SLC HERE"]
[]
[null,null,null,null,null,null,null,null,null,null,null,null,null,"NAC 2  ",null,null,null,null,null,{"$f":"BE77","v":0},null,null,null,{"$f":"BF77","v":0},null,null,"  amps",null,null,null,null,null,null,null,null,null,null,null,null,null,null,null,null,null,null,null,null,null,null,null,"10.25A",null,{"$f":"IF(AND(H72=BA25,T105>100),1,0)","v":0}]
[]
[null,null,null,null,null,null,null,null,null,null,null,null,null,"NAC 3  ",null,null,null,null,null,{"$f":"BE78","v":0},null,null,null,{"$f":"BF78","v":0},null,null,"  amps",null,null,null,null,null,null,null,null,null,null,null,null,null,null,null,null,null,null,null,null,null,null,null,null,null,{"$f":"BA85+BA87","v":0},null,null,null,1.2]
[null,null,null,null,null,null,null,null,null,null,null,null,null,null,null,null,null,null,null,null,null,null,null,null,null,null,null,null,null,null,null,null,null,null,null,null,null,null,null,null,null,null,null,null,null,null,null,null,null,null,null,null,null,null,null,null,1.25]
[null,null,null,null,null,null,null,null,null,null,null,null,null,"NAC 4  ",null,null,null,null,null,{"$f":"BE79","v":0},null,null,null,{"$f":"BF79","v":0},null,null,"  amps"]
[]
[null,"Battery Correction Factor  ",null,null,null,null,null,1.25,null,null,null,null,null,"SLC Device Current (total)  ",null,null,null,null,null,{"$f":"ROUNDUP(BI83,4)","v":0},null,null,null,{"$f":"ROUNDUP(BK83,4)","v":0},null,null,"  amps",null,null,null,null,null,null,null,null,null,null,null,null,null,null,null,null,null,null,null,null,null,null,null,null,null,null,null,null,null,"alarm time calc"]
[null,null,null,null,null,null,null,null,null,null,null,null,null,null,null,null,null,null,null,null,null,null,null,null,null,null,null,null,null,null,null,null,null,null,null,null,null,null,null,null,null,null,null,null,null,null,null,null,null,null,null,null,null,null,null,null,{"$f":"J13/60","v":8.3333333333333329E-2}]
[]
[]
[]
[]
[null,{"$f":"IF(H72=BA26,BA81,BA83)","v":""},null,null,null,null,null,null,null,null,null,null,null,"Total Load  ",null,null,null,null,null,{"$f":"SUM(T75,T77,T79,T81,T83,T85,T87,T89,T91,T93,T95)","v":0.79999999999999993},null,null,null,{"$f":"SUM(X75,X77,X79,X81,X83,X85,X87,X89,X91,X93,X95)","v":1.095},null,null,"  amps"]
[]
[null,null,null,null,null,null,null,null,null,null,null,null,null,"Standby and Alarm Time  ",null,null,null,null,null,{"$f":"J11","v":24},null,null,null,{"$f":"BE94","v":8.3333333333333329E-2},null,null,null,null,null,null,null,null,null,null,null,null,null,null,null,null,null,null,null,null,null,null,null,null,null,null,null,null,null,null,null,null,{"$f":"IF(H93=BE89,\"20% \",\" 25% \")","v":" 25% "}]
[]
[null,null,null,null,null,null,null,null,null,null,null,null,null,"Sub Total  ",null,null,null,null,null,{"$f":"ROUNDUP(T99*T101,1)","v":19.2},null,null,null,{"$f":"ROUNDUP(X99*X101,1)","v":0.1},null,null,"   Ah",null,null,null,null,null,null,null,null,null,null,null,null,null,null,null,null,null,null,null,null,null,null,null,null,null,null,null,null,null,null,"Minimum Battery Size with "]
[]
[null,null,null,null,null,null,null,null,null,{"$f":"BF107","v":"Minimum Battery Size with  25% Correction Factor  "},null,null,null,null,null,null,null,null,null,{"$f":"ROUNDUP(BF109*H93,2)","v":24.130000000000003},null,null,null,null,null,null,null,null,null,null,null,null,null,null,null,null,null,null,null,null,null,null,null,null,null,null,null,null,null,null,null,null,null,null,null,null,null,"Correction Factor  "]
[]
[null,null,null,null,null,null,null,null,null,{"$f":"BF117","v":"Maximum Battery Size for the 5.25 Amp Power Supply - "},null,null,null,null,null,null,null,null,null,{"$f":"BF119","v":"60"},null,null,"   Ah",null,null,null,null,null,null,null,null,null,null,null,null,null,null,null,null,null,null,null,null,null,null,null,null,null,null,null,null,null,null,null,null,null,null,{"$f":"CONCATENATE(BF103,BE101,BF105)","v":"Minimum Battery Size with  25% Correction Factor  "}]
[]
[null,null,null,null,null,null,null,null,null,null,null,null,null,null,null,null,null,null,null,null,null,null,null,null,null,null,null,null,null,null,null,null,null,null,null,null,null,null,null,null,null,null,null,null,null,null,null,null,null,null,null,null,null,null,null,null,null,{"$f":"T103+X103","v":19.3}," <- this is total Ah before correction factor"]
[]
[]
[null,null,null,null,null,null,null,null,null,null,null,null,null,null,null,null,null,null,null,null,null,null,null,null,null,null,null,null,null,null,null,null,null,null,null,null,null,null,null,null,null,null,null,null,null,null,null,null,null,null,null,null,null,null,null,null,{"$f":"H72","v":5.25}]
[null,null,null,null,null,null,null,null,null,null,null,null,null,null,null,null,null,null,null,null,null,null,null,null,null,null,null,null,null,null,null,null,null,null,null,null,null,null,null,null,null,null,null,null,null,null,null,null,null,null,null,null,null,null,null,null,null,"Maximum Battery Size for the "]
[]
[null,null,null,null,null,null,null,null,null,null,null,null,null,null,null,null,null,null,null,null,null,null,null,null,null,null,null,null,null,null,null,null,null,null,null,null,null,null,null,null,null,null,null,null,null,null,null,null,null,null,null,null,null,null,null,null,null," Amp Power Supply - "]
[]
[null,null,null,null,null,null,null,null,null,null,null,null,null,null,null,null,null,null,null,null,null,null,null,null,null,null,null,null,null,null,null,null,null,null,null,null,null,null,null,null,null,null,null,null,null,null,null,null,null,null,null,null,null,null,null,null,null,{"$f":"CONCATENATE(BF113,BE112,BF115)","v":"Maximum Battery Size for the 5.25 Amp Power Supply - "}]
[]
[null,null,null,null,null,null,null,null,null,null,null,null,null,null,null,null,null,null,null,null,null,null,null,null,null,null,null,null,null,null,null,null,null,null,null,null,null,null,null,null,null,null,null,null,null,null,null,null,null,null,null,null,null,null,null,null,null,{"$f":"IF(H72=5.25,\"60\",\"100\")","v":"60"}]

{"sheet":"NAC Voltage Drop","index":1,"n_rows":84,"n_cols":49,"rows_kept":84,"cut":false,"hidden":false,"merged":[[52,1,52,3],[52,4,52,9],[54,1,54,3],[54,4,54,9],[57,3,57,15],[46,1,46,3],[46,4,46,9],[48,1,48,3],[48,4,48,9],[50,1,50,3],[50,4,50,9],[39,1,39,3],[39,4,39,9],[27,3,27,15],[44,1,44,3],[44,4,44,9],[33,1,33,3],[33,4,33,9],[35,1,35,3],[35,4,35,9],[37,1,37,3],[37,4,37,9],[29,1,29,3],[29,4,29,9],[31,1,31,3],[31,4,31,9],[3,1,3,3],[3,4,3,9],[1,1,1,12],[14,4,14,9],[14,1,14,3],[22,1,22,3],[22,4,22,9],[24,1,24,3],[24,4,24,9],[16,1,16,3],[16,4,16,9],[18,1,18,3],[18,4,18,9],[20,1,20,3],[20,4,20,9],[59,1,59,3],[59,4,59,9],[61,1,61,3],[61,4,61,9],[63,1,63,3],[63,4,63,9],[65,1,65,3],[65,4,65,9],[67,1,67,3],[67,4,67,9],[69,1,69,3],[69,4,69,9]]}
[]
[null,"Voltage Drop Calculations for Notification Appliance Circuits"]
[null,null,null,null,null,null,null,null,null,null,null,null,null,null,null,null,null,null,null,null,null,null,null,null,null,null,null,null,null,null,null,"k/ft","km"]
[null,"Project Name  ",null,null,{"$f":"Calcs!F8","v":"Latitude"},null,null,null,null,null,null,null,null,null,null,null,null,null,null,null,null,null,null,null,null,null,null,null,null,null,"#12 Solid, Coated",2.0099999999999998,6.57]
[null,null,null,null,null,null,null,null,null,null,null,null,null,null,null,null,null,null,null,null,null,null,null,null,null,null,null,null,null,null,"#12 Stranded, Coated",2.0499999999999998,6.73]
[null,"This sheet will calculate the end of line voltage on the Notification Appliance Circuits.  ",null,null,null,null,null,null,null,null,null,null,null,null,null,null,null,null,null,null,null,null,null,null,null,null,null,null,null,null,"#14 Solid, Coated",3.19,10.4]
[null,"You must enter the total NAC load on the main Battery Calculator page. The total load is calculated at the end of the circuit.",null,null,null,null,null,null,null,null,null,null,null,null,null,null,null,null,null,null,null,null,null,null,null,null,null,null,null,null,"#14 Stranded, Coated",3.26,10.7]
[null,"The resistance for AWG wire is from the NEC for uncoated copper wire at 75°C (Chapter 9, Table 8).",null,null,null,null,null,null,null,null,null,null,null,null,null,null,null,null,null,null,null,null,null,null,null,null,null,null,null,null,"#16 Solid, Coated",5.08,16.7,null," Enter 1-Way Wire Length in "]
[null,null,null,null,null,null,null,null,null,null,null,null,null,null,null,null,null,null,null,null,null,null,null,null,null,null,null,null,"mtrs or ft",null,"#16 Stranded, Coated",5.29,17.3,null,{"$f":"IF(AC10=TRUE, \"Meters\",\"Feet\")","v":"Feet"}]
[null,null,"Meters? ",null,null,null,null,null,null,null,null,null,null,null,null,null,null,null,null,null,null,null,null,null,null,null,null,null,false,null,"#18 Solid, Coated",8.08,26.5,null,{"$f":"CONCATENATE(AI8,AI9)","v":" Enter 1-Way Wire Length in Feet"}]
[null,null,null,null,null,null,null,null,null,null,null,null,null,null,null,null,null,null,null,null,null,null,null,null,null,null,null,null,null,null,"#18 Stranded, Coated",8.4499999999999993,27.7]
[null,null,null,null,null,null,null,null,null,null,null,null,null,null,null,null,null,null,null,null,null,null,null,null,null,null,null,null,{"$f":"IF(AC10=TRUE,\"Ohms per km\",\"Ohms per 1k Ft\")","v":"Ohms per 1k Ft"},null,"#12 Solid",1.93,6.34]
[null,"NAC 1",null,null,null,null,null,null,null,null,null,null,null,null,null,null,null,null,null,null,null,null,null,null,null,null,null,null,null,null,"#12 Stranded",1.98,6.5]
[null,null,null,null,null,null,null,null,null,null,null,null,null,null,null,null,null,null,null,null,null,null,null,null,null,null,null,null,24,null,"#14 Solid",3.07,10.1]
[null,{"$f":"Calcs!BK14","v":0},null,null," NAC 1 Load (from Calcs Sheet)",null,null,null,null,null,null,null,null,null,null,null,null,null,null,null,null,null,null,null,null,null,null,null,22,null,"#14 Stranded",3.14,10.3]
[null,null,null,null,null,null,null,null,null,null,null,null,null,null,null,null,null,null,null,null,null,null,null,null,null,null,null,null,20.399999999999999,null,"#16 Solid",4.8899999999999997,16]
[null,"#14 Solid",null,null," Select Wire Size and Type",null,null,null,null,null,null,null,null,null,null,null,null,null,null,null,null,null,null,null,null,null,null,null,null,null,"#16 Stranded",4.99,16.399999999999999]
[null,null,null,null,null,null,null,null,null,null,null,null,null,null,null,null,null,null,null,null,null,null,null,null,null,null,null,null,null,null,"#18 Solid",7.77,25.5]
[null,250,null,null,{"$f":"AI10","v":" Enter 1-Way Wire Length in Feet"},null,null,null,null,null,null,null,null,null,null,null,null,null,null,null,null,null,null,null,null,null,null,null,null,null,"#18 Stranded",7.95,26.1]
[null,null,null,null,null,null,null,null,null,null,null,null,null,null,null,null,null,null,null,null,null,null,null,null,null,null,null,null,null,null,"2.5 mm wire",5,5,null,null,null,"k/ft","km"]
[null,20.399999999999999,null,null," NAC Voltage at Panel",null,null,null,null,null," - Usually set as 20.4 VDC, which is 85% of 24 volts",null,null,null,null,null,null,null,null,null,null,null,null,null,null,null,null,null,null,null,"1.0 mm wire",7,7,null,"NAC1",{"$f":"B17","v":"#14 Solid"},{"$f":"IF(AJ21=AE12,AF12,0)","v":0},{"$f":"IF(AJ21=AE12,AG12,0)","v":0},"#12 Solid","AE12"]
[null,null,null,null,null,null,null,null,null,null,null,null,null,null,null,null,null,null,null,null,null,null,null,null,null,null,null,null,null,null,null,null,null,null,null,null,{"$f":"IF(AJ21=AE13,AF13,0)","v":0},{"$f":"IF(AJ21=AE13,AG13,0)","v":0},"#12 Stranded","AE13"]
[null,{"$f":"ROUNDUP(AK34,2)","v":1.54},null,null," Wire Resistance in Ohms",null,null,null,null,null,null,null,null,null,null,null,null,null,null,null,null,null,null,null,null,null,null,null,null,null,null,null,null,null,null,null,{"$f":"IF(AJ21=AE14,AF14,0)","v":3.07},{"$f":"IF(AJ21=AE14,AG14,0)","v":10.1},"#14 Solid","AE14"]
[null,null,null,null,null,null,null,null,null,null,null,null,null,null,null,null,null,null,null,null,null,null,null,null,null,null,null,null,null,null,null,null,null,null,null,null,{"$f":"IF(AJ21=AE15,AF15,0)","v":0},{"$f":"IF(AJ21=AE15,AG15,0)","v":0},"#14 Stranded","AE15"]
[null,{"$f":"ROUNDDOWN(AK37,2)","v":20.399999999999999},null,null," End of Line Voltage",null,null,null,null,null,null,null,null,null,null,null,null,null,null,null,null,null,null,null,null,null,null,null,null,null,null,null,null,null,null,null,{"$f":"IF(AJ21=AE16,AF16,0)","v":0},{"$f":"IF(AJ21=AE16,AG16,0)","v":0},"#16 Solid","AE16"]
[null,null,null,null,null,null,null,null,null,null,null,null,null,null,null,null,null,null,null,null,null,null,null,null,null,null,null,null,"NAC2 Class A",null,null,null,null,null,null,null,{"$f":"IF(AJ21=AE17,AF17,0)","v":0},{"$f":"IF(AJ21=AE17,AG17,0)","v":0},"#16 Stranded","AE17"]
[null,null,null,null,null,null,null,null,null,null,null,null,null,null,null,null,null,null,null,null,null,null,null,null,null,null,null,null,{"$f":"Calcs!BN15","v":0},null,null,null,null,null,null,null,{"$f":"IF(AJ21=AE18,AF18,0)","v":0},{"$f":"IF(AJ21=AE18,AG18,0)","v":0},"#18 Solid","AE18"]
[null,"NAC 2",null,{"$f":"IF(AC27=1,\" NAC 2 is Class A. Voltage drop is calculated on NAC 1.\",\"\")","v":""},null,null,null,null,null,null,null,null,null,null,null,null,null,null,null,null,null,null,null,null,null,null,null,null,null,null,null,null,null,null,null,null,{"$f":"IF(AJ21=AE19,AF19,0)","v":0},{"$f":"IF(AJ21=AE19,AG19,0)","v":0},"#18 Stranded","AE19"]
[null,null,null,null,null,null,null,null,null,null,null,null,null,null,null,null,null,null,null,null,null,null,null,null,null,null,null,null,"NAC4 Class A  ",null,null,null,null,null,null,null,{"$f":"IF(AJ21=AE20,AF20,0)","v":0},{"$f":"AK29","v":0},{"$f":"AE20","v":"2.5 mm wire"},"AE20"]
[null,{"$f":"IF(AC27=0,Calcs!H17,0)","v":0},null,null," NAC 2 Load (from Calcs Sheet)",null,null,null,null,null,null,null,null,null,null,null,null,null,null,null,null,null,null,null,null,null,null,null,{"$f":"Calcs!BN17","v":0},null,null,null,null,null,null,null,{"$f":"IF(AJ21=AE21,AF21,0)","v":0},{"$f":"AK30","v":0},{"$f":"AE21","v":"1.0 mm wire"},"AE21"]
[]
[null,"#14 Solid",null,null," Select Wire Size and Type",null,null,null,null,null,null,null,null,null,null,null,null,null,null,null,null,null,null,null,null,null,null,null,null,null,null,null,null,null,null,null,{"$f":"SUM(AK21:AK30)","v":3.07},{"$f":"SUM(AL21:AL30)","v":10.1},"Wire R"]
[null,null,null,null,null,null,null,null,null,null,null,null,null,null,null,null,null,null,null,null,null,null,null,null,null,null,null,null,null,null,null,null,null,null,null,"wire length","total wire R, kft or km"]
[null,250,null,null,{"$f":"AI10","v":" Enter 1-Way Wire Length in Feet"},null,null,null,null,null,null,null,null,null,null,null,null,null,null,null,null,null,null,null,null,null,null,null,null,null,null,null,null,null,null,{"$f":"B19*2","v":500},{"$f":"IF(AC10=FALSE,AJ34*AK32/1000,AJ34*AL32/1000)","v":1.5349999999999999}]
[]
[null,20.399999999999999,null,null," NAC Voltage at Panel",null,null,null,null,null," - Usually set as 20.4 VDC, which is 85% of 24 volts",null,null,null,null,null,null,null,null,null,null,null,null,null,null,null,null,null,null,null,null,null,null,null,null,"voltage drop",{"$f":"B15*AK34","v":0},null,"Vd=I*R"]
[null,null,null,null,null,null,null,null,null,null,null,null,null,null,null,null,null,null,null,null,null,null,null,null,null,null,null,null,null,null,null,null,null,null,null,"EOL voltage",{"$f":"B21-AK36","v":20.399999999999999}]
[null,{"$f":"ROUNDUP(AK56,2)","v":1.54},null,null," Wire Resistance in Ohms"]
[]
[null,{"$f":"ROUNDDOWN(AK59,2)","v":20.399999999999999},null,null," End of Line Voltage"]
[]
[null,null,null,null,null,null,null,null,null,null,null,null,null,null,null,null,null,null,null,null,null,null,null,null,null,null,null,null,null,null,null,null,null,null,null,null,"k/ft","km",null,null,null,null,null,null,null,"k/ft","km"]
[null,"NAC 3",null,null,null,null,null,null,null,null,null,null,null,null,null,null,null,null,null,null,null,null,null,null,null,null,null,null,null,null,null,null,null,null,"NAC2",{"$f":"B32","v":"#14 Solid"},{"$f":"IF(AJ43=AE12,AF12,0)","v":0},{"$f":"IF(AJ43=AE12,AG12,0)","v":0},"#12 Solid","AE12",null,null,null,"NAC3",{"$f":"B47","v":"#14 Solid"},{"$f":"IF(AS43=AE12,AF12,0)","v":0},{"$f":"IF(AS43=AE12,AG12,0)","v":0},"#12 Solid","AE12"]
[null,null,null,null,null,null,null,null,null,null,null,null,null,null,null,null,null,null,null,null,null,null,null,null,null,null,null,null,null,null,null,null,null,null,null,null,{"$f":"IF(AJ43=AE13,AF13,0)","v":0},{"$f":"IF(AJ43=AE13,AG13,0)","v":0},"#12 Stranded","AE13",null,null,null,null,null,{"$f":"IF(AS43=AE13,AF13,0)","v":0},{"$f":"IF(AS43=AE13,AG13,0)","v":0},"#12 Stranded","AE13"]
[null,{"$f":"IF(AC42=0,Calcs!H19,0)","v":0},null,null," NAC 3 Load (from Calcs Sheet)",null,null,null,null,null,null,null,null,null,null,null,null,null,null,null,null,null,null,null,null,null,null,null,null,null,null,null,null,null,null,null,{"$f":"IF(AJ43=AE14,AF14,0)","v":3.07},{"$f":"IF(AJ43=AE14,AG14,0)","v":10.1},"#14 Solid","AE14",null,null,null,null,null,{"$f":"IF(AS43=AE14,AF14,0)","v":3.07},{"$f":"IF(AS43=AE14,AG14,0)","v":10.1},"#14 Solid","AE14"]
[null,null,null,null,null,null,null,null,null,null,null,null,null,null,null,null,null,null,null,null,null,null,null,null,null,null,null,null,null,null,null,null,null,null,null,null,{"$f":"IF(AJ43=AE15,AF15,0)","v":0},{"$f":"IF(AJ43=AE15,AG15,0)","v":0},"#14 Stranded","AE15",null,null,null,null,null,{"$f":"IF(AS43=AE15,AF15,0)","v":0},{"$f":"IF(AS43=AE15,AG15,0)","v":0},"#14 Stranded","AE15"]
[null,"#14 Solid",null,null," Select Wire Size and Type",null,null,null,null,null,null,null,null,null,null,null,null,null,null,null,null,null,null,null,null,null,null,null,null,null,null,null,null,null,null,null,{"$f":"IF(AJ43=AE16,AF16,0)","v":0},{"$f":"IF(AJ43=AE16,AG16,0)","v":0},"#16 Solid","AE16",null,null,null,null,null,{"$f":"IF(AS43=AE16,AF16,0)","v":0},{"$f":"IF(AS43=AE16,AG16,0)","v":0},"#16 Solid","AE16"]
[null,null,null,null,null,null,null,null,null,null,null,null,null,null,null,null,null,null,null,null,null,null,null,null,null,null,null,null,null,null,null,null,null,null,null,null,{"$f":"IF(AJ43=AE17,AF17,0)","v":0},{"$f":"IF(AJ43=AE17,AG17,0)","v":0},"#16 Stranded","AE17",null,null,null,null,null,{"$f":"IF(AS43=AE17,AF17,0)","v":0},{"$f":"IF(AS43=AE17,AG17,0)","v":0},"#16 Stranded","AE17"]
[null,250,null,null,{"$f":"AI10","v":" Enter 1-Way Wire Length in Feet"},null,null,null,null,null,null,null,null,null,null,null,null,null,null,null,null,null,null,null,null,null,null,null,null,null,null,null,null,null,null,null,{"$f":"IF(AJ43=AE18,AF18,0)","v":0},{"$f":"IF(AJ43=AE18,AG18,0)","v":0},"#18 Solid","AE18",null,null,null,null,null,{"$f":"IF(AS43=AE18,AF18,0)","v":0},{"$f":"IF(AS43=AE18,AG18,0)","v":0},"#18 Solid","AE18"]
[null,null,null,null,null,null,null,null,null,null,null,null,null,null,null,null,null,null,null,null,null,null,null,null,null,null,null,null,null,null,null,null,null,null,null,null,{"$f":"IF(AJ43=AE19,AF19,0)","v":0},{"$f":"IF(AJ43=AE19,AG19,0)","v":0},"#18 Stranded","AE19",null,null,null,null,null,{"$f":"IF(AS43=AE19,AF19,0)","v":0},{"$f":"IF(AS43=AE19,AG19,0)","v":0},"#18 Stranded","AE19"]
[null,20.399999999999999,null,null," NAC Voltage at Panel",null,null,null,null,null," - Usually set as 20.4 VDC, which is 85% of 24 volts",null,null,null,null,null,null,null,null,null,null,null,null,null,null,null,null,null,null,null,null,null,null,null,null,null,{"$f":"IF(AJ43=AE20,AF20,0)","v":0},{"$f":"AK51","v":0},{"$f":"AE42","v":0},"AE20",null,null,null,null,null,{"$f":"IF(AS43=AE20,AF20,0)","v":0},{"$f":"AT51","v":0},{"$f":"AN42","v":0},"AE20"]
[null,null,null,null,null,null,null,null,null,null,null,null,null,null,null,null,null,null,null,null,null,null,null,null,null,null,null,null,null,null,null,null,null,null,null,null,{"$f":"IF(AJ43=AE21,AF21,0)","v":0},{"$f":"AK52","v":0},{"$f":"AE43","v":0},"AE21",null,null,null,null,null,{"$f":"IF(AS43=AE21,AF21,0)","v":0},{"$f":"AT52","v":0},{"$f":"AN43","v":"AE12"},"AE21"]
[null,{"$f":"ROUNDUP(AT56,2)","v":1.54},null,null," Wire Resistance in Ohms"]
[null,null,null,null,null,null,null,null,null,null,null,null,null,null,null,null,null,null,null,null,null,null,null,null,null,null,null,null,null,null,null,null,null,null,null,null,{"$f":"SUM(AK43:AK52)","v":3.07},{"$f":"SUM(AL43:AL52)","v":10.1},"Wire R",null,null,null,null,null,null,{"$f":"SUM(AT43:AT52)","v":3.07},{"$f":"SUM(AU43:AU52)","v":10.1},"Wire R"]
[null,{"$f":"ROUNDDOWN(AT59,2)","v":20.399999999999999},null,null," End of Line Voltage",null,null,null,null,null,null,null,null,null,null,null,null,null,null,null,null,null,null,null,null,null,null,null,null,null,null,null,null,null,null,"wire length","total wire R, kft or km",null,null,null,null,null,null,null,"wire length","total wire R, kft or km"]
[null,null,null,null,null,null,null,null,null,null,null,null,null,null,null,null,null,null,null,null,null,null,null,null,null,null,null,null,null,null,null,null,null,null,null,{"$f":"B34*2","v":500},{"$f":"IF(AC10=FALSE,AJ56*AK54/1000,AJ56*AL54/1000)","v":1.5349999999999999},null,null,null,null,null,null,null,{"$f":"B49*2","v":500},{"$f":"IF(AC10=FALSE,AS56*AT54/1000,AS56*AU54/1000)","v":1.5349999999999999}]
[]
[null,"NAC 4",null,{"$f":"IF(AC30=1,\"NAC 4 is Class A. Voltage drop is calculated on NAC 3.\",\"\")","v":""},null,null,null,null,null,null,null,null,null,null,null,null,null,null,null,null,null,null,null,null,null,null,null,null,null,null,null,null,null,null,null,"voltage drop",{"$f":"B30*AK56","v":0},null,null,null,null,null,null,null,"voltage drop",{"$f":"B45*AT56","v":0}]
[null,null,null,null,null,null,null,null,null,null,null,null,null,null,null,null,null,null,null,null,null,null,null,null,null,null,null,null,null,null,null,null,null,null,null,"EOL voltage",{"$f":"B36-AK58","v":20.399999999999999},null,null,null,null,null,null,null,"EOL voltage",{"$f":"B51-AT58","v":20.399999999999999}]
[null,{"$f":"IF(AC30=0,Calcs!H21,0)","v":0},null,null," NAC 4 Load (from Calcs Sheet)"]
[]
[null,"#14 Solid",null,null," Select Wire Size and Type"]
[]
[null,250,null,null,{"$f":"AI10","v":" Enter 1-Way Wire Length in Feet"}]
[]
[null,20.399999999999999,null,null," NAC Voltage at Panel",null,null,null,null,null," - Usually set as 20.4 VDC, which is 85% of 24 volts"]
[null,null,null,null,null,null,null,null,null,null,null,null,null,null,null,null,null,null,null,null,null,null,null,null,null,null,null,null,null,null,null,null,null,null,null,null,"k/ft","km"]
[null,{"$f":"ROUNDUP(AK81,2)","v":1.54},null,null," Wire Resistance in Ohms",null,null,null,null,null,null,null,null,null,null,null,null,null,null,null,null,null,null,null,null,null,null,null,null,null,null,null,null,null,"NAC4",{"$f":"B62","v":"#14 Solid"},{"$f":"IF(AJ68=AE12,AF12,0)","v":0},{"$f":"IF(AJ68=AE12,AG12,0)","v":0},"#12 Solid","AE12"]
[null,null,null,null,null,null,null,null,null,null,null,null,null,null,null,null,null,null,null,null,null,null,null,null,null,null,null,null,null,null,null,null,null,null,null,null,{"$f":"IF(AJ68=AE13,AF13,0)","v":0},{"$f":"IF(AJ68=AE13,AG13,0)","v":0},"#12 Stranded","AE13"]
[null,{"$f":"ROUNDDOWN(AK84,2)","v":20.399999999999999},null,null," End of Line Voltage",null,null,null,null,null,null,null,null,null,null,null,null,null,null,null,null,null,null,null,null,null,null,null,null,null,null,null,null,null,null,null,{"$f":"IF(AJ68=AE14,AF14,0)","v":3.07},{"$f":"IF(AJ68=AE14,AG14,0)","v":10.1},"#14 Solid","AE14"]
[null,null,null,null,null,null,null,null,null,null,null,null,null,null,null,null,null,null,null,null,null,null,null,null,null,null,null,null,null,null,null,null,null,null,null,null,{"$f":"IF(AJ68=AE15,AF15,0)","v":0},{"$f":"IF(AJ68=AE15,AG15,0)","v":0},"#14 Stranded","AE15"]
[null,null,null,null,null,null,null,null,null,null,null,null,null,null,null,null,null,null,null,null,null,null,null,null,null,null,null,null,null,null,null,null,null,null,null,null,{"$f":"IF(AJ68=AE16,AF16,0)","v":0},{"$f":"IF(AJ68=AE16,AG16,0)","v":0},"#16 Solid","AE16"]
[null,null,null,null,null,null,null,null,null,null,null,null,null,null,null,null,null,null,null,null,null,null,null,null,null,null,null,null,null,null,null,null,null,null,null,null,{"$f":"IF(AJ68=AE17,AF17,0)","v":0},{"$f":"IF(AJ68=AE17,AG17,0)","v":0},"#16 Stranded","AE17"]
[null,null,null,null,null,null,null,null,null,null,null,null,null,null,null,null,null,null,null,null,null,null,null,null,null,null,null,null,null,null,null,null,null,null,null,null,{"$f":"IF(AJ68=AE18,AF18,0)","v":0},{"$f":"IF(AJ68=AE18,AG18,0)","v":0},"#18 Solid","AE18"]
[null,null,null,null,null,null,null,null,null,null,null,null,null,null,null,null,null,null,null,null,null,null,null,null,null,null,null,null,null,null,null,null,null,null,null,null,{"$f":"IF(AJ68=AE19,AF19,0)","v":0},{"$f":"IF(AJ68=AE19,AG19,0)","v":0},"#18 Stranded","AE19"]
[null,null,null,null,null,null,null,null,null,null,null,null,null,null,null,null,null,null,null,null,null,null,null,null,null,null,null,null,null,null,null,null,null,null,null,null,{"$f":"IF(AJ68=AE20,AF20,0)","v":0},{"$f":"AK76","v":0},{"$f":"AE67","v":0},"AE20"]
[null,null,null,null,null,null,null,null,null,null,null,null,null,null,null,null,null,null,null,null,null,null,null,null,null,null,null,null,null,null,null,null,null,null,null,null,{"$f":"IF(AJ68=AE21,AF21,0)","v":0},{"$f":"AK77","v":0},{"$f":"AE68","v":0},"AE21"]
[]
[null,null,null,null,null,null,null,null,null,null,null,null,null,null,null,null,null,null,null,null,null,null,null,null,null,null,null,null,null,null,null,null,null,null,null,null,{"$f":"SUM(AK68:AK77)","v":3.07},{"$f":"SUM(AL68:AL77)","v":10.1},"Wire R"]
[null,null,null,null,null,null,null,null,null,null,null,null,null,null,null,null,null,null,null,null,null,null,null,null,null,null,null,null,null,null,null,null,null,null,null,"wire length","total wire R, kft or km"]
[null,null,null,null,null,null,null,null,null,null,null,null,null,null,null,null,null,null,null,null,null,null,null,null,null,null,null,null,null,null,null,null,null,null,null,{"$f":"B64*2","v":500},{"$f":"IF(AC10=FALSE,AJ81*AK79/1000,AJ81*AL79/1000)","v":1.5349999999999999}]
[]
[null,null,null,null,null,null,null,null,null,null,null,null,null,null,null,null,null,null,null,null,null,null,null,null,null,null,null,null,null,null,null,null,null,null,null,"voltage drop",{"$f":"B60*AK81","v":0}]
[null,null,null,null,null,null,null,null,null,null,null,null,null,null,null,null,null,null,null,null,null,null,null,null,null,null,null,null,null,null,null,null,null,null,null,"EOL voltage",{"$f":"B66-AK83","v":20.399999999999999}]

{"sheet":"SLC1_and_SLC2","index":2,"n_rows":61,"n_cols":40,"rows_kept":61,"cut":false,"hidden":false,"merged":[[53,12,53,15],[53,16,53,18],[12,1,12,3],[13,1,13,3],[14,1,14,3],[3,1,3,7],[7,1,7,3],[7,5,7,7],[8,1,8,3],[29,1,29,3],[30,1,30,3],[23,1,23,3],[24,1,24,3],[25,1,25,3],[26,1,26,3],[27,1,27,3],[28,1,28,3],[15,1,15,3],[16,1,16,3],[17,1,17,3],[20,1,20,3],[21,1,21,3],[22,1,22,3],[23,5,23,7],[1,1,1,8],[6,1,6,7],[8,5,8,7],[9,5,9,7],[10,5,10,7],[11,5,11,7],[12,5,12,7],[13,5,13,7],[14,5,14,7],[9,1,9,3],[10,1,10,3],[11,1,11,3],[24,5,24,7],[25,5,25,7],[26,5,26,7],[27,5,27,7],[28,5,28,7],[15,5,15,7],[16,5,16,7],[17,5,17,7],[20,5,20,7],[21,5,21,7],[22,5,22,7],[35,5,35,7],[36,5,36,7],[37,5,37,7],[38,1,38,3],[39,1,39,3],[40,1,40,3],[29,5,29,7],[30,5,30,7],[31,5,31,7],[32,5,32,7],[33,5,33,7],[34,5,34,7],[35,1,35,3],[36,1,36,3],[37,1,37,3],[31,1,31,3],[32,1,32,3],[33,1,33,3],[34,1,34,3],[47,5,47,7],[48,1,48,3],[49,1,49,3],[50,1,50,3],[48,5,48,7],[49,5,49,7],[50,5,50,7],[47,1,47,3],[38,5,38,7],[39,5,39,7],[40,5,40,7],[41,5,41,7],[42,5,42,7],[43,5,43,7],[44,5,44,7],[45,5,45,7],[46,5,46,7],[41,1,41,3],[42,1,42,3],[43,1,43,3],[44,1,44,3],[45,1,45,3],[46,1,46,3],[12,12,12,14],[13,12,13,14],[14,12,14,14],[15,12,15,14],[16,12,16,14],[17,12,17,14],[7,12,7,14],[7,16,7,18],[8,12,8,14],[9,12,9,14],[10,12,10,14],[11,12,11,14],[8,16,8,18],[9,16,9,18],[10,16,10,18],[11,16,11,18],[12,16,12,18],[13,16,13,18],[14,16,14,18],[24,12,24,14],[25,12,25,14],[26,12,26,14],[15,16,15,18],[16,16,16,18],[17,16,17,18],[18,16,18,18],[19,16,19,18],[20,16,20,18],[20,12,20,14],[21,12,21,14],[22,12,22,14],[23,12,23,14],[48,12,48,14],[49,12,49,14],[50,12,50,14],[44,12,44,14],[45,12,45,14],[46,12,46,14],[47,12,47,14],[27,12,27,14],[28,12,28,14],[29,12,29,14],[42,12,42,14],[43,12,43,14],[36,12,36,14],[37,12,37,14],[38,12,38,14],[39,12,39,14],[40,12,40,14],[41,12,41,14],[30,12,30,14],[31,12,31,14],[32,12,32,14],[33,12,33,14],[34,12,34,14],[35,12,35,14],[38,16,38,18],[27,16,27,18],[28,16,28,18],[29,16,29,18],[30,16,30,18],[31,16,31,18],[32,16,32,18],[21,16,21,18],[22,16,22,18],[23,16,23,18],[24,16,24,18],[25,16,25,18],[26,16,26,18],[6,12,6,18],[51,1,51,4],[51,5,51,7],[51,12,51,15],[51,16,51,18],[53,1,53,4],[53,5,53,7],[45,16,45,18],[46,16,46,18],[47,16,47,18],[48,16,48,18],[49,16,49,18],[50,16,50,18],[39,16,39,18],[40,16,40,18],[41,16,41,18],[42,16,42,18],[43,16,43,18],[44,16,44,18],[33,16,33,18],[34,16,34,18],[35,16,35,18],[36,16,36,18],[37,16,37,18]]}
[]
[null,"Devices for SLC 1 and SLC 2"]
[]
[null,{"$f":"Calcs!F8","v":"Latitude"},null,null,null,null,null,null,null,null,null,null,null,null,null,null,null,null,null,null,null,null,null,null,null,null,null,"all current in milliamps"]
[]
[]
[null,"SLC 1",null,null,null,null,null,null,null,null,null,null,"SLC 2",null,null,null,null,null,null,null,null,null,null,null,null,null,"standby","alarm","Maximum",null,"standby","alarm",null,"standby ","alarm",null,"sub-addresses"]
[null,"Device Type",null,null,null,"Quantity",null,null,null,null,null,null,"Device Type",null,null,null,"Quantity",null,null,null,null,null,null,null,null,null,"current","current","current",null,"SLC1total","SLC1total",null,"SLC2total","SLC2total",null,"SLC1",null,"SLC2"]
[null,"ALO-V",null,null,null,null,null,null,null,null,null,null,"ALO-V",null,null,null,null,null,null,null,null,null,null,null,null,"alo",0.34,0.34,8.5,null,{"$f":"F9*AA9","v":0},{"$f":"IF(F9<5,F9*AC9,(F9*AB9)+42.5)","v":0},null,{"$f":"Q9*AA9","v":0},{"$f":"IF(Q9<5,Q9*AC9,(Q9*AB9)+42.5)","v":0}]
[null,"ALN-V",null,null,null,null,null,null,null,null,null,null,"ALN-V",null,null,null,null,null,null,null,null,null,null,null,null,"aln",0.45,0.7,9.6,null,{"$f":"F10*AA10","v":0},{"$f":"F10*AB10","v":0},null,{"$f":"Q10*AA10","v":0},{"$f":"Q10*AB10","v":0}]
[null,"ALK-V",null,null,null,null,null,null,null,null,null,null,"ALK-V",null,null,null,null,null,null,null,null,null,null,null,null,"alk",0.4,10.1,10.1,null,0,0,null,0,0]
[null,"ALG-V",null,null,null,null,null,null,null,null,null,null,"ALG-V",null,null,null,null,null,null,null,null,null,null,null,null,"alg",0.4,0.54,17.100000000000001,null,0,0,null,0,0]
[null,"ATJ-EA",null,null,null,null,null,null,null,null,null,null,"ATJ-EA",null,null,null,null,null,null,null,null,null,null,null,null,"atj",0.35,0.35,17.100000000000001,null,0,0,null,0,0]
[null,"ATG-EA",null,null,null,null,null,null,null,null,null,null,"ATG-EA",null,null,null,null,null,null,null,null,null,null,null,null,"atg",0.5,0.8,10.1,null,0,0,null,0,0]
[null,"ACA-V",null,null,null,null,null,null,null,null,null,null,"ACA-V",null,null,null,null,null,null,null,null,null,null,null,null,"aca",0.45,0.6,19.100000000000001,null,0,0,null,0,0]
[null,"ACC-V",null,null,null,null,null,null,null,null,null,null,"ACC-V",null,null,null,null,null,null,null,null,null,null,null,null,"acc",0.45,0.65,8.3000000000000007,null,0,0,null,0,0]
[null,"ACE-V",null,null,null,null,null,null,null,null,null,null,"ACE-V",null,null,null,null,null,null,null,null,null,null,null,null,"ace",0.45,0.7,10.1,null,0,0,null,0,0]
[null,"ACD-V",null,null,null,null,null,null,null,null,null,null,"ACD-V",null,null,null,null,null,null,null,null,null,null,null,null,"acd",0.6,0.7,10.1,null,0,0,null,0,0]
[null,null,null,null,null,null,null,null,null,null,null,null,null,null,null,null,null,null,null,null,null,null,null,null,null,null,null,null,null,null,0,0,null,0,0]
[null,null,null,null,null,null,null,null,null,null,null,null,null,null,null,null,null,null,null,null,null,null,null,null,null,null,null,null,null,null,0,0,null,0,0]
[null,"DH-100A",null,null,null,null,null,null,null,null,null,null,"DH-100",null,null,null,null,null,null,null,null,null,null,null,null,"dh100",0.45,0.75,10.1,null,0,0,null,0,0,null,2,{"$f":"F21*AK21","v":0},{"$f":"Q21*AK21","v":0}]
[null,"DH-99",null,null,null,null,null,null,null,null,null,null,"DH-99",null,null,null,null,null,null,null,null,null,null,null,null,"dh99",0.45,0.75,10.1,null,0,0,null,0,0,null,2,{"$f":"F22*AK22","v":0},{"$f":"Q22*AK22","v":0}]
[null,"DH-98",null,null,null,null,null,null,null,null,null,null,"DH-98",null,null,null,null,null,null,null,null,null,null,null,null,"dh98",0.45,0.75,10.1,null,0,0,null,0,0,null,2,0,0]
[null,"AMS",null,null,null,null,null,null,null,null,null,null,"AMS",null,null,null,null,null,null,null,null,null,null,null,null,"ams",0.45,0.75,5.2,null,0,0,null,0,0,null,null,null,0]
[null,"CZM",null,null,null,null,null,null,null,null,null,null,"CZM",null,null,null,null,null,null,null,null,null,null,null,null,"czm",0.45,0.75,4.3,null,0,0,null,0,0,null,null,null,0]
[null,"FRCME",null,null,null,null,null,null,null,null,null,null,"FRCME",null,null,null,null,null,null,null,null,null,null,null,null,"frcme",0.6,0.95,0.95,null,0,0,null,0,0,null,null,null,0]
[null,"FRCMA",null,null,null,null,null,null,null,null,null,null,"FRCMA",null,null,null,null,null,null,null,null,null,null,null,null,"frcma",0.65,1,5.0999999999999996,null,0,0,null,0,0,null,null,null,0]
[null,"FRCMA-I",null,null,null,null,null,null,null,null,null,null,"FRCMA-I",null,null,null,null,null,null,null,null,null,null,null,null,"frcma-i",0.8,1.1000000000000001,5.0999999999999996,null,0,0,null,0,0,null,null,null,0]
[null,"FRCME-M",null,null,null,null,null,null,null,null,null,null,"FRCME-M",null,null,null,null,null,null,null,null,null,null,null,null,"frcme-m",0.6,0.9,0.95,null,0,0,null,0,0,null,null,null,0]
[null,"FRCME-P",null,null,null,null,null,null,null,null,null,null,"FRCME-P",null,null,null,null,null,null,null,null,null,null,null,null,"frcme-p",0.6,0.9,0.95,null,0,0,null,0,0,null,null,null,0]
[null,"DIMM",null,null,null,null,null,null,null,null,null,null,"DIMM",null,null,null,null,null,null,null,null,null,null,null,null,"dimm",1.05,1.1000000000000001,5.2,null,0,0,null,0,0,null,3,{"$f":"F31*AK31","v":0},0]
[null,"R2M",null,null,null,null,null,null,null,null,null,null,"R2M",null,null,null,null,null,null,null,null,null,null,null,null,"r2m",0.4,0.4,0.4,null,0,0,null,0,0,null,3,{"$f":"F32*AK32","v":0},0]
[null,"R2M-L",null,null,null,null,null,null,null,null,null,null,"R2M-L",null,null,null,null,null,null,null,null,null,null,null,null,"r2ml",0.55000000000000004,0.85,0.85,null,0,0,null,0,0,null,3,0,0]
[null,"R2M-LI",null,null,null,null,null,null,null,null,null,null,"R2M-LI",null,null,null,null,null,null,null,null,null,null,null,null,"r2mli",0.55000000000000004,0.85,0.85,null,0,0,null,0,0,null,3,0,0]
[null,"R2M-H",null,null,null,null,null,null,null,null,null,null,"R2M-H",null,null,null,null,null,null,null,null,null,null,null,null,"r2mh",0.55000000000000004,0.85,0.85,null,0,0,null,0,0,null,3,0,0]
[null,"R2M-HI",null,null,null,null,null,null,null,null,null,null,"R2M-HI",null,null,null,null,null,null,null,null,null,null,null,null,"r2mhi",0.55000000000000004,0.85,0.85,null,0,0,null,0,0,null,3,0,0]
[null,"SOM",null,null,null,null,null,null,null,null,null,null,"SOM",null,null,null,null,null,null,null,null,null,null,null,null,"som",0.2,0.15,0.15,null,0,0,null,0,0,null,2,0,0]
[null,"SOM-A",null,null,null,null,null,null,null,null,null,null,"SOM-A",null,null,null,null,null,null,null,null,null,null,null,null,"soma",0.45,0.8,0.8,null,0,0,null,0,0,null,2,0,0]
[null,"SOM-AI",null,null,null,null,null,null,null,null,null,null,"SOM-AI",null,null,null,null,null,null,null,null,null,null,null,null,"somai",0.45,0.8,0.8,null,0,0,null,0,0,null,2,0,0]
[null,"ASB/ASB7",null,null,null,null,null,null,null,null,null,null,"ASB/ASB7",null,null,null,null,null,null,null,null,null,null,null,null,"asb",0.12,0.12,0.12,null,0,0,null,0,0,null,null,null,0]
[null,"ASBL/ASBL7",null,null,null,null,null,null,null,null,null,null,"ASBL/ASBL7",null,null,null,null,null,null,null,null,null,null,null,null,"asbl",0.4,0.65,0.65,null,0,0,null,0,0,null,null,null,0]
[null,"MIOM (all)",null,null,null,null,null,null,null,null,null,null,"MIOM (all)",null,null,null,null,null,null,null,null,null,null,null,null,"miom",1.05,1.1000000000000001,4.3,null,0,0,null,0,0,null,7,0,0]
[null,"CLIM1",null,null,null,null,null,null,null,null,null,null,"CLIM1",null,null,null,null,null,null,null,null,null,null,null,null,"clim1",0.5,6,6,null,0,0,null,0,0,null,6,0,0]
[null,"CLIM2",null,null,null,null,null,null,null,null,null,null,"CLIM2",null,null,null,null,null,null,null,null,null,null,null,null,"clim2",0.55000000000000004,6,6,null,0,0,null,0,0,null,11,0,0]
[null,"SCI Module",null,null,null,null,null,null,null,null,null,null,"SCI Module",null,null,null,null,null,null,null,null,null,null,null,null,"sci",0.3,10,10,null,0,{"$f":"IF(F45>0,20,0)","v":0},null,0,{"$f":"IF(Q45>0,20,0)","v":0}]
[null,"SCI-B4 / -B6",null,null,null,null,null,null,null,null,null,null,"SCI-B4 / -B6",null,null,null,null,null,null,null,null,null,null,null,null,"sci bases",0.3,10,10,null,0,{"$f":"IF(F46>0,20,0)","v":0},null,0,{"$f":"IF(Q46>0,20,0)","v":0}]
[]
[]
[]
[null,null,null,null,null,null,null,null,null,null,null,null,null,null,null,null,null,null,null,null,null,null,null,null,null,null,null,null,null,null,null,null,null,null,null,null,null,"SLC1","SLC2","<- total subaddresses"]
[null,null,null,null,null,null,null,null,null,null,null,null,null,null,null,null,null,null,null,null,null,null,null,null,null,null,"SLC1 total",{"$f":"F52","v":0},"SLC2 total",{"$f":"Q52","v":0},{"$f":"SUM(AE9:AE49)","v":0},{"$f":"IF(SUM(AF9:AF49)=0,0,SUM(AF9:AF49)+0.8)","v":0},null,{"$f":"SUM(AH9:AH49)","v":0},{"$f":"IF(SUM(AI9:AI49)=0,0,SUM(AI9:AI49)+0.8)","v":0},null,null,{"$f":"SUM(AL15:AL44)","v":0},{"$f":"SUM(AM15:AM44)","v":0}]
[null,"Device Total - ",null,null,null,{"$f":"SUM(F9:H39,F42,F43,F44)","v":0},null,null,null,null,null,null,"Device Total - ",null,null,null,{"$f":"SUM(Q9:S39,Q42,Q43,Q44)","v":0}]
[]
[null,"Total Bases - ",null,null,null,{"$f":"SUM(F40,F41,F46)","v":0},null,null,null,null,null,null,"Total Bases - ",null,null,null,{"$f":"SUM(Q40,Q41,Q46)","v":0},null,null,null,null,null,null,null,null,null,"SLC1",null,"SLC2"]
[null,null,null,null,null,null,null,null,null,null,null,null,null,null,null,null,null,null,null,null,null,null,null,null,null,"total detectors",{"$f":"SUM(F9:H18)","v":0},null,{"$f":"SUM(Q9:S18)","v":0}]
[null,{"$f":"IF(AA56>AA55,\"You have more Sounder Bases/SCI Bases  than Detectors on SLC 1!\",\"\")","v":""},null,null,null,null,null,null,null,null,null,null,null,null,null,null,null,null,null,null,null,null,null,null,null,"total bases",{"$f":"F54","v":0},null,{"$f":"Q54","v":0}]
[null,{"$f":"IF(AC56>AC55,\"You have more Sounder Bases/SCI Bases than Detectors on SLC 2!\",\"\")","v":""},null,null,null,null,null,null,null,null,null,null,null,null,null,null,null,null,null,null,null,null,null,null,null,"total device count",{"$f":"F52","v":0},null,{"$f":"Q52","v":0}]
[null,{"$f":"IF(F52>127,\"You have exceeded 127 Devices on SLC 1!\",\"\")","v":""}]
[null,{"$f":"IF(Q52>127,\"You have exceeded 127 Devices on SLC 2!\",\"\")","v":""}]
[null,{"$f":"IF(AL51>400,\"You have exceeded 400 sub-addresses on SLC 1!\",\"\")","v":""}]
[null,{"$f":"IF(AM51>400,\"You have exceeded 400 sub-addresses on SLC 2!\",\"\")","v":""}]

{"sheet":"SLC3_and_SLC4","index":3,"n_rows":61,"n_cols":40,"rows_kept":61,"cut":false,"hidden":false,"merged":[[51,1,51,4],[51,5,51,7],[51,12,51,15],[51,16,51,18],[53,1,53,4],[53,5,53,7],[53,12,53,15],[53,16,53,18],[49,1,49,3],[49,5,49,7],[49,12,49,14],[49,16,49,18],[50,1,50,3],[50,5,50,7],[50,12,50,14],[50,16,50,18],[47,1,47,3],[47,5,47,7],[47,12,47,14],[47,16,47,18],[48,1,48,3],[48,5,48,7],[48,12,48,14],[48,16,48,18],[45,1,45,3],[45,5,45,7],[45,12,45,14],[45,16,45,18],[46,1,46,3],[46,5,46,7],[46,12,46,14],[46,16,46,18],[43,1,43,3],[43,5,43,7],[43,12,43,14],[43,16,43,18],[44,1,44,3],[44,5,44,7],[44,12,44,14],[44,16,44,18],[41,1,41,3],[41,5,41,7],[41,12,41,14],[41,16,41,18],[42,1,42,3],[42,5,42,7],[42,12,42,14],[42,16,42,18],[39,1,39,3],[39,5,39,7],[39,12,39,14],[39,16,39,18],[40,1,40,3],[40,5,40,7],[40,12,40,14],[40,16,40,18],[37,1,37,3],[37,5,37,7],[37,12,37,14],[37,16,37,18],[38,1,38,3],[38,5,38,7],[38,12,38,14],[38,16,38,18],[35,1,35,3],[35,5,35,7],[35,12,35,14],[35,16,35,18],[36,1,36,3],[36,5,36,7],[36,12,36,14],[36,16,36,18],[33,1,33,3],[33,5,33,7],[33,12,33,14],[33,16,33,18],[34,1,34,3],[34,5,34,7],[34,12,34,14],[34,16,34,18],[31,1,31,3],[31,5,31,7],[31,12,31,14],[31,16,31,18],[32,1,32,3],[32,5,32,7],[32,12,32,14],[32,16,32,18],[29,1,29,3],[29,5,29,7],[29,12,29,14],[29,16,29,18],[30,1,30,3],[30,5,30,7],[30,12,30,14],[30,16,30,18],[27,1,27,3],[27,5,27,7],[27,12,27,14],[27,16,27,18],[28,1,28,3],[28,5,28,7],[28,12,28,14],[28,16,28,18],[25,1,25,3],[25,5,25,7],[25,12,25,14],[25,16,25,18],[26,1,26,3],[26,5,26,7],[26,12,26,14],[26,16,26,18],[23,1,23,3],[23,5,23,7],[23,12,23,14],[23,16,23,18],[24,1,24,3],[24,5,24,7],[24,12,24,14],[24,16,24,18],[21,1,21,3],[21,5,21,7],[21,12,21,14],[21,16,21,18],[22,1,22,3],[22,5,22,7],[22,12,22,14],[22,16,22,18],[18,16,18,18],[19,16,19,18],[20,1,20,3],[20,5,20,7],[20,12,20,14],[20,16,20,18],[16,1,16,3],[16,5,16,7],[16,12,16,14],[16,16,16,18],[17,1,17,3],[17,5,17,7],[17,12,17,14],[17,16,17,18],[14,1,14,3],[14,5,14,7],[14,12,14,14],[14,16,14,18],[15,1,15,3],[15,5,15,7],[15,12,15,14],[15,16,15,18],[12,1,12,3],[12,5,12,7],[12,12,12,14],[12,16,12,18],[13,1,13,3],[13,5,13,7],[13,12,13,14],[13,16,13,18],[11,1,11,3],[11,5,11,7],[11,12,11,14],[11,16,11,18],[8,1,8,3],[8,5,8,7],[8,12,8,14],[8,16,8,18],[9,1,9,3],[9,5,9,7],[9,12,9,14],[9,16,9,18],[1,1,1,8],[3,1,3,7],[6,1,6,7],[6,12,6,18],[7,1,7,3],[7,5,7,7],[7,12,7,14],[7,16,7,18],[10,1,10,3],[10,5,10,7],[10,12,10,14],[10,16,10,18]]}
[]
[null,"Devices for SLC 3 and SLC 4"]
[]
[null,{"$f":"Calcs!F8","v":"Latitude"},null,null,null,null,null,null,null,null,null,null,null,null,null,null,null,null,null,null,null,null,null,null,null,null,null,"all current in milliamps"]
[]
[]
[null,"SLC 3",null,null,null,null,null,null,null,null,null,null,"SLC 4",null,null,null,null,null,null,null,null,null,null,null,null,null,"standby","alarm","Maximum",null,"standby","alarm",null,"standby ","alarm",null,"sub-addresses"]
[null,"Device Type",null,null,null,"Quantity",null,null,null,null,null,null,"Device Type",null,null,null,"Quantity",null,null,null,null,null,null,null,null,null,"current","current","current",null,"SLC3total","SLC3total",null,"SLC4total","SLC4total",null,"SLC3",null,"SLC4"]
[null,"ALO-V",null,null,null,null,null,null,null,null,null,null,"ALO-V",null,null,null,null,null,null,null,null,null,null,null,null,"alo",0.34,0.34,8.5,null,{"$f":"F9*AA9","v":0},{"$f":"F9*AB9","v":0},null,{"$f":"Q9*AA9","v":0},{"$f":"Q9*AB9","v":0}]
[null,"ALN-V",null,null,null,null,null,null,null,null,null,null,"ALN-V",null,null,null,null,null,null,null,null,null,null,null,null,"aln",0.45,0.7,9.6,null,{"$f":"F10*AA10","v":0},{"$f":"F10*AB10","v":0},null,{"$f":"Q10*AA10","v":0},{"$f":"Q10*AB10","v":0}]
[null,"ALK-V",null,null,null,null,null,null,null,null,null,null,"ALK-V",null,null,null,null,null,null,null,null,null,null,null,null,"alk",0.4,10.1,10.1,null,0,0,null,0,0]
[null,"ALG-V",null,null,null,null,null,null,null,null,null,null,"ALG-V",null,null,null,null,null,null,null,null,null,null,null,null,"alg",0.4,0.54,17.100000000000001,null,0,0,null,0,0]
[null,"ATJ-EA",null,null,null,null,null,null,null,null,null,null,"ATJ-EA",null,null,null,null,null,null,null,null,null,null,null,null,"atj",0.35,0.35,17.100000000000001,null,0,0,null,0,0]
[null,"ATG-EA",null,null,null,null,null,null,null,null,null,null,"ATG-EA",null,null,null,null,null,null,null,null,null,null,null,null,"atg",0.5,0.8,10.1,null,0,0,null,0,0]
[null,"ACA-V",null,null,null,null,null,null,null,null,null,null,"ACA-V",null,null,null,null,null,null,null,null,null,null,null,null,"aca",0.45,0.6,19.100000000000001,null,0,0,null,0,0]
[null,"ACC-V",null,null,null,null,null,null,null,null,null,null,"ACC-V",null,null,null,null,null,null,null,null,null,null,null,null,"acc",0.45,0.65,8.3000000000000007,null,0,0,null,0,0]
[null,"ACE-V",null,null,null,null,null,null,null,null,null,null,"ACE-V",null,null,null,null,null,null,null,null,null,null,null,null,"ace",0.45,0.7,10.1,null,0,0,null,0,0]
[null,"ACD-V",null,null,null,null,null,null,null,null,null,null,"ACD-V",null,null,null,null,null,null,null,null,null,null,null,null,"acd",0.6,0.7,10.1,null,0,0,null,0,0]
[null,null,null,null,null,null,null,null,null,null,null,null,null,null,null,null,null,null,null,null,null,null,null,null,null,null,null,null,null,null,0,0,null,0,0]
[null,null,null,null,null,null,null,null,null,null,null,null,null,null,null,null,null,null,null,null,null,null,null,null,null,null,null,null,null,null,0,0,null,0,0]
[null,"DH-100A",null,null,null,null,null,null,null,null,null,null,"DH-100",null,null,null,null,null,null,null,null,null,null,null,null,"dh100",0.45,0.75,10.1,null,0,0,null,0,0,null,2,{"$f":"F21*AK21","v":0},{"$f":"Q21*AK21","v":0}]
[null,"DH-99",null,null,null,null,null,null,null,null,null,null,"DH-99",null,null,null,null,null,null,null,null,null,null,null,null,"dh99",0.45,0.75,10.1,null,0,0,null,0,0,null,2,{"$f":"F22*AK22","v":0},{"$f":"Q22*AK22","v":0}]
[null,"DH-98",null,null,null,null,null,null,null,null,null,null,"DH-98",null,null,null,null,null,null,null,null,null,null,null,null,"dh98",0.45,0.75,10.1,null,0,0,null,0,0,null,2,0,0]
[null,"AMS",null,null,null,null,null,null,null,null,null,null,"AMS",null,null,null,null,null,null,null,null,null,null,null,null,"ams",0.45,0.75,5.2,null,0,0,null,0,0,null,null,null,0]
[null,"CZM",null,null,null,null,null,null,null,null,null,null,"CZM",null,null,null,null,null,null,null,null,null,null,null,null,"czm",0.45,0.75,4.3,null,0,0,null,0,0,null,null,null,0]
[null,"FRCME",null,null,null,null,null,null,null,null,null,null,"FRCME",null,null,null,null,null,null,null,null,null,null,null,null,"frcme",0.6,0.95,0.95,null,0,0,null,0,0,null,null,null,0]
[null,"FRCMA",null,null,null,null,null,null,null,null,null,null,"FRCMA",null,null,null,null,null,null,null,null,null,null,null,null,"frcma",0.65,1,5.0999999999999996,null,0,0,null,0,0,null,null,null,0]
[null,"FRCMA-I",null,null,null,null,null,null,null,null,null,null,"FRCMA-I",null,null,null,null,null,null,null,null,null,null,null,null,"frcma-i",0.8,1.1000000000000001,5.0999999999999996,null,0,0,null,0,0,null,null,null,0]
[null,"FRCME-M",null,null,null,null,null,null,null,null,null,null,"FRCME-M",null,null,null,null,null,null,null,null,null,null,null,null,"frcme-m",0.6,0.9,0.95,null,0,0,null,0,0,null,null,null,0]
[null,"FRCME-P",null,null,null,null,null,null,null,null,null,null,"FRCME-P",null,null,null,null,null,null,null,null,null,null,null,null,"frcme-p",0.6,0.9,0.95,null,0,0,null,0,0,null,null,null,0]
[null,"DIMM",null,null,null,null,null,null,null,null,null,null,"DIMM",null,null,null,null,null,null,null,null,null,null,null,null,"dimm",1.05,1.1000000000000001,5.2,null,0,0,null,0,0,null,3,{"$f":"F31*AK31","v":0},0]
[null,"R2M",null,null,null,null,null,null,null,null,null,null,"R2M",null,null,null,null,null,null,null,null,null,null,null,null,"r2m",0.4,0.4,0.4,null,0,0,null,0,0,null,3,{"$f":"F32*AK32","v":0},0]
[null,"R2M-L",null,null,null,null,null,null,null,null,null,null,"R2M-L",null,null,null,null,null,null,null,null,null,null,null,null,"r2ml",0.55000000000000004,0.85,0.85,null,0,0,null,0,0,null,3,0,0]
[null,"R2M-LI",null,null,null,null,null,null,null,null,null,null,"R2M-LI",null,null,null,null,null,null,null,null,null,null,null,null,"r2mli",0.55000000000000004,0.85,0.85,null,0,0,null,0,0,null,3,0,0]
[null,"R2M-H",null,null,null,null,null,null,null,null,null,null,"R2M-H",null,null,null,null,null,null,null,null,null,null,null,null,"r2mh",0.55000000000000004,0.85,0.85,null,0,0,null,0,0,null,3,0,0]
[null,"R2M-HI",null,null,null,null,null,null,null,null,null,null,"R2M-HI",null,null,null,null,null,null,null,null,null,null,null,null,"r2mhi",0.55000000000000004,0.85,0.85,null,0,0,null,0,0,null,3,0,0]
[null,"SOM",null,null,null,null,null,null,null,null,null,null,"SOM",null,null,null,null,null,null,null,null,null,null,null,null,"som",0.2,0.15,0.15,null,0,0,null,0,0,null,2,0,0]
[null,"SOM-A",null,null,null,null,null,null,null,null,null,null,"SOM-A",null,null,null,null,null,null,null,null,null,null,null,null,"soma",0.45,0.8,0.8,null,0,0,null,0,0,null,2,0,0]
[null,"SOM-AI",null,null,null,null,null,null,null,null,null,null,"SOM-AI",null,null,null,null,null,null,null,null,null,null,null,null,"somai",0.45,0.8,0.8,null,0,0,null,0,0,null,2,0,0]
[null,"ASB/ASB7",null,null,null,null,null,null,null,null,null,null,"ASB/ASB7",null,null,null,null,null,null,null,null,null,null,null,null,"asb",0.12,0.12,0.12,null,0,0,null,0,0,null,null,null,0]
[null,"ASBL/ASBL7",null,null,null,null,null,null,null,null,null,null,"ASBL/ASBL7",null,null,null,null,null,null,null,null,null,null,null,null,"asbl",0.4,0.65,0.65,null,0,0,null,0,0,null,null,null,0]
[null,"MIOM (all)",null,null,null,null,null,null,null,null,null,null,"MIOM (all)",null,null,null,null,null,null,null,null,null,null,null,null,"miom",1.05,1.1000000000000001,4.3,null,0,0,null,0,0,null,7,0,0]
[null,"CLIM1",null,null,null,null,null,null,null,null,null,null,"CLIM1",null,null,null,null,null,null,null,null,null,null,null,null,"clim1",0.5,6,6,null,0,0,null,0,0,null,6,0,0]
[null,"CLIM2",null,null,null,null,null,null,null,null,null,null,"CLIM2",null,null,null,null,null,null,null,null,null,null,null,null,"clim2",0.55000000000000004,6,6,null,0,0,null,0,0,null,11,0,0]
[null,"SCI Module",null,null,null,null,null,null,null,null,null,null,"SCI Module",null,null,null,null,null,null,null,null,null,null,null,null,"sci",0.3,10,10,null,0,{"$f":"IF(F45>0,20,0)","v":0},null,0,{"$f":"IF(Q45>0,20,0)","v":0}]
[null,"SCI-B4 / -B6",null,null,null,null,null,null,null,null,null,null,"SCI-B4 / -B6",null,null,null,null,null,null,null,null,null,null,null,null,"sci bases",0.3,10,10,null,0,{"$f":"IF(F46>0,20,0)","v":0},null,0,{"$f":"IF(Q46>0,20,0)","v":0}]
[]
[]
[]
[null,null,null,null,null,null,null,null,null,null,null,null,null,null,null,null,null,null,null,null,null,null,null,null,null,null,null,null,null,null,null,null,null,null,null,null,null,"SLC1","SLC2","<- total subaddresses"]
[null,null,null,null,null,null,null,null,null,null,null,null,null,null,null,null,null,null,null,null,null,null,null,null,null,null,"SLC3 total",{"$f":"F52","v":0},"SLC4 total",{"$f":"Q52","v":0},{"$f":"SUM(AE9:AE49)","v":0},{"$f":"IF(SUM(AF9:AF49)=0,0,SUM(AF9:AF49)+0.8)","v":0},null,{"$f":"SUM(AH9:AH49)","v":0},{"$f":"IF(SUM(AI9:AI49)=0,0,SUM(AI9:AI49)+0.8)","v":0},null,null,{"$f":"SUM(AL15:AL44)","v":0},{"$f":"SUM(AM15:AM44)","v":0}]
[null,"Device Total - ",null,null,null,{"$f":"SUM(F9:H39,F42,F43,F44)","v":0},null,null,null,null,null,null,"Device Total - ",null,null,null,{"$f":"SUM(Q9:S39,Q42,Q43,Q44)","v":0}]
[]
[null,"Total Bases - ",null,null,null,{"$f":"SUM(F40,F41,F46)","v":0},null,null,null,null,null,null,"Total Bases - ",null,null,null,{"$f":"SUM(Q40,Q41,Q46)","v":0},null,null,null,null,null,null,null,null,null,"SLC3",null,"SLC4"]
[null,null,null,null,null,null,null,null,null,null,null,null,null,null,null,null,null,null,null,null,null,null,null,null,null,"total detectors",{"$f":"SUM(F9:H18)","v":0},null,{"$f":"SUM(Q9:S18)","v":0}]
[null,{"$f":"IF(AA56>AA55,\"You have more Sounder Bases/SCI Bases than Detectors on SLC 3!\",\"\")","v":""},null,null,null,null,null,null,null,null,null,null,null,null,null,null,null,null,null,null,null,null,null,null,null,"total bases",{"$f":"F54","v":0},null,{"$f":"Q54","v":0}]
[null,{"$f":"IF(AC56>AC55,\"You have more Sounder Bases/SCI Bases than Detectors on SLC 4!\",\"\")","v":""},null,null,null,null,null,null,null,null,null,null,null,null,null,null,null,null,null,null,null,null,null,null,null,"total device count",{"$f":"F52","v":0},null,{"$f":"Q52","v":0}]
[null,{"$f":"IF(F52>127,\"You have exceeded 127 Devices on SLC 3!\",\"\")","v":""}]
[null,{"$f":"IF(Q52>127,\"You have exceeded 127 Devices on SLC 4!\",\"\")","v":""}]
[null,{"$f":"IF(AL51>400,\"You have exceeded 400 sub-addresses on SLC 3!\",\"\")","v":""}]
[null,{"$f":"IF(AM51>400,\"You have exceeded 400 sub-addresses on SLC 4!\",\"\")","v":""}]

{"sheet":"SLC5_and_SLC6","index":4,"n_rows":61,"n_cols":40,"rows_kept":61,"cut":false,"hidden":false,"merged":[[51,1,51,4],[51,5,51,7],[51,12,51,15],[51,16,51,18],[53,1,53,4],[53,5,53,7],[53,12,53,15],[53,16,53,18],[49,1,49,3],[49,5,49,7],[49,12,49,14],[49,16,49,18],[50,1,50,3],[50,5,50,7],[50,12,50,14],[50,16,50,18],[47,1,47,3],[47,5,47,7],[47,12,47,14],[47,16,47,18],[48,1,48,3],[48,5,48,7],[48,12,48,14],[48,16,48,18],[45,1,45,3],[45,5,45,7],[45,12,45,14],[45,16,45,18],[46,1,46,3],[46,5,46,7],[46,12,46,14],[46,16,46,18],[43,1,43,3],[43,5,43,7],[43,12,43,14],[43,16,43,18],[44,1,44,3],[44,5,44,7],[44,12,44,14],[44,16,44,18],[41,1,41,3],[41,5,41,7],[41,12,41,14],[41,16,41,18],[42,1,42,3],[42,5,42,7],[42,12,42,14],[42,16,42,18],[39,1,39,3],[39,5,39,7],[39,12,39,14],[39,16,39,18],[40,1,40,3],[40,5,40,7],[40,12,40,14],[40,16,40,18],[37,1,37,3],[37,5,37,7],[37,12,37,14],[37,16,37,18],[38,1,38,3],[38,5,38,7],[38,12,38,14],[38,16,38,18],[35,1,35,3],[35,5,35,7],[35,12,35,14],[35,16,35,18],[36,1,36,3],[36,5,36,7],[36,12,36,14],[36,16,36,18],[33,1,33,3],[33,5,33,7],[33,12,33,14],[33,16,33,18],[34,1,34,3],[34,5,34,7],[34,12,34,14],[34,16,34,18],[31,1,31,3],[31,5,31,7],[31,12,31,14],[31,16,31,18],[32,1,32,3],[32,5,32,7],[32,12,32,14],[32,16,32,18],[29,1,29,3],[29,5,29,7],[29,12,29,14],[29,16,29,18],[30,1,30,3],[30,5,30,7],[30,12,30,14],[30,16,30,18],[27,1,27,3],[27,5,27,7],[27,12,27,14],[27,16,27,18],[28,1,28,3],[28,5,28,7],[28,12,28,14],[28,16,28,18],[25,1,25,3],[25,5,25,7],[25,12,25,14],[25,16,25,18],[26,1,26,3],[26,5,26,7],[26,12,26,14],[26,16,26,18],[23,1,23,3],[23,5,23,7],[23,12,23,14],[23,16,23,18],[24,1,24,3],[24,5,24,7],[24,12,24,14],[24,16,24,18],[21,1,21,3],[21,5,21,7],[21,12,21,14],[21,16,21,18],[22,1,22,3],[22,5,22,7],[22,12,22,14],[22,16,22,18],[18,16,18,18],[19,16,19,18],[20,1,20,3],[20,5,20,7],[20,12,20,14],[20,16,20,18],[16,1,16,3],[16,5,16,7],[16,12,16,14],[16,16,16,18],[17,1,17,3],[17,5,17,7],[17,12,17,14],[17,16,17,18],[14,1,14,3],[14,5,14,7],[14,12,14,14],[14,16,14,18],[15,1,15,3],[15,5,15,7],[15,12,15,14],[15,16,15,18],[12,1,12,3],[12,5,12,7],[12,12,12,14],[12,16,12,18],[13,1,13,3],[13,5,13,7],[13,12,13,14],[13,16,13,18],[11,1,11,3],[11,5,11,7],[11,12,11,14],[11,16,11,18],[8,1,8,3],[8,5,8,7],[8,12,8,14],[8,16,8,18],[9,1,9,3],[9,5,9,7],[9,12,9,14],[9,16,9,18],[1,1,1,8],[3,1,3,7],[6,1,6,7],[6,12,6,18],[7,1,7,3],[7,5,7,7],[7,12,7,14],[7,16,7,18],[10,1,10,3],[10,5,10,7],[10,12,10,14],[10,16,10,18]]}
[]
[null,"Devices for SLC 5 and SLC 6"]
[]
[null,{"$f":"Calcs!F8","v":"Latitude"},null,null,null,null,null,null,null,null,null,null,null,null,null,null,null,null,null,null,null,null,null,null,null,null,null,"all current in milliamps"]
[]
[]
[null,"SLC 5",null,null,null,null,null,null,null,null,null,null,"SLC 6",null,null,null,null,null,null,null,null,null,null,null,null,null,"standby","alarm","Maximum",null,"standby","alarm",null,"standby ","alarm",null,"sub-addresses"]
[null,"Device Type",null,null,null,"Quantity",null,null,null,null,null,null,"Device Type",null,null,null,"Quantity",null,null,null,null,null,null,null,null,null,"current","current","current",null,"SLC5total","SLC5total",null,"SLC6total","SLC6total",null,"SLC5",null,"SLC6"]
[null,"ALO-V",null,null,null,null,null,null,null,null,null,null,"ALO-V",null,null,null,null,null,null,null,null,null,null,null,null,"alo",0.34,0.34,8.5,null,{"$f":"F9*AA9","v":0},{"$f":"F9*AB9","v":0},null,{"$f":"Q9*AA9","v":0},{"$f":"Q9*AB9","v":0}]
[null,"ALN-V",null,null,null,null,null,null,null,null,null,null,"ALN-V",null,null,null,null,null,null,null,null,null,null,null,null,"aln",0.45,0.7,9.6,null,{"$f":"F10*AA10","v":0},{"$f":"F10*AB10","v":0},null,{"$f":"Q10*AA10","v":0},{"$f":"Q10*AB10","v":0}]
[null,"ALK-V",null,null,null,null,null,null,null,null,null,null,"ALK-V",null,null,null,null,null,null,null,null,null,null,null,null,"alk",0.4,10.1,10.1,null,0,0,null,0,0]
[null,"ALG-V",null,null,null,null,null,null,null,null,null,null,"ALG-V",null,null,null,null,null,null,null,null,null,null,null,null,"alg",0.4,0.54,17.100000000000001,null,0,0,null,0,0]
[null,"ATJ-EA",null,null,null,null,null,null,null,null,null,null,"ATJ-EA",null,null,null,null,null,null,null,null,null,null,null,null,"atj",0.35,0.35,17.100000000000001,null,0,0,null,0,0]
[null,"ATG-EA",null,null,null,null,null,null,null,null,null,null,"ATG-EA",null,null,null,null,null,null,null,null,null,null,null,null,"atg",0.5,0.8,10.1,null,0,0,null,0,0]
[null,"ACA-V",null,null,null,null,null,null,null,null,null,null,"ACA-V",null,null,null,null,null,null,null,null,null,null,null,null,"aca",0.45,0.6,19.100000000000001,null,0,0,null,0,0]
[null,"ACC-V",null,null,null,null,null,null,null,null,null,null,"ACC-V",null,null,null,null,null,null,null,null,null,null,null,null,"acc",0.45,0.65,8.3000000000000007,null,0,0,null,0,0]
[null,"ACE-V",null,null,null,null,null,null,null,null,null,null,"ACE-V",null,null,null,null,null,null,null,null,null,null,null,null,"ace",0.45,0.7,10.1,null,0,0,null,0,0]
[null,"ACD-V",null,null,null,null,null,null,null,null,null,null,"ACD-V",null,null,null,null,null,null,null,null,null,null,null,null,"acd",0.6,0.7,10.1,null,0,0,null,0,0]
[null,null,null,null,null,null,null,null,null,null,null,null,null,null,null,null,null,null,null,null,null,null,null,null,null,null,null,null,null,null,0,0,null,0,0]
[null,null,null,null,null,null,null,null,null,null,null,null,null,null,null,null,null,null,null,null,null,null,null,null,null,null,null,null,null,null,0,0,null,0,0]
[null,"DH-100A",null,null,null,null,null,null,null,null,null,null,"DH-100",null,null,null,null,null,null,null,null,null,null,null,null,"dh100",0.45,0.75,10.1,null,0,0,null,0,0,null,2,{"$f":"F21*AK21","v":0},{"$f":"Q21*AK21","v":0}]
[null,"DH-99",null,null,null,null,null,null,null,null,null,null,"DH-99",null,null,null,null,null,null,null,null,null,null,null,null,"dh99",0.45,0.75,10.1,null,0,0,null,0,0,null,2,{"$f":"F22*AK22","v":0},{"$f":"Q22*AK22","v":0}]
[null,"DH-98",null,null,null,null,null,null,null,null,null,null,"DH-98",null,null,null,null,null,null,null,null,null,null,null,null,"dh98",0.45,0.75,10.1,null,0,0,null,0,0,null,2,0,0]
[null,"AMS",null,null,null,null,null,null,null,null,null,null,"AMS",null,null,null,null,null,null,null,null,null,null,null,null,"ams",0.45,0.75,5.2,null,0,0,null,0,0,null,null,null,0]
[null,"CZM",null,null,null,null,null,null,null,null,null,null,"CZM",null,null,null,null,null,null,null,null,null,null,null,null,"czm",0.45,0.75,4.3,null,0,0,null,0,0,null,null,null,0]
[null,"FRCME",null,null,null,null,null,null,null,null,null,null,"FRCME",null,null,null,null,null,null,null,null,null,null,null,null,"frcme",0.6,0.95,0.95,null,0,0,null,0,0,null,null,null,0]
[null,"FRCMA",null,null,null,null,null,null,null,null,null,null,"FRCMA",null,null,null,null,null,null,null,null,null,null,null,null,"frcma",0.65,1,5.0999999999999996,null,0,0,null,0,0,null,null,null,0]
[null,"FRCMA-I",null,null,null,null,null,null,null,null,null,null,"FRCMA-I",null,null,null,null,null,null,null,null,null,null,null,null,"frcma-i",0.8,1.1000000000000001,5.0999999999999996,null,0,0,null,0,0,null,null,null,0]
[null,"FRCME-M",null,null,null,null,null,null,null,null,null,null,"FRCME-M",null,null,null,null,null,null,null,null,null,null,null,null,"frcme-m",0.6,0.9,0.95,null,0,0,null,0,0,null,null,null,0]
[null,"FRCME-P",null,null,null,null,null,null,null,null,null,null,"FRCME-P",null,null,null,null,null,null,null,null,null,null,null,null,"frcme-p",0.6,0.9,0.95,null,0,0,null,0,0,null,null,null,0]
[null,"DIMM",null,null,null,null,null,null,null,null,null,null,"DIMM",null,null,null,null,null,null,null,null,null,null,null,null,"dimm",1.05,1.1000000000000001,5.2,null,0,0,null,0,0,null,3,{"$f":"F31*AK31","v":0},0]
[null,"R2M",null,null,null,null,null,null,null,null,null,null,"R2M",null,null,null,null,null,null,null,null,null,null,null,null,"r2m",0.4,0.4,0.4,null,0,0,null,0,0,null,3,{"$f":"F32*AK32","v":0},0]
[null,"R2M-L",null,null,null,null,null,null,null,null,null,null,"R2M-L",null,null,null,null,null,null,null,null,null,null,null,null,"r2ml",0.55000000000000004,0.85,0.85,null,0,0,null,0,0,null,3,0,0]
[null,"R2M-LI",null,null,null,null,null,null,null,null,null,null,"R2M-LI",null,null,null,null,null,null,null,null,null,null,null,null,"r2mli",0.55000000000000004,0.85,0.85,null,0,0,null,0,0,null,3,0,0]
[null,"R2M-H",null,null,null,null,null,null,null,null,null,null,"R2M-H",null,null,null,null,null,null,null,null,null,null,null,null,"r2mh",0.55000000000000004,0.85,0.85,null,0,0,null,0,0,null,3,0,0]
[null,"R2M-HI",null,null,null,null,null,null,null,null,null,null,"R2M-HI",null,null,null,null,null,null,null,null,null,null,null,null,"r2mhi",0.55000000000000004,0.85,0.85,null,0,0,null,0,0,null,3,0,0]
[null,"SOM",null,null,null,null,null,null,null,null,null,null,"SOM",null,null,null,null,null,null,null,null,null,null,null,null,"som",0.2,0.15,0.15,null,0,0,null,0,0,null,2,0,0]
[null,"SOM-A",null,null,null,null,null,null,null,null,null,null,"SOM-A",null,null,null,null,null,null,null,null,null,null,null,null,"soma",0.45,0.8,0.8,null,0,0,null,0,0,null,2,0,0]
[null,"SOM-AI",null,null,null,null,null,null,null,null,null,null,"SOM-AI",null,null,null,null,null,null,null,null,null,null,null,null,"somai",0.45,0.8,0.8,null,0,0,null,0,0,null,2,0,0]
[null,"ASB/ASB7",null,null,null,null,null,null,null,null,null,null,"ASB/ASB7",null,null,null,null,null,null,null,null,null,null,null,null,"asb",0.12,0.12,0.12,null,0,0,null,0,0,null,null,null,0]
[null,"ASBL/ASBL7",null,null,null,null,null,null,null,null,null,null,"ASBL/ASBL7",null,null,null,null,null,null,null,null,null,null,null,null,"asbl",0.4,0.65,0.65,null,0,0,null,0,0,null,null,null,0]
[null,"MIOM (all)",null,null,null,null,null,null,null,null,null,null,"MIOM (all)",null,null,null,null,null,null,null,null,null,null,null,null,"miom",1.05,1.1000000000000001,4.3,null,0,0,null,0,0,null,7,0,0]
[null,"CLIM1",null,null,null,null,null,null,null,null,null,null,"CLIM1",null,null,null,null,null,null,null,null,null,null,null,null,"clim1",0.5,6,6,null,0,0,null,0,0,null,6,0,0]
[null,"CLIM2",null,null,null,null,null,null,null,null,null,null,"CLIM2",null,null,null,null,null,null,null,null,null,null,null,null,"clim2",0.55000000000000004,6,6,null,0,0,null,0,0,null,11,0,0]
[null,"SCI Module",null,null,null,null,null,null,null,null,null,null,"SCI Module",null,null,null,null,null,null,null,null,null,null,null,null,"sci",0.3,10,10,null,0,{"$f":"IF(F45>0,20,0)","v":0},null,0,{"$f":"IF(Q45>0,20,0)","v":0}]
[null,"SCI-B4 / -B6",null,null,null,null,null,null,null,null,null,null,"SCI-B4 / -B6",null,null,null,null,null,null,null,null,null,null,null,null,"sci bases",0.3,10,10,null,0,{"$f":"IF(F46>0,20,0)","v":0},null,0,{"$f":"IF(Q46>0,20,0)","v":0}]
[]
[]
[]
[null,null,null,null,null,null,null,null,null,null,null,null,null,null,null,null,null,null,null,null,null,null,null,null,null,null,null,null,null,null,null,null,null,null,null,null,null,"SLC1","SLC2","<- total subaddresses"]
[null,null,null,null,null,null,null,null,null,null,null,null,null,null,null,null,null,null,null,null,null,null,null,null,null,null,"SLC5 total",{"$f":"F52","v":0},"SLC6 total",{"$f":"Q52","v":0},{"$f":"SUM(AE9:AE49)","v":0},{"$f":"IF(SUM(AF9:AF49)=0,0,SUM(AF9:AF49)+0.8)","v":0},null,{"$f":"SUM(AH9:AH49)","v":0},{"$f":"IF(SUM(AI9:AI49)=0,0,SUM(AI9:AI49)+0.8)","v":0},null,null,{"$f":"SUM(AL15:AL44)","v":0},{"$f":"SUM(AM15:AM44)","v":0}]
[null,"Device Total - ",null,null,null,{"$f":"SUM(F9:H39,F42,F43,F44)","v":0},null,null,null,null,null,null,"Device Total - ",null,null,null,{"$f":"SUM(Q9:S39,Q42,Q43,Q44)","v":0}]
[]
[null,"Total Bases - ",null,null,null,{"$f":"SUM(F40,F41,F46)","v":0},null,null,null,null,null,null,"Total Bases - ",null,null,null,{"$f":"SUM(Q40,Q41,Q46)","v":0},null,null,null,null,null,null,null,null,null,"SLC5",null,"SLC6"]
[null,null,null,null,null,null,null,null,null,null,null,null,null,null,null,null,null,null,null,null,null,null,null,null,null,"total detectors",{"$f":"SUM(F9:H18)","v":0},null,{"$f":"SUM(Q9:S18)","v":0}]
[null,{"$f":"IF(AA56>AA55,\"You have more Sounder Bases/SCI Bases than Detectors on SLC 5!\",\"\")","v":""},null,null,null,null,null,null,null,null,null,null,null,null,null,null,null,null,null,null,null,null,null,null,null,"total bases",{"$f":"F54","v":0},null,{"$f":"Q54","v":0}]
[null,{"$f":"IF(AC56>AC55,\"You have more Sounder Bases/SCI Bases than Detectors on SLC 6!\",\"\")","v":""},null,null,null,null,null,null,null,null,null,null,null,null,null,null,null,null,null,null,null,null,null,null,null,"total device count",{"$f":"F52","v":0},null,{"$f":"Q52","v":0}]
[null,{"$f":"IF(F52>127,\"You have exceeded 127 Devices on SLC 5!\",\"\")","v":""}]
[null,{"$f":"IF(Q52>127,\"You have exceeded 127 Devices on SLC 6!\",\"\")","v":""}]
[null,{"$f":"IF(AL51>400,\"You have exceeded 400 sub-addresses on SLC 5!\",\"\")","v":""}]
[null,{"$f":"IF(AM51>400,\"You have exceeded 400 sub-addresses on SLC 6!\",\"\")","v":""}]

{"sheet":"SLC7_and_SLC8","index":5,"n_rows":61,"n_cols":40,"rows_kept":61,"cut":false,"hidden":false,"merged":[[51,1,51,4],[51,5,51,7],[51,12,51,15],[51,16,51,18],[53,1,53,4],[53,5,53,7],[53,12,53,15],[53,16,53,18],[49,1,49,3],[49,5,49,7],[49,12,49,14],[49,16,49,18],[50,1,50,3],[50,5,50,7],[50,12,50,14],[50,16,50,18],[47,1,47,3],[47,5,47,7],[47,12,47,14],[47,16,47,18],[48,1,48,3],[48,5,48,7],[48,12,48,14],[48,16,48,18],[45,1,45,3],[45,5,45,7],[45,12,45,14],[45,16,45,18],[46,1,46,3],[46,5,46,7],[46,12,46,14],[46,16,46,18],[43,1,43,3],[43,5,43,7],[43,12,43,14],[43,16,43,18],[44,1,44,3],[44,5,44,7],[44,12,44,14],[44,16,44,18],[41,1,41,3],[41,5,41,7],[41,12,41,14],[41,16,41,18],[42,1,42,3],[42,5,42,7],[42,12,42,14],[42,16,42,18],[39,1,39,3],[39,5,39,7],[39,12,39,14],[39,16,39,18],[40,1,40,3],[40,5,40,7],[40,12,40,14],[40,16,40,18],[37,1,37,3],[37,5,37,7],[37,12,37,14],[37,16,37,18],[38,1,38,3],[38,5,38,7],[38,12,38,14],[38,16,38,18],[35,1,35,3],[35,5,35,7],[35,12,35,14],[35,16,35,18],[36,1,36,3],[36,5,36,7],[36,12,36,14],[36,16,36,18],[33,1,33,3],[33,5,33,7],[33,12,33,14],[33,16,33,18],[34,1,34,3],[34,5,34,7],[34,12,34,14],[34,16,34,18],[31,1,31,3],[31,5,31,7],[31,12,31,14],[31,16,31,18],[32,1,32,3],[32,5,32,7],[32,12,32,14],[32,16,32,18],[29,1,29,3],[29,5,29,7],[29,12,29,14],[29,16,29,18],[30,1,30,3],[30,5,30,7],[30,12,30,14],[30,16,30,18],[27,1,27,3],[27,5,27,7],[27,12,27,14],[27,16,27,18],[28,1,28,3],[28,5,28,7],[28,12,28,14],[28,16,28,18],[25,1,25,3],[25,5,25,7],[25,12,25,14],[25,16,25,18],[26,1,26,3],[26,5,26,7],[26,12,26,14],[26,16,26,18],[23,1,23,3],[23,5,23,7],[23,12,23,14],[23,16,23,18],[24,1,24,3],[24,5,24,7],[24,12,24,14],[24,16,24,18],[21,1,21,3],[21,5,21,7],[21,12,21,14],[21,16,21,18],[22,1,22,3],[22,5,22,7],[22,12,22,14],[22,16,22,18],[18,16,18,18],[19,16,19,18],[20,1,20,3],[20,5,20,7],[20,12,20,14],[20,16,20,18],[16,1,16,3],[16,5,16,7],[16,12,16,14],[16,16,16,18],[17,1,17,3],[17,5,17,7],[17,12,17,14],[17,16,17,18],[14,1,14,3],[14,5,14,7],[14,12,14,14],[14,16,14,18],[15,1,15,3],[15,5,15,7],[15,12,15,14],[15,16,15,18],[12,1,12,3],[12,5,12,7],[12,12,12,14],[12,16,12,18],[13,1,13,3],[13,5,13,7],[13,12,13,14],[13,16,13,18],[11,1,11,3],[11,5,11,7],[11,12,11,14],[11,16,11,18],[8,1,8,3],[8,5,8,7],[8,12,8,14],[8,16,8,18],[9,1,9,3],[9,5,9,7],[9,12,9,14],[9,16,9,18],[1,1,1,8],[3,1,3,7],[6,1,6,7],[6,12,6,18],[7,1,7,3],[7,5,7,7],[7,12,7,14],[7,16,7,18],[10,1,10,3],[10,5,10,7],[10,12,10,14],[10,16,10,18]]}
[]
[null,"Devices for SLC 7 and SLC 8"]
[]
[null,{"$f":"Calcs!F8","v":"Latitude"},null,null,null,null,null,null,null,null,null,null,null,null,null,null,null,null,null,null,null,null,null,null,null,null,null,"all current in milliamps"]
[]
[]
[null,"SLC 7",null,null,null,null,null,null,null,null,null,null,"SLC 8",null,null,null,null,null,null,null,null,null,null,null,null,null,"standby","alarm","Maximum",null,"standby","alarm",null,"standby ","alarm",null,"sub-addresses"]
[null,"Device Type",null,null,null,"Quantity",null,null,null,null,null,null,"Device Type",null,null,null,"Quantity",null,null,null,null,null,null,null,null,null,"current","current","current",null,"SLC7total","SLC7total",null,"SLC8total","SLC8total",null,"SLC7",null,"SLC8"]
[null,"ALO-V",null,null,null,null,null,null,null,null,null,null,"ALO-V",null,null,null,null,null,null,null,null,null,null,null,null,"alo",0.34,0.34,8.5,null,{"$f":"F9*AA9","v":0},{"$f":"F9*AB9","v":0},null,{"$f":"Q9*AA9","v":0},{"$f":"Q9*AB9","v":0}]
[null,"ALN-V",null,null,null,null,null,null,null,null,null,null,"ALN-V",null,null,null,null,null,null,null,null,null,null,null,null,"aln",0.45,0.7,9.6,null,{"$f":"F10*AA10","v":0},{"$f":"F10*AB10","v":0},null,{"$f":"Q10*AA10","v":0},{"$f":"Q10*AB10","v":0}]
[null,"ALK-V",null,null,null,null,null,null,null,null,null,null,"ALK-V",null,null,null,null,null,null,null,null,null,null,null,null,"alk",0.4,10.1,10.1,null,0,0,null,0,0]
[null,"ALG-V",null,null,null,null,null,null,null,null,null,null,"ALG-V",null,null,null,null,null,null,null,null,null,null,null,null,"alg",0.4,0.54,17.100000000000001,null,0,0,null,0,0]
[null,"ATJ-EA",null,null,null,null,null,null,null,null,null,null,"ATJ-EA",null,null,null,null,null,null,null,null,null,null,null,null,"atj",0.35,0.35,17.100000000000001,null,0,0,null,0,0]
[null,"ATG-EA",null,null,null,null,null,null,null,null,null,null,"ATG-EA",null,null,null,null,null,null,null,null,null,null,null,null,"atg",0.5,0.8,10.1,null,0,0,null,0,0]
[null,"ACA-V",null,null,null,null,null,null,null,null,null,null,"ACA-V",null,null,null,null,null,null,null,null,null,null,null,null,"aca",0.45,0.6,19.100000000000001,null,0,0,null,0,0]
[null,"ACC-V",null,null,null,null,null,null,null,null,null,null,"ACC-V",null,null,null,null,null,null,null,null,null,null,null,null,"acc",0.45,0.65,8.3000000000000007,null,0,0,null,0,0]
[null,"ACE-V",null,null,null,null,null,null,null,null,null,null,"ACE-V",null,null,null,null,null,null,null,null,null,null,null,null,"ace",0.45,0.7,10.1,null,0,0,null,0,0]
[null,"ACD-V",null,null,null,null,null,null,null,null,null,null,"ACD-V",null,null,null,null,null,null,null,null,null,null,null,null,"acd",0.6,0.7,10.1,null,0,0,null,0,0]
[null,null,null,null,null,null,null,null,null,null,null,null,null,null,null,null,null,null,null,null,null,null,null,null,null,null,null,null,null,null,0,0,null,0,0]
[null,null,null,null,null,null,null,null,null,null,null,null,null,null,null,null,null,null,null,null,null,null,null,null,null,null,null,null,null,null,0,0,null,0,0]
[null,"DH-100A",null,null,null,null,null,null,null,null,null,null,"DH-100",null,null,null,null,null,null,null,null,null,null,null,null,"dh100",0.45,0.75,10.1,null,0,0,null,0,0,null,2,{"$f":"F21*AK21","v":0},{"$f":"Q21*AK21","v":0}]
[null,"DH-99",null,null,null,null,null,null,null,null,null,null,"DH-99",null,null,null,null,null,null,null,null,null,null,null,null,"dh99",0.45,0.75,10.1,null,0,0,null,0,0,null,2,{"$f":"F22*AK22","v":0},{"$f":"Q22*AK22","v":0}]
[null,"DH-98",null,null,null,null,null,null,null,null,null,null,"DH-98",null,null,null,null,null,null,null,null,null,null,null,null,"dh98",0.45,0.75,10.1,null,0,0,null,0,0,null,2,0,0]
[null,"AMS",null,null,null,null,null,null,null,null,null,null,"AMS",null,null,null,null,null,null,null,null,null,null,null,null,"ams",0.45,0.75,5.2,null,0,0,null,0,0,null,null,null,0]
[null,"CZM",null,null,null,null,null,null,null,null,null,null,"CZM",null,null,null,null,null,null,null,null,null,null,null,null,"czm",0.45,0.75,4.3,null,0,0,null,0,0,null,null,null,0]
[null,"FRCME",null,null,null,null,null,null,null,null,null,null,"FRCME",null,null,null,null,null,null,null,null,null,null,null,null,"frcme",0.6,0.95,0.95,null,0,0,null,0,0,null,null,null,0]
[null,"FRCMA",null,null,null,null,null,null,null,null,null,null,"FRCMA",null,null,null,null,null,null,null,null,null,null,null,null,"frcma",0.65,1,5.0999999999999996,null,0,0,null,0,0,null,null,null,0]
[null,"FRCMA-I",null,null,null,null,null,null,null,null,null,null,"FRCMA-I",null,null,null,null,null,null,null,null,null,null,null,null,"frcma-i",0.8,1.1000000000000001,5.0999999999999996,null,0,0,null,0,0,null,null,null,0]
[null,"FRCME-M",null,null,null,null,null,null,null,null,null,null,"FRCME-M",null,null,null,null,null,null,null,null,null,null,null,null,"frcme-m",0.6,0.9,0.95,null,0,0,null,0,0,null,null,null,0]
[null,"FRCME-P",null,null,null,null,null,null,null,null,null,null,"FRCME-P",null,null,null,null,null,null,null,null,null,null,null,null,"frcme-p",0.6,0.9,0.95,null,0,0,null,0,0,null,null,null,0]
[null,"DIMM",null,null,null,null,null,null,null,null,null,null,"DIMM",null,null,null,null,null,null,null,null,null,null,null,null,"dimm",1.05,1.1000000000000001,5.2,null,0,0,null,0,0,null,3,{"$f":"F31*AK31","v":0},0]
[null,"R2M",null,null,null,null,null,null,null,null,null,null,"R2M",null,null,null,null,null,null,null,null,null,null,null,null,"r2m",0.4,0.4,0.4,null,0,0,null,0,0,null,3,{"$f":"F32*AK32","v":0},0]
[null,"R2M-L",null,null,null,null,null,null,null,null,null,null,"R2M-L",null,null,null,null,null,null,null,null,null,null,null,null,"r2ml",0.55000000000000004,0.85,0.85,null,0,0,null,0,0,null,3,0,0]
[null,"R2M-LI",null,null,null,null,null,null,null,null,null,null,"R2M-LI",null,null,null,null,null,null,null,null,null,null,null,null,"r2mli",0.55000000000000004,0.85,0.85,null,0,0,null,0,0,null,3,0,0]
[null,"R2M-H",null,null,null,null,null,null,null,null,null,null,"R2M-H",null,null,null,null,null,null,null,null,null,null,null,null,"r2mh",0.55000000000000004,0.85,0.85,null,0,0,null,0,0,null,3,0,0]
[null,"R2M-HI",null,null,null,null,null,null,null,null,null,null,"R2M-HI",null,null,null,null,null,null,null,null,null,null,null,null,"r2mhi",0.55000000000000004,0.85,0.85,null,0,0,null,0,0,null,3,0,0]
[null,"SOM",null,null,null,null,null,null,null,null,null,null,"SOM",null,null,null,null,null,null,null,null,null,null,null,null,"som",0.2,0.15,0.15,null,0,0,null,0,0,null,2,0,0]
[null,"SOM-A",null,null,null,null,null,null,null,null,null,null,"SOM-A",null,null,null,null,null,null,null,null,null,null,null,null,"soma",0.45,0.8,0.8,null,0,0,null,0,0,null,2,0,0]
[null,"SOM-AI",null,null,null,null,null,null,null,null,null,null,"SOM-AI",null,null,null,null,null,null,null,null,null,null,null,null,"somai",0.45,0.8,0.8,null,0,0,null,0,0,null,2,0,0]
[null,"ASB/ASB7",null,null,null,null,null,null,null,null,null,null,"ASB/ASB7",null,null,null,null,null,null,null,null,null,null,null,null,"asb",0.12,0.12,0.12,null,0,0,null,0,0,null,null,null,0]
[null,"ASBL/ASBL7",null,null,null,null,null,null,null,null,null,null,"ASBL/ASBL7",null,null,null,null,null,null,null,null,null,null,null,null,"asbl",0.4,0.65,0.65,null,0,0,null,0,0,null,null,null,0]
[null,"MIOM (all)",null,null,null,null,null,null,null,null,null,null,"MIOM (all)",null,null,null,null,null,null,null,null,null,null,null,null,"miom",1.05,1.1000000000000001,4.3,null,0,0,null,0,0,null,7,0,0]
[null,"CLIM1",null,null,null,null,null,null,null,null,null,null,"CLIM1",null,null,null,null,null,null,null,null,null,null,null,null,"clim1",0.5,6,6,null,0,0,null,0,0,null,6,0,0]
[null,"CLIM2",null,null,null,null,null,null,null,null,null,null,"CLIM2",null,null,null,null,null,null,null,null,null,null,null,null,"clim2",0.55000000000000004,6,6,null,0,0,null,0,0,null,11,0,0]
[null,"SCI Module",null,null,null,null,null,null,null,null,null,null,"SCI Module",null,null,null,null,null,null,null,null,null,null,null,null,"sci",0.3,10,10,null,0,{"$f":"IF(F45>0,20,0)","v":0},null,0,{"$f":"IF(Q45>0,20,0)","v":0}]
[null,"SCI-B4 / -B6",null,null,null,null,null,null,null,null,null,null,"SCI-B4 / -B6",null,null,null,null,null,null,null,null,null,null,null,null,"sci bases",0.3,10,10,null,0,{"$f":"IF(F46>0,20,0)","v":0},null,0,{"$f":"IF(Q46>0,20,0)","v":0}]
[]
[]
[]
[null,null,null,null,null,null,null,null,null,null,null,null,null,null,null,null,null,null,null,null,null,null,null,null,null,null,null,null,null,null,null,null,null,null,null,null,null,"SLC1","SLC2","<- total subaddresses"]
[null,null,null,null,null,null,null,null,null,null,null,null,null,null,null,null,null,null,null,null,null,null,null,null,null,null,"SLC7 total",{"$f":"F52","v":0},"SLC8 total",{"$f":"Q52","v":0},{"$f":"SUM(AE9:AE49)","v":0},{"$f":"IF(SUM(AF9:AF49)=0,0,SUM(AF9:AF49)+0.8)","v":0},null,{"$f":"SUM(AH9:AH49)","v":0},{"$f":"IF(SUM(AI9:AI49)=0,0,SUM(AI9:AI49)+0.8)","v":0},null,null,{"$f":"SUM(AL15:AL44)","v":0},{"$f":"SUM(AM15:AM44)","v":0}]
[null,"Device Total - ",null,null,null,{"$f":"SUM(F9:H39,F42,F43,F44)","v":0},null,null,null,null,null,null,"Device Total - ",null,null,null,{"$f":"SUM(Q9:S39,Q42,Q43,Q44)","v":0}]
[]
[null,"Total Bases - ",null,null,null,{"$f":"SUM(F40,F41,F46)","v":0},null,null,null,null,null,null,"Total Bases - ",null,null,null,{"$f":"SUM(Q40,Q41,Q46)","v":0},null,null,null,null,null,null,null,null,null,"SLC7",null,"SLC8"]
[null,null,null,null,null,null,null,null,null,null,null,null,null,null,null,null,null,null,null,null,null,null,null,null,null,"total detectors",{"$f":"SUM(F9:H18)","v":0},null,{"$f":"SUM(Q9:S18)","v":0}]
[null,{"$f":"IF(AA56>AA55,\"You have more Sounder Bases/SCI Bases than Detectors on SLC 7!\",\"\")","v":""},null,null,null,null,null,null,null,null,null,null,null,null,null,null,null,null,null,null,null,null,null,null,null,"total bases",{"$f":"F54","v":0},null,{"$f":"Q54","v":0}]
[null,{"$f":"IF(AC56>AC55,\"You have more Sounder Bases/SCI Bases than Detectors on SLC 8!\",\"\")","v":""},null,null,null,null,null,null,null,null,null,null,null,null,null,null,null,null,null,null,null,null,null,null,null,"total device count",{"$f":"F52","v":0},null,{"$f":"Q52","v":0}]
[null,{"$f":"IF(F52>127,\"You have exceeded 127 Devices on SLC 7!\",\"\")","v":""}]
[null,{"$f":"IF(Q52>127,\"You have exceeded 127 Devices on SLC 8!\",\"\")","v":""}]
[null,{"$f":"IF(AL51>400,\"You have exceeded 400 sub-addresses on SLC 7!\",\"\")","v":""}]
[null,{"$f":"IF(AM51>400,\"You have exceeded 400 sub-addresses on SLC 8!\",\"\")","v":""}]

{"sheet":"SLC9_and_SLC10","index":6,"n_rows":61,"n_cols":40,"rows_kept":61,"cut":false,"hidden":false,"merged":[[51,1,51,4],[51,5,51,7],[51,12,51,15],[51,16,51,18],[53,1,53,4],[53,5,53,7],[53,12,53,15],[53,16,53,18],[49,1,49,3],[49,5,49,7],[49,12,49,14],[49,16,49,18],[50,1,50,3],[50,5,50,7],[50,12,50,14],[50,16,50,18],[47,1,47,3],[47,5,47,7],[47,12,47,14],[47,16,47,18],[48,1,48,3],[48,5,48,7],[48,12,48,14],[48,16,48,18],[45,1,45,3],[45,5,45,7],[45,12,45,14],[45,16,45,18],[46,1,46,3],[46,5,46,7],[46,12,46,14],[46,16,46,18],[43,1,43,3],[43,5,43,7],[43,12,43,14],[43,16,43,18],[44,1,44,3],[44,5,44,7],[44,12,44,14],[44,16,44,18],[41,1,41,3],[41,5,41,7],[41,12,41,14],[41,16,41,18],[42,1,42,3],[42,5,42,7],[42,12,42,14],[42,16,42,18],[39,1,39,3],[39,5,39,7],[39,12,39,14],[39,16,39,18],[40,1,40,3],[40,5,40,7],[40,12,40,14],[40,16,40,18],[37,1,37,3],[37,5,37,7],[37,12,37,14],[37,16,37,18],[38,1,38,3],[38,5,38,7],[38,12,38,14],[38,16,38,18],[35,1,35,3],[35,5,35,7],[35,12,35,14],[35,16,35,18],[36,1,36,3],[36,5,36,7],[36,12,36,14],[36,16,36,18],[33,1,33,3],[33,5,33,7],[33,12,33,14],[33,16,33,18],[34,1,34,3],[34,5,34,7],[34,12,34,14],[34,16,34,18],[31,1,31,3],[31,5,31,7],[31,12,31,14],[31,16,31,18],[32,1,32,3],[32,5,32,7],[32,12,32,14],[32,16,32,18],[29,1,29,3],[29,5,29,7],[29,12,29,14],[29,16,29,18],[30,1,30,3],[30,5,30,7],[30,12,30,14],[30,16,30,18],[27,1,27,3],[27,5,27,7],[27,12,27,14],[27,16,27,18],[28,1,28,3],[28,5,28,7],[28,12,28,14],[28,16,28,18],[25,1,25,3],[25,5,25,7],[25,12,25,14],[25,16,25,18],[26,1,26,3],[26,5,26,7],[26,12,26,14],[26,16,26,18],[23,1,23,3],[23,5,23,7],[23,12,23,14],[23,16,23,18],[24,1,24,3],[24,5,24,7],[24,12,24,14],[24,16,24,18],[21,1,21,3],[21,5,21,7],[21,12,21,14],[21,16,21,18],[22,1,22,3],[22,5,22,7],[22,12,22,14],[22,16,22,18],[18,16,18,18],[19,16,19,18],[20,1,20,3],[20,5,20,7],[20,12,20,14],[20,16,20,18],[16,1,16,3],[16,5,16,7],[16,12,16,14],[16,16,16,18],[17,1,17,3],[17,5,17,7],[17,12,17,14],[17,16,17,18],[14,1,14,3],[14,5,14,7],[14,12,14,14],[14,16,14,18],[15,1,15,3],[15,5,15,7],[15,12,15,14],[15,16,15,18],[12,1,12,3],[12,5,12,7],[12,12,12,14],[12,16,12,18],[13,1,13,3],[13,5,13,7],[13,12,13,14],[13,16,13,18],[11,1,11,3],[11,5,11,7],[11,12,11,14],[11,16,11,18],[8,1,8,3],[8,5,8,7],[8,12,8,14],[8,16,8,18],[9,1,9,3],[9,5,9,7],[9,12,9,14],[9,16,9,18],[1,1,1,8],[3,1,3,7],[6,1,6,7],[6,12,6,18],[7,1,7,3],[7,5,7,7],[7,12,7,14],[7,16,7,18],[10,1,10,3],[10,5,10,7],[10,12,10,14],[10,16,10,18]]}
[]
[null,"Devices for SLC 9 and SLC 10"]
[]
[null,{"$f":"Calcs!F8","v":"Latitude"},null,null,null,null,null,null,null,null,null,null,null,null,null,null,null,null,null,null,null,null,null,null,null,null,null,"all current in milliamps"]
[]
[]
[null,"SLC 9",null,null,null,null,null,null,null,null,null,null,"SLC 10",null,null,null,null,null,null,null,null,null,null,null,null,null,"standby","alarm","Maximum",null,"standby","alarm",null,"standby ","alarm",null,"sub-addresses"]
[null,"Device Type",null,null,null,"Quantity",null,null,null,null,null,null,"Device Type",null,null,null,"Quantity",null,null,null,null,null,null,null,null,null,"current","current","current",null,"SLC9total","SLC9total",null,"SLC10total","SLC10total",null,"SLC9",null,"SLC10"]
[null,"ALO-V",null,null,null,null,null,null,null,null,null,null,"ALO-V",null,null,null,null,null,null,null,null,null,null,null,null,"alo",0.34,0.34,8.5,null,{"$f":"F9*AA9","v":0},{"$f":"F9*AB9","v":0},null,{"$f":"Q9*AA9","v":0},{"$f":"Q9*AB9","v":0}]
[null,"ALN-V",null,null,null,null,null,null,null,null,null,null,"ALN-V",null,null,null,null,null,null,null,null,null,null,null,null,"aln",0.45,0.7,9.6,null,{"$f":"F10*AA10","v":0},{"$f":"F10*AB10","v":0},null,{"$f":"Q10*AA10","v":0},{"$f":"Q10*AB10","v":0}]
[null,"ALK-V",null,null,null,null,null,null,null,null,null,null,"ALK-V",null,null,null,null,null,null,null,null,null,null,null,null,"alk",0.4,10.1,10.1,null,0,0,null,0,0]
[null,"ALG-V",null,null,null,null,null,null,null,null,null,null,"ALG-V",null,null,null,null,null,null,null,null,null,null,null,null,"alg",0.4,0.54,17.100000000000001,null,0,0,null,0,0]
[null,"ATJ-EA",null,null,null,null,null,null,null,null,null,null,"ATJ-EA",null,null,null,null,null,null,null,null,null,null,null,null,"atj",0.35,0.35,17.100000000000001,null,0,0,null,0,0]
[null,"ATG-EA",null,null,null,null,null,null,null,null,null,null,"ATG-EA",null,null,null,null,null,null,null,null,null,null,null,null,"atg",0.5,0.8,10.1,null,0,0,null,0,0]
[null,"ACA-V",null,null,null,null,null,null,null,null,null,null,"ACA-V",null,null,null,null,null,null,null,null,null,null,null,null,"aca",0.45,0.6,19.100000000000001,null,0,0,null,0,0]
[null,"ACC-V",null,null,null,null,null,null,null,null,null,null,"ACC-V",null,null,null,null,null,null,null,null,null,null,null,null,"acc",0.45,0.65,8.3000000000000007,null,0,0,null,0,0]
[null,"ACE-V",null,null,null,null,null,null,null,null,null,null,"ACE-V",null,null,null,null,null,null,null,null,null,null,null,null,"ace",0.45,0.7,10.1,null,0,0,null,0,0]
[null,"ACD-V",null,null,null,null,null,null,null,null,null,null,"ACD-V",null,null,null,null,null,null,null,null,null,null,null,null,"acd",0.6,0.7,10.1,null,0,0,null,0,0]
[null,null,null,null,null,null,null,null,null,null,null,null,null,null,null,null,null,null,null,null,null,null,null,null,null,null,null,null,null,null,0,0,null,0,0]
[null,null,null,null,null,null,null,null,null,null,null,null,null,null,null,null,null,null,null,null,null,null,null,null,null,null,null,null,null,null,0,0,null,0,0]
[null,"DH-100A",null,null,null,null,null,null,null,null,null,null,"DH-100",null,null,null,null,null,null,null,null,null,null,null,null,"dh100",0.45,0.75,10.1,null,0,0,null,0,0,null,2,{"$f":"F21*AK21","v":0},{"$f":"Q21*AK21","v":0}]
[null,"DH-99",null,null,null,null,null,null,null,null,null,null,"DH-99",null,null,null,null,null,null,null,null,null,null,null,null,"dh99",0.45,0.75,10.1,null,0,0,null,0,0,null,2,{"$f":"F22*AK22","v":0},{"$f":"Q22*AK22","v":0}]
[null,"DH-98",null,null,null,null,null,null,null,null,null,null,"DH-98",null,null,null,null,null,null,null,null,null,null,null,null,"dh98",0.45,0.75,10.1,null,0,0,null,0,0,null,2,0,0]
[null,"AMS",null,null,null,null,null,null,null,null,null,null,"AMS",null,null,null,null,null,null,null,null,null,null,null,null,"ams",0.45,0.75,5.2,null,0,0,null,0,0,null,null,null,0]
[null,"CZM",null,null,null,null,null,null,null,null,null,null,"CZM",null,null,null,null,null,null,null,null,null,null,null,null,"czm",0.45,0.75,4.3,null,0,0,null,0,0,null,null,null,0]
[null,"FRCME",null,null,null,null,null,null,null,null,null,null,"FRCME",null,null,null,null,null,null,null,null,null,null,null,null,"frcme",0.6,0.95,0.95,null,0,0,null,0,0,null,null,null,0]
[null,"FRCMA",null,null,null,null,null,null,null,null,null,null,"FRCMA",null,null,null,null,null,null,null,null,null,null,null,null,"frcma",0.65,1,5.0999999999999996,null,0,0,null,0,0,null,null,null,0]
[null,"FRCMA-I",null,null,null,null,null,null,null,null,null,null,"FRCMA-I",null,null,null,null,null,null,null,null,null,null,null,null,"frcma-i",0.8,1.1000000000000001,5.0999999999999996,null,0,0,null,0,0,null,null,null,0]
[null,"FRCME-M",null,null,null,null,null,null,null,null,null,null,"FRCME-M",null,null,null,null,null,null,null,null,null,null,null,null,"frcme-m",0.6,0.9,0.95,null,0,0,null,0,0,null,null,null,0]
[null,"FRCME-P",null,null,null,null,null,null,null,null,null,null,"FRCME-P",null,null,null,null,null,null,null,null,null,null,null,null,"frcme-p",0.6,0.9,0.95,null,0,0,null,0,0,null,null,null,0]
[null,"DIMM",null,null,null,null,null,null,null,null,null,null,"DIMM",null,null,null,null,null,null,null,null,null,null,null,null,"dimm",1.05,1.1000000000000001,5.2,null,0,0,null,0,0,null,3,{"$f":"F31*AK31","v":0},0]
[null,"R2M",null,null,null,null,null,null,null,null,null,null,"R2M",null,null,null,null,null,null,null,null,null,null,null,null,"r2m",0.4,0.4,0.4,null,0,0,null,0,0,null,3,{"$f":"F32*AK32","v":0},0]
[null,"R2M-L",null,null,null,null,null,null,null,null,null,null,"R2M-L",null,null,null,null,null,null,null,null,null,null,null,null,"r2ml",0.55000000000000004,0.85,0.85,null,0,0,null,0,0,null,3,0,0]
[null,"R2M-LI",null,null,null,null,null,null,null,null,null,null,"R2M-LI",null,null,null,null,null,null,null,null,null,null,null,null,"r2mli",0.55000000000000004,0.85,0.85,null,0,0,null,0,0,null,3,0,0]
[null,"R2M-H",null,null,null,null,null,null,null,null,null,null,"R2M-H",null,null,null,null,null,null,null,null,null,null,null,null,"r2mh",0.55000000000000004,0.85,0.85,null,0,0,null,0,0,null,3,0,0]
[null,"R2M-HI",null,null,null,null,null,null,null,null,null,null,"R2M-HI",null,null,null,null,null,null,null,null,null,null,null,null,"r2mhi",0.55000000000000004,0.85,0.85,null,0,0,null,0,0,null,3,0,0]
[null,"SOM",null,null,null,null,null,null,null,null,null,null,"SOM",null,null,null,null,null,null,null,null,null,null,null,null,"som",0.2,0.15,0.15,null,0,0,null,0,0,null,2,0,0]
[null,"SOM-A",null,null,null,null,null,null,null,null,null,null,"SOM-A",null,null,null,null,null,null,null,null,null,null,null,null,"soma",0.45,0.8,0.8,null,0,0,null,0,0,null,2,0,0]
[null,"SOM-AI",null,null,null,null,null,null,null,null,null,null,"SOM-AI",null,null,null,null,null,null,null,null,null,null,null,null,"somai",0.45,0.8,0.8,null,0,0,null,0,0,null,2,0,0]
[null,"ASB/ASB7",null,null,null,null,null,null,null,null,null,null,"ASB/ASB7",null,null,null,null,null,null,null,null,null,null,null,null,"asb",0.12,0.12,0.12,null,0,0,null,0,0,null,null,null,0]
[null,"ASBL/ASBL7",null,null,null,null,null,null,null,null,null,null,"ASBL/ASBL7",null,null,null,null,null,null,null,null,null,null,null,null,"asbl",0.4,0.65,0.65,null,0,0,null,0,0,null,null,null,0]
[null,"MIOM (all)",null,null,null,null,null,null,null,null,null,null,"MIOM (all)",null,null,null,null,null,null,null,null,null,null,null,null,"miom",1.05,1.1000000000000001,4.3,null,0,0,null,0,0,null,7,0,0]
[null,"CLIM1",null,null,null,null,null,null,null,null,null,null,"CLIM1",null,null,null,null,null,null,null,null,null,null,null,null,"clim1",0.5,6,6,null,0,0,null,0,0,null,6,0,0]
[null,"CLIM2",null,null,null,null,null,null,null,null,null,null,"CLIM2",null,null,null,null,null,null,null,null,null,null,null,null,"clim2",0.55000000000000004,6,6,null,0,0,null,0,0,null,11,0,0]
[null,"SCI Module",null,null,null,null,null,null,null,null,null,null,"SCI Module",null,null,null,null,null,null,null,null,null,null,null,null,"sci",0.3,10,10,null,0,{"$f":"IF(F45>0,20,0)","v":0},null,0,{"$f":"IF(Q45>0,20,0)","v":0}]
[null,"SCI-B4 / -B6",null,null,null,null,null,null,null,null,null,null,"SCI-B4 / -B6",null,null,null,null,null,null,null,null,null,null,null,null,"sci bases",0.3,10,10,null,0,{"$f":"IF(F46>0,20,0)","v":0},null,0,{"$f":"IF(Q46>0,20,0)","v":0}]
[]
[]
[]
[null,null,null,null,null,null,null,null,null,null,null,null,null,null,null,null,null,null,null,null,null,null,null,null,null,null,null,null,null,null,null,null,null,null,null,null,null,"SLC1","SLC2","<- total subaddresses"]
[null,null,null,null,null,null,null,null,null,null,null,null,null,null,null,null,null,null,null,null,null,null,null,null,null,null,"SLC9 total",{"$f":"F52","v":0},"SLC10 total",{"$f":"Q52","v":0},{"$f":"SUM(AE9:AE49)","v":0},{"$f":"IF(SUM(AF9:AF49)=0,0,SUM(AF9:AF49)+0.8)","v":0},null,{"$f":"SUM(AH9:AH49)","v":0},{"$f":"IF(SUM(AI9:AI49)=0,0,SUM(AI9:AI49)+0.8)","v":0},null,null,{"$f":"SUM(AL15:AL44)","v":0},{"$f":"SUM(AM15:AM44)","v":0}]
[null,"Device Total - ",null,null,null,{"$f":"SUM(F9:H39,F42,F43,F44)","v":0},null,null,null,null,null,null,"Device Total - ",null,null,null,{"$f":"SUM(Q9:S39,Q42,Q43,Q44)","v":0}]
[]
[null,"Total Bases - ",null,null,null,{"$f":"SUM(F40,F41,F46)","v":0},null,null,null,null,null,null,"Total Bases - ",null,null,null,{"$f":"SUM(Q40,Q41,Q46)","v":0},null,null,null,null,null,null,null,null,null,"SLC9",null,"SLC10"]
[null,null,null,null,null,null,null,null,null,null,null,null,null,null,null,null,null,null,null,null,null,null,null,null,null,"total detectors",{"$f":"SUM(F9:H18)","v":0},null,{"$f":"SUM(Q9:S18)","v":0}]
[null,{"$f":"IF(AA56>AA55,\"You have more Sounder Bases/SCI Bases than Detectors on SLC 9!\",\"\")","v":""},null,null,null,null,null,null,null,null,null,null,null,null,null,null,null,null,null,null,null,null,null,null,null,"total bases",{"$f":"F54","v":0},null,{"$f":"Q54","v":0}]
[null,{"$f":"IF(AC56>AC55,\"You have more Sounder Bases/SCI Bases than Detectors on SLC 10!\",\"\")","v":""},null,null,null,null,null,null,null,null,null,null,null,null,null,null,null,null,null,null,null,null,null,null,null,"total device count",{"$f":"F52","v":0},null,{"$f":"Q52","v":0}]
[null,{"$f":"IF(F52>127,\"You have exceeded 127 Devices on SLC 9!\",\"\")","v":""}]
[null,{"$f":"IF(Q52>127,\"You have exceeded 127 Devices on SLC 10!\",\"\")","v":""}]
[null,{"$f":"IF(AL51>400,\"You have exceeded 400 sub-addresses on SLC 9!\",\"\")","v":""}]
[null,{"$f":"IF(AM51>400,\"You have exceeded 400 sub-addresses on SLC 10!\",\"\")","v":""}]

{"sheet":"SLC11_and_SLC12","index":7,"n_rows":61,"n_cols":40,"rows_kept":61,"cut":false,"hidden":false,"merged":[[1,1,1,8],[3,1,3,7],[6,1,6,7],[6,12,6,18],[7,1,7,3],[7,5,7,7],[7,12,7,14],[7,16,7,18],[10,1,10,3],[10,5,10,7],[10,12,10,14],[10,16,10,18],[11,1,11,3],[11,5,11,7],[11,12,11,14],[11,16,11,18],[8,1,8,3],[8,5,8,7],[8,12,8,14],[8,16,8,18],[9,1,9,3],[9,5,9,7],[9,12,9,14],[9,16,9,18],[14,1,14,3],[14,5,14,7],[14,12,14,14],[14,16,14,18],[15,1,15,3],[15,5,15,7],[15,12,15,14],[15,16,15,18],[12,1,12,3],[12,5,12,7],[12,12,12,14],[12,16,12,18],[13,1,13,3],[13,5,13,7],[13,12,13,14],[13,16,13,18],[18,16,18,18],[19,16,19,18],[20,1,20,3],[20,5,20,7],[20,12,20,14],[20,16,20,18],[16,1,16,3],[16,5,16,7],[16,12,16,14],[16,16,16,18],[17,1,17,3],[17,5,17,7],[17,12,17,14],[17,16,17,18],[23,1,23,3],[23,5,23,7],[23,12,23,14],[23,16,23,18],[24,1,24,3],[24,5,24,7],[24,12,24,14],[24,16,24,18],[21,1,21,3],[21,5,21,7],[21,12,21,14],[21,16,21,18],[22,1,22,3],[22,5,22,7],[22,12,22,14],[22,16,22,18],[27,1,27,3],[27,5,27,7],[27,12,27,14],[27,16,27,18],[28,1,28,3],[28,5,28,7],[28,12,28,14],[28,16,28,18],[25,1,25,3],[25,5,25,7],[25,12,25,14],[25,16,25,18],[26,1,26,3],[26,5,26,7],[26,12,26,14],[26,16,26,18],[31,1,31,3],[31,5,31,7],[31,12,31,14],[31,16,31,18],[32,1,32,3],[32,5,32,7],[32,12,32,14],[32,16,32,18],[29,1,29,3],[29,5,29,7],[29,12,29,14],[29,16,29,18],[30,1,30,3],[30,5,30,7],[30,12,30,14],[30,16,30,18],[35,1,35,3],[35,5,35,7],[35,12,35,14],[35,16,35,18],[36,1,36,3],[36,5,36,7],[36,12,36,14],[36,16,36,18],[33,1,33,3],[33,5,33,7],[33,12,33,14],[33,16,33,18],[34,1,34,3],[34,5,34,7],[34,12,34,14],[34,16,34,18],[39,1,39,3],[39,5,39,7],[39,12,39,14],[39,16,39,18],[40,1,40,3],[40,5,40,7],[40,12,40,14],[40,16,40,18],[37,1,37,3],[37,5,37,7],[37,12,37,14],[37,16,37,18],[38,1,38,3],[38,5,38,7],[38,12,38,14],[38,16,38,18],[43,1,43,3],[43,5,43,7],[43,12,43,14],[43,16,43,18],[44,1,44,3],[44,5,44,7],[44,12,44,14],[44,16,44,18],[41,1,41,3],[41,5,41,7],[41,12,41,14],[41,16,41,18],[42,1,42,3],[42,5,42,7],[42,12,42,14],[42,16,42,18],[47,1,47,3],[47,5,47,7],[47,12,47,14],[47,16,47,18],[48,1,48,3],[48,5,48,7],[48,12,48,14],[48,16,48,18],[45,1,45,3],[45,5,45,7],[45,12,45,14],[45,16,45,18],[46,1,46,3],[46,5,46,7],[46,12,46,14],[46,16,46,18],[51,1,51,4],[51,5,51,7],[51,12,51,15],[51,16,51,18],[53,1,53,4],[53,5,53,7],[53,12,53,15],[53,16,53,18],[49,1,49,3],[49,5,49,7],[49,12,49,14],[49,16,49,18],[50,1,50,3],[50,5,50,7],[50,12,50,14],[50,16,50,18]]}
[]
[null,"Devices for SLC 11 and SLC 12"]
[]
[null,{"$f":"Calcs!F8","v":"Latitude"},null,null,null,null,null,null,null,null,null,null,null,null,null,null,null,null,null,null,null,null,null,null,null,null,null,"all current in milliamps"]
[]
[]
[null,"SLC 11",null,null,null,null,null,null,null,null,null,null,"SLC 12",null,null,null,null,null,null,null,null,null,null,null,null,null,"standby","alarm","Maximum",null,"standby","alarm",null,"standby ","alarm",null,"sub-addresses"]
[null,"Device Type",null,null,null,"Quantity",null,null,null,null,null,null,"Device Type",null,null,null,"Quantity",null,null,null,null,null,null,null,null,null,"current","current","current",null,"SLC11total","SLC11total",null,"SLC12total","SLC12total",null,"SLC11",null,"SLC12"]
[null,"ALO-V",null,null,null,null,null,null,null,null,null,null,"ALO-V",null,null,null,null,null,null,null,null,null,null,null,null,"alo",0.34,0.34,8.5,null,{"$f":"F9*AA9","v":0},{"$f":"F9*AB9","v":0},null,{"$f":"Q9*AA9","v":0},{"$f":"Q9*AB9","v":0}]
[null,"ALN-V",null,null,null,null,null,null,null,null,null,null,"ALN-V",null,null,null,null,null,null,null,null,null,null,null,null,"lo",0.45,0.7,9.6,null,{"$f":"F10*AA10","v":0},{"$f":"F10*AB10","v":0},null,{"$f":"Q10*AA10","v":0},{"$f":"Q10*AB10","v":0}]
[null,"ALK-V",null,null,null,null,null,null,null,null,null,null,"ALK-V",null,null,null,null,null,null,null,null,null,null,null,null,"alk",0.4,10.1,10.1,null,0,0,null,0,0]
[null,"ALG-V",null,null,null,null,null,null,null,null,null,null,"ALG-V",null,null,null,null,null,null,null,null,null,null,null,null,"alg",0.4,0.54,17.100000000000001,null,0,0,null,0,0]
[null,"ATJ-EA",null,null,null,null,null,null,null,null,null,null,"ATJ-EA",null,null,null,null,null,null,null,null,null,null,null,null,"atj",0.35,0.35,17.100000000000001,null,0,0,null,0,0]
[null,"ATG-EA",null,null,null,null,null,null,null,null,null,null,"ATG-EA",null,null,null,null,null,null,null,null,null,null,null,null,"atg",0.5,0.8,10.1,null,0,0,null,0,0]
[null,"ACA-V",null,null,null,null,null,null,null,null,null,null,"ACA-V",null,null,null,null,null,null,null,null,null,null,null,null,"aca",0.45,0.6,19.100000000000001,null,0,0,null,0,0]
[null,"ACC-V",null,null,null,null,null,null,null,null,null,null,"ACC-V",null,null,null,null,null,null,null,null,null,null,null,null,"acc",0.45,0.65,8.3000000000000007,null,0,0,null,0,0]
[null,"ACE-V",null,null,null,null,null,null,null,null,null,null,"ACE-V",null,null,null,null,null,null,null,null,null,null,null,null,"ace",0.45,0.7,10.1,null,0,0,null,0,0]
[null,"ACD-V",null,null,null,null,null,null,null,null,null,null,"ACD-V",null,null,null,null,null,null,null,null,null,null,null,null,"acd",0.6,0.7,10.1,null,0,0,null,0,0]
[null,null,null,null,null,null,null,null,null,null,null,null,null,null,null,null,null,null,null,null,null,null,null,null,null,null,null,null,null,null,0,0,null,0,0]
[null,null,null,null,null,null,null,null,null,null,null,null,null,null,null,null,null,null,null,null,null,null,null,null,null,null,null,null,null,null,0,0,null,0,0]
[null,"DH-100A",null,null,null,null,null,null,null,null,null,null,"DH-100",null,null,null,null,null,null,null,null,null,null,null,null,"dh100",0.45,0.75,10.1,null,0,0,null,0,0,null,2,{"$f":"F21*AK21","v":0},{"$f":"Q21*AK21","v":0}]
[null,"DH-99",null,null,null,null,null,null,null,null,null,null,"DH-99",null,null,null,null,null,null,null,null,null,null,null,null,"dh99",0.45,0.75,10.1,null,0,0,null,0,0,null,2,{"$f":"F22*AK22","v":0},{"$f":"Q22*AK22","v":0}]
[null,"DH-98",null,null,null,null,null,null,null,null,null,null,"DH-98",null,null,null,null,null,null,null,null,null,null,null,null,"dh98",0.45,0.75,10.1,null,0,0,null,0,0,null,2,0,0]
[null,"AMS",null,null,null,null,null,null,null,null,null,null,"AMS",null,null,null,null,null,null,null,null,null,null,null,null,"ams",0.45,0.75,5.2,null,0,0,null,0,0,null,null,null,0]
[null,"CZM",null,null,null,null,null,null,null,null,null,null,"CZM",null,null,null,null,null,null,null,null,null,null,null,null,"czm",0.45,0.75,4.3,null,0,0,null,0,0,null,null,null,0]
[null,"FRCME",null,null,null,null,null,null,null,null,null,null,"FRCME",null,null,null,null,null,null,null,null,null,null,null,null,"frcme",0.6,0.95,0.95,null,0,0,null,0,0,null,null,null,0]
[null,"FRCMA",null,null,null,null,null,null,null,null,null,null,"FRCMA",null,null,null,null,null,null,null,null,null,null,null,null,"frcma",0.65,1,5.0999999999999996,null,0,0,null,0,0,null,null,null,0]
[null,"FRCMA-I",null,null,null,null,null,null,null,null,null,null,"FRCMA-I",null,null,null,null,null,null,null,null,null,null,null,null,"frcma-i",0.8,1.1000000000000001,5.0999999999999996,null,0,0,null,0,0,null,null,null,0]
[null,"FRCME-M",null,null,null,null,null,null,null,null,null,null,"FRCME-M",null,null,null,null,null,null,null,null,null,null,null,null,"frcme-m",0.6,0.9,0.95,null,0,0,null,0,0,null,null,null,0]
[null,"FRCME-P",null,null,null,null,null,null,null,null,null,null,"FRCME-P",null,null,null,null,null,null,null,null,null,null,null,null,"frcme-p",0.6,0.9,0.95,null,0,0,null,0,0,null,null,null,0]
[null,"DIMM",null,null,null,null,null,null,null,null,null,null,"DIMM",null,null,null,null,null,null,null,null,null,null,null,null,"dimm",1.05,1.1000000000000001,5.2,null,0,0,null,0,0,null,3,{"$f":"F31*AK31","v":0},0]
[null,"R2M",null,null,null,null,null,null,null,null,null,null,"R2M",null,null,null,null,null,null,null,null,null,null,null,null,"r2m",0.4,0.4,0.4,null,0,0,null,0,0,null,3,{"$f":"F32*AK32","v":0},0]
[null,"R2M-L",null,null,null,null,null,null,null,null,null,null,"R2M-L",null,null,null,null,null,null,null,null,null,null,null,null,"r2ml",0.55000000000000004,0.85,0.85,null,0,0,null,0,0,null,3,0,0]
[null,"R2M-LI",null,null,null,null,null,null,null,null,null,null,"R2M-LI",null,null,null,null,null,null,null,null,null,null,null,null,"r2mli",0.55000000000000004,0.85,0.85,null,0,0,null,0,0,null,3,0,0]
[null,"R2M-H",null,null,null,null,null,null,null,null,null,null,"R2M-H",null,null,null,null,null,null,null,null,null,null,null,null,"r2mh",0.55000000000000004,0.85,0.85,null,0,0,null,0,0,null,3,0,0]
[null,"R2M-HI",null,null,null,null,null,null,null,null,null,null,"R2M-HI",null,null,null,null,null,null,null,null,null,null,null,null,"r2mhi",0.55000000000000004,0.85,0.85,null,0,0,null,0,0,null,3,0,0]
[null,"SOM",null,null,null,null,null,null,null,null,null,null,"SOM",null,null,null,null,null,null,null,null,null,null,null,null,"som",0.2,0.15,0.15,null,0,0,null,0,0,null,2,0,0]
[null,"SOM-A",null,null,null,null,null,null,null,null,null,null,"SOM-A",null,null,null,null,null,null,null,null,null,null,null,null,"soma",0.45,0.8,0.8,null,0,0,null,0,0,null,2,0,0]
[null,"SOM-AI",null,null,null,null,null,null,null,null,null,null,"SOM-AI",null,null,null,null,null,null,null,null,null,null,null,null,"somai",0.45,0.8,0.8,null,0,0,null,0,0,null,2,0,0]
[null,"ASB/ASB7",null,null,null,null,null,null,null,null,null,null,"ASB/ASB7",null,null,null,null,null,null,null,null,null,null,null,null,"asb",0.12,0.12,0.12,null,0,0,null,0,0,null,null,null,0]
[null,"ASBL/ASBL7",null,null,null,null,null,null,null,null,null,null,"ASBL/ASBL7",null,null,null,null,null,null,null,null,null,null,null,null,"asbl",0.4,0.65,0.65,null,0,0,null,0,0,null,null,null,0]
[null,"MIOM (all)",null,null,null,null,null,null,null,null,null,null,"MIOM (all)",null,null,null,null,null,null,null,null,null,null,null,null,"miom",1.05,1.1000000000000001,4.3,null,0,0,null,0,0,null,7,0,0]
[null,"CLIM1",null,null,null,null,null,null,null,null,null,null,"CLIM1",null,null,null,null,null,null,null,null,null,null,null,null,"clim1",0.5,6,6,null,0,0,null,0,0,null,6,0,0]
[null,"CLIM2",null,null,null,null,null,null,null,null,null,null,"CLIM2",null,null,null,null,null,null,null,null,null,null,null,null,"clim2",0.55000000000000004,6,6,null,0,0,null,0,0,null,11,0,0]
[null,"SCI Module",null,null,null,null,null,null,null,null,null,null,"SCI Module",null,null,null,null,null,null,null,null,null,null,null,null,"sci",0.3,10,10,null,0,{"$f":"IF(F45>0,20,0)","v":0},null,0,{"$f":"IF(Q45>0,20,0)","v":0}]
[null,"SCI-B4 / -B6",null,null,null,null,null,null,null,null,null,null,"SCI-B4 / -B6",null,null,null,null,null,null,null,null,null,null,null,null,"sci bases",0.3,10,10,null,0,{"$f":"IF(F46>0,20,0)","v":0},null,0,{"$f":"IF(Q46>0,20,0)","v":0}]
[]
[]
[]
[null,null,null,null,null,null,null,null,null,null,null,null,null,null,null,null,null,null,null,null,null,null,null,null,null,null,null,null,null,null,null,null,null,null,null,null,null,"SLC1","SLC2","<- total subaddresses"]
[null,null,null,null,null,null,null,null,null,null,null,null,null,null,null,null,null,null,null,null,null,null,null,null,null,null,"SLC11 total",{"$f":"F52","v":0},"SLC12 total",{"$f":"Q52","v":0},{"$f":"SUM(AE9:AE49)","v":0},{"$f":"IF(SUM(AF9:AF49)=0,0,SUM(AF9:AF49)+0.8)","v":0},null,{"$f":"SUM(AH9:AH49)","v":0},{"$f":"IF(SUM(AI9:AI49)=0,0,SUM(AI9:AI49)+0.8)","v":0},null,null,{"$f":"SUM(AL15:AL44)","v":0},{"$f":"SUM(AM15:AM44)","v":0}]
[null,"Device Total - ",null,null,null,{"$f":"SUM(F9:H39,F42,F43,F44)","v":0},null,null,null,null,null,null,"Device Total - ",null,null,null,{"$f":"SUM(Q9:S39,Q42,Q43,Q44)","v":0}]
[]
[null,"Total Bases - ",null,null,null,{"$f":"SUM(F40,F41,F46)","v":0},null,null,null,null,null,null,"Total Bases - ",null,null,null,{"$f":"SUM(Q40,Q41,Q46)","v":0},null,null,null,null,null,null,null,null,null,"SLC11",null,"SLC12"]
[null,null,null,null,null,null,null,null,null,null,null,null,null,null,null,null,null,null,null,null,null,null,null,null,null,"total detectors",{"$f":"SUM(F9:H18)","v":0},null,{"$f":"SUM(Q9:S18)","v":0}]
[null,{"$f":"IF(AA56>AA55,\"You have more Sounder Bases/SCI Bases than Detectors on SLC 11!\",\"\")","v":""},null,null,null,null,null,null,null,null,null,null,null,null,null,null,null,null,null,null,null,null,null,null,null,"total bases",{"$f":"F54","v":0},null,{"$f":"Q54","v":0}]
[null,{"$f":"IF(AC56>AC55,\"You have more Sounder Bases/SCI Bases than Detectors on SLC 12!\",\"\")","v":""},null,null,null,null,null,null,null,null,null,null,null,null,null,null,null,null,null,null,null,null,null,null,null,"total device count",{"$f":"F52","v":0},null,{"$f":"Q52","v":0}]
[null,{"$f":"IF(F52>127,\"You have exceeded 127 Devices on SLC 11!\",\"\")","v":""}]
[null,{"$f":"IF(Q52>127,\"You have exceeded 127 Devices on SLC 12!\",\"\")","v":""}]
[null,{"$f":"IF(AL51>400,\"You have exceeded 400 sub-addresses on SLC 11!\",\"\")","v":""}]
[null,{"$f":"IF(AM51>400,\"You have exceeded 400 sub-addresses on SLC 12!\",\"\")","v":""}]

{"sheet":"SLC13_and_SLC14","index":8,"n_rows":61,"n_cols":40,"rows_kept":61,"cut":false,"hidden":false,"merged":[[1,1,1,8],[3,1,3,7],[6,1,6,7],[6,12,6,18],[7,1,7,3],[7,5,7,7],[7,12,7,14],[7,16,7,18],[10,1,10,3],[10,5,10,7],[10,12,10,14],[10,16,10,18],[11,1,11,3],[11,5,11,7],[11,12,11,14],[11,16,11,18],[8,1,8,3],[8,5,8,7],[8,12,8,14],[8,16,8,18],[9,1,9,3],[9,5,9,7],[9,12,9,14],[9,16,9,18],[14,1,14,3],[14,5,14,7],[14,12,14,14],[14,16,14,18],[15,1,15,3],[15,5,15,7],[15,12,15,14],[15,16,15,18],[12,1,12,3],[12,5,12,7],[12,12,12,14],[12,16,12,18],[13,1,13,3],[13,5,13,7],[13,12,13,14],[13,16,13,18],[18,16,18,18],[19,16,19,18],[20,1,20,3],[20,5,20,7],[20,12,20,14],[20,16,20,18],[16,1,16,3],[16,5,16,7],[16,12,16,14],[16,16,16,18],[17,1,17,3],[17,5,17,7],[17,12,17,14],[17,16,17,18],[23,1,23,3],[23,5,23,7],[23,12,23,14],[23,16,23,18],[24,1,24,3],[24,5,24,7],[24,12,24,14],[24,16,24,18],[21,1,21,3],[21,5,21,7],[21,12,21,14],[21,16,21,18],[22,1,22,3],[22,5,22,7],[22,12,22,14],[22,16,22,18],[27,1,27,3],[27,5,27,7],[27,12,27,14],[27,16,27,18],[28,1,28,3],[28,5,28,7],[28,12,28,14],[28,16,28,18],[25,1,25,3],[25,5,25,7],[25,12,25,14],[25,16,25,18],[26,1,26,3],[26,5,26,7],[26,12,26,14],[26,16,26,18],[31,1,31,3],[31,5,31,7],[31,12,31,14],[31,16,31,18],[32,1,32,3],[32,5,32,7],[32,12,32,14],[32,16,32,18],[29,1,29,3],[29,5,29,7],[29,12,29,14],[29,16,29,18],[30,1,30,3],[30,5,30,7],[30,12,30,14],[30,16,30,18],[35,1,35,3],[35,5,35,7],[35,12,35,14],[35,16,35,18],[36,1,36,3],[36,5,36,7],[36,12,36,14],[36,16,36,18],[33,1,33,3],[33,5,33,7],[33,12,33,14],[33,16,33,18],[34,1,34,3],[34,5,34,7],[34,12,34,14],[34,16,34,18],[39,1,39,3],[39,5,39,7],[39,12,39,14],[39,16,39,18],[40,1,40,3],[40,5,40,7],[40,12,40,14],[40,16,40,18],[37,1,37,3],[37,5,37,7],[37,12,37,14],[37,16,37,18],[38,1,38,3],[38,5,38,7],[38,12,38,14],[38,16,38,18],[43,1,43,3],[43,5,43,7],[43,12,43,14],[43,16,43,18],[44,1,44,3],[44,5,44,7],[44,12,44,14],[44,16,44,18],[41,1,41,3],[41,5,41,7],[41,12,41,14],[41,16,41,18],[42,1,42,3],[42,5,42,7],[42,12,42,14],[42,16,42,18],[47,1,47,3],[47,5,47,7],[47,12,47,14],[47,16,47,18],[48,1,48,3],[48,5,48,7],[48,12,48,14],[48,16,48,18],[45,1,45,3],[45,5,45,7],[45,12,45,14],[45,16,45,18],[46,1,46,3],[46,5,46,7],[46,12,46,14],[46,16,46,18],[51,1,51,4],[51,5,51,7],[51,12,51,15],[51,16,51,18],[53,1,53,4],[53,5,53,7],[53,12,53,15],[53,16,53,18],[49,1,49,3],[49,5,49,7],[49,12,49,14],[49,16,49,18],[50,1,50,3],[50,5,50,7],[50,12,50,14],[50,16,50,18]]}
[]
[null,"Devices for SLC 13 and SLC 14"]
[]
[null,{"$f":"Calcs!F8","v":"Latitude"},null,null,null,null,null,null,null,null,null,null,null,null,null,null,null,null,null,null,null,null,null,null,null,null,null,"all current in milliamps"]
[]
[]
[null,"SLC 13",null,null,null,null,null,null,null,null,null,null,"SLC 14",null,null,null,null,null,null,null,null,null,null,null,null,null,"standby","alarm","Maximum",null,"standby","alarm",null,"standby ","alarm",null,"sub-addresses"]
[null,"Device Type",null,null,null,"Quantity",null,null,null,null,null,null,"Device Type",null,null,null,"Quantity",null,null,null,null,null,null,null,null,null,"current","current","current",null,"SLC13total","SLC13total",null,"SLC14total","SLC14total",null,"SLC13",null,"SLC14"]
[null,"ALO-V",null,null,null,null,null,null,null,null,null,null,"ALO-V",null,null,null,null,null,null,null,null,null,null,null,null,"alo",0.34,0.34,8.5,null,{"$f":"F9*AA9","v":0},{"$f":"F9*AB9","v":0},null,{"$f":"Q9*AA9","v":0},{"$f":"Q9*AB9","v":0}]
[null,"ALN-V",null,null,null,null,null,null,null,null,null,null,"ALN-V",null,null,null,null,null,null,null,null,null,null,null,null,"aln",0.45,0.7,9.6,null,{"$f":"F10*AA10","v":0},{"$f":"F10*AB10","v":0},null,{"$f":"Q10*AA10","v":0},{"$f":"Q10*AB10","v":0}]
[null,"ALK-V",null,null,null,null,null,null,null,null,null,null,"ALK-V",null,null,null,null,null,null,null,null,null,null,null,null,"alk",0.4,10.1,10.1,null,0,0,null,0,0]
[null,"ALG-V",null,null,null,null,null,null,null,null,null,null,"ALG-V",null,null,null,null,null,null,null,null,null,null,null,null,"alg",0.4,0.54,17.100000000000001,null,0,0,null,0,0]
[null,"ATJ-EA",null,null,null,null,null,null,null,null,null,null,"ATJ-EA",null,null,null,null,null,null,null,null,null,null,null,null,"atj",0.35,0.35,17.100000000000001,null,0,0,null,0,0]
[null,"ATG-EA",null,null,null,null,null,null,null,null,null,null,"ATG-EA",null,null,null,null,null,null,null,null,null,null,null,null,"atg",0.5,0.8,10.1,null,0,0,null,0,0]
[null,"ACA-V",null,null,null,null,null,null,null,null,null,null,"ACA-V",null,null,null,null,null,null,null,null,null,null,null,null,"aca",0.45,0.6,19.100000000000001,null,0,0,null,0,0]
[null,"ACC-V",null,null,null,null,null,null,null,null,null,null,"ACC-V",null,null,null,null,null,null,null,null,null,null,null,null,"acc",0.45,0.65,8.3000000000000007,null,0,0,null,0,0]
[null,"ACE-V",null,null,null,null,null,null,null,null,null,null,"ACE-V",null,null,null,null,null,null,null,null,null,null,null,null,"ace",0.45,0.7,10.1,null,0,0,null,0,0]
[null,"ACD-V",null,null,null,null,null,null,null,null,null,null,"ACD-V",null,null,null,null,null,null,null,null,null,null,null,null,"acd",0.6,0.7,10.1,null,0,0,null,0,0]
[null,null,null,null,null,null,null,null,null,null,null,null,null,null,null,null,null,null,null,null,null,null,null,null,null,null,null,null,null,null,0,0,null,0,0]
[null,null,null,null,null,null,null,null,null,null,null,null,null,null,null,null,null,null,null,null,null,null,null,null,null,null,null,null,null,null,0,0,null,0,0]
[null,"DH-100A",null,null,null,null,null,null,null,null,null,null,"DH-100",null,null,null,null,null,null,null,null,null,null,null,null,"dh100",0.45,0.75,10.1,null,0,0,null,0,0,null,2,{"$f":"F21*AK21","v":0},{"$f":"Q21*AK21","v":0}]
[null,"DH-99",null,null,null,null,null,null,null,null,null,null,"DH-99",null,null,null,null,null,null,null,null,null,null,null,null,"dh99",0.45,0.75,10.1,null,0,0,null,0,0,null,2,{"$f":"F22*AK22","v":0},{"$f":"Q22*AK22","v":0}]
[null,"DH-98",null,null,null,null,null,null,null,null,null,null,"DH-98",null,null,null,null,null,null,null,null,null,null,null,null,"dh98",0.45,0.75,10.1,null,0,0,null,0,0,null,2,0,0]
[null,"AMS",null,null,null,null,null,null,null,null,null,null,"AMS",null,null,null,null,null,null,null,null,null,null,null,null,"ams",0.45,0.75,5.2,null,0,0,null,0,0,null,null,null,0]
[null,"CZM",null,null,null,null,null,null,null,null,null,null,"CZM",null,null,null,null,null,null,null,null,null,null,null,null,"czm",0.45,0.75,4.3,null,0,0,null,0,0,null,null,null,0]
[null,"FRCME",null,null,null,null,null,null,null,null,null,null,"FRCME",null,null,null,null,null,null,null,null,null,null,null,null,"frcme",0.6,0.95,0.95,null,0,0,null,0,0,null,null,null,0]
[null,"FRCMA",null,null,null,null,null,null,null,null,null,null,"FRCMA",null,null,null,null,null,null,null,null,null,null,null,null,"frcma",0.65,1,5.0999999999999996,null,0,0,null,0,0,null,null,null,0]
[null,"FRCMA-I",null,null,null,null,null,null,null,null,null,null,"FRCMA-I",null,null,null,null,null,null,null,null,null,null,null,null,"frcma-i",0.8,1.1000000000000001,5.0999999999999996,null,0,0,null,0,0,null,null,null,0]
[null,"FRCME-M",null,null,null,null,null,null,null,null,null,null,"FRCME-M",null,null,null,null,null,null,null,null,null,null,null,null,"frcme-m",0.6,0.9,0.95,null,0,0,null,0,0,null,null,null,0]
[null,"FRCME-P",null,null,null,null,null,null,null,null,null,null,"FRCME-P",null,null,null,null,null,null,null,null,null,null,null,null,"frcme-p",0.6,0.9,0.95,null,0,0,null,0,0,null,null,null,0]
[null,"DIMM",null,null,null,null,null,null,null,null,null,null,"DIMM",null,null,null,null,null,null,null,null,null,null,null,null,"dimm",1.05,1.1000000000000001,5.2,null,0,0,null,0,0,null,3,{"$f":"F31*AK31","v":0},0]
[null,"R2M",null,null,null,null,null,null,null,null,null,null,"R2M",null,null,null,null,null,null,null,null,null,null,null,null,"r2m",0.4,0.4,0.4,null,0,0,null,0,0,null,3,{"$f":"F32*AK32","v":0},0]
[null,"R2M-L",null,null,null,null,null,null,null,null,null,null,"R2M-L",null,null,null,null,null,null,null,null,null,null,null,null,"r2ml",0.55000000000000004,0.85,0.85,null,0,0,null,0,0,null,3,0,0]
[null,"R2M-LI",null,null,null,null,null,null,null,null,null,null,"R2M-LI",null,null,null,null,null,null,null,null,null,null,null,null,"r2mli",0.55000000000000004,0.85,0.85,null,0,0,null,0,0,null,3,0,0]
[null,"R2M-H",null,null,null,null,null,null,null,null,null,null,"R2M-H",null,null,null,null,null,null,null,null,null,null,null,null,"r2mh",0.55000000000000004,0.85,0.85,null,0,0,null,0,0,null,3,0,0]
[null,"R2M-HI",null,null,null,null,null,null,null,null,null,null,"R2M-HI",null,null,null,null,null,null,null,null,null,null,null,null,"r2mhi",0.55000000000000004,0.85,0.85,null,0,0,null,0,0,null,3,0,0]
[null,"SOM",null,null,null,null,null,null,null,null,null,null,"SOM",null,null,null,null,null,null,null,null,null,null,null,null,"som",0.2,0.15,0.15,null,0,0,null,0,0,null,2,0,0]
[null,"SOM-A",null,null,null,null,null,null,null,null,null,null,"SOM-A",null,null,null,null,null,null,null,null,null,null,null,null,"soma",0.45,0.8,0.8,null,0,0,null,0,0,null,2,0,0]
[null,"SOM-AI",null,null,null,null,null,null,null,null,null,null,"SOM-AI",null,null,null,null,null,null,null,null,null,null,null,null,"somai",0.45,0.8,0.8,null,0,0,null,0,0,null,2,0,0]
[null,"ASB/ASB7",null,null,null,null,null,null,null,null,null,null,"ASB/ASB7",null,null,null,null,null,null,null,null,null,null,null,null,"asb",0.12,0.12,0.12,null,0,0,null,0,0,null,null,null,0]
[null,"ASBL/ASBL7",null,null,null,null,null,null,null,null,null,null,"ASBL/ASBL7",null,null,null,null,null,null,null,null,null,null,null,null,"asbl",0.4,0.65,0.65,null,0,0,null,0,0,null,null,null,0]
[null,"MIOM (all)",null,null,null,null,null,null,null,null,null,null,"MIOM (all)",null,null,null,null,null,null,null,null,null,null,null,null,"miom",1.05,1.1000000000000001,4.3,null,0,0,null,0,0,null,7,0,0]
[null,"CLIM1",null,null,null,null,null,null,null,null,null,null,"CLIM1",null,null,null,null,null,null,null,null,null,null,null,null,"clim1",0.5,6,6,null,0,0,null,0,0,null,6,0,0]
[null,"CLIM2",null,null,null,null,null,null,null,null,null,null,"CLIM2",null,null,null,null,null,null,null,null,null,null,null,null,"clim2",0.55000000000000004,6,6,null,0,0,null,0,0,null,11,0,0]
[null,"SCI Module",null,null,null,null,null,null,null,null,null,null,"SCI Module",null,null,null,null,null,null,null,null,null,null,null,null,"sci",0.3,10,10,null,0,{"$f":"IF(F45>0,20,0)","v":0},null,0,{"$f":"IF(Q45>0,20,0)","v":0}]
[null,"SCI-B4 / -B6",null,null,null,null,null,null,null,null,null,null,"SCI-B4 / -B6",null,null,null,null,null,null,null,null,null,null,null,null,"sci bases",0.3,10,10,null,0,{"$f":"IF(F46>0,20,0)","v":0},null,0,{"$f":"IF(Q46>0,20,0)","v":0}]
[]
[]
[]
[null,null,null,null,null,null,null,null,null,null,null,null,null,null,null,null,null,null,null,null,null,null,null,null,null,null,null,null,null,null,null,null,null,null,null,null,null,"SLC1","SLC2","<- total subaddresses"]
[null,null,null,null,null,null,null,null,null,null,null,null,null,null,null,null,null,null,null,null,null,null,null,null,null,null,"SLC13 total",{"$f":"F52","v":0},"SLC14 total",{"$f":"Q52","v":0},{"$f":"SUM(AE9:AE49)","v":0},{"$f":"IF(SUM(AF9:AF49)=0,0,SUM(AF9:AF49)+0.8)","v":0},null,{"$f":"SUM(AH9:AH49)","v":0},{"$f":"IF(SUM(AI9:AI49)=0,0,SUM(AI9:AI49)+0.8)","v":0},null,null,{"$f":"SUM(AL15:AL44)","v":0},{"$f":"SUM(AM15:AM44)","v":0}]
[null,"Device Total - ",null,null,null,{"$f":"SUM(F9:H39,F42,F43,F44)","v":0},null,null,null,null,null,null,"Device Total - ",null,null,null,{"$f":"SUM(Q9:S39,Q42,Q43,Q44)","v":0}]
[]
[null,"Total Bases - ",null,null,null,{"$f":"SUM(F40,F41,F46)","v":0},null,null,null,null,null,null,"Total Bases - ",null,null,null,{"$f":"SUM(Q40,Q41,Q46)","v":0},null,null,null,null,null,null,null,null,null,"SLC13",null,"SLC14"]
[null,null,null,null,null,null,null,null,null,null,null,null,null,null,null,null,null,null,null,null,null,null,null,null,null,"total detectors",{"$f":"SUM(F9:H18)","v":0},null,{"$f":"SUM(Q9:S18)","v":0}]
[null,{"$f":"IF(AA56>AA55,\"You have more Sounder Bases/SCI Bases than Detectors on SLC 13!\",\"\")","v":""},null,null,null,null,null,null,null,null,null,null,null,null,null,null,null,null,null,null,null,null,null,null,null,"total bases",{"$f":"F54","v":0},null,{"$f":"Q54","v":0}]
[null,{"$f":"IF(AC56>AC55,\"You have more Sounder Bases/SCI Bases than Detectors on SLC 14!\",\"\")","v":""},null,null,null,null,null,null,null,null,null,null,null,null,null,null,null,null,null,null,null,null,null,null,null,"total device count",{"$f":"F52","v":0},null,{"$f":"Q52","v":0}]
[null,{"$f":"IF(F52>127,\"You have exceeded 127 Devices on SLC 13!\",\"\")","v":""}]
[null,{"$f":"IF(Q52>127,\"You have exceeded 127 Devices on SLC 14!\",\"\")","v":""}]
[null,{"$f":"IF(AL51>400,\"You have exceeded 400 sub-addresses on SLC 13!\",\"\")","v":""}]
[null,{"$f":"IF(AM51>400,\"You have exceeded 400 sub-addresses on SLC 14!\",\"\")","v":""}]

{"sheet":"SLC15_and_SLC16","index":9,"n_rows":61,"n_cols":40,"rows_kept":61,"cut":false,"hidden":false,"merged":[[1,1,1,8],[3,1,3,7],[6,1,6,7],[6,12,6,18],[7,1,7,3],[7,5,7,7],[7,12,7,14],[7,16,7,18],[10,1,10,3],[10,5,10,7],[10,12,10,14],[10,16,10,18],[11,1,11,3],[11,5,11,7],[11,12,11,14],[11,16,11,18],[8,1,8,3],[8,5,8,7],[8,12,8,14],[8,16,8,18],[9,1,9,3],[9,5,9,7],[9,12,9,14],[9,16,9,18],[14,1,14,3],[14,5,14,7],[14,12,14,14],[14,16,14,18],[15,1,15,3],[15,5,15,7],[15,12,15,14],[15,16,15,18],[12,1,12,3],[12,5,12,7],[12,12,12,14],[12,16,12,18],[13,1,13,3],[13,5,13,7],[13,12,13,14],[13,16,13,18],[18,16,18,18],[19,16,19,18],[20,1,20,3],[20,5,20,7],[20,12,20,14],[20,16,20,18],[16,1,16,3],[16,5,16,7],[16,12,16,14],[16,16,16,18],[17,1,17,3],[17,5,17,7],[17,12,17,14],[17,16,17,18],[23,1,23,3],[23,5,23,7],[23,12,23,14],[23,16,23,18],[24,1,24,3],[24,5,24,7],[24,12,24,14],[24,16,24,18],[21,1,21,3],[21,5,21,7],[21,12,21,14],[21,16,21,18],[22,1,22,3],[22,5,22,7],[22,12,22,14],[22,16,22,18],[27,1,27,3],[27,5,27,7],[27,12,27,14],[27,16,27,18],[28,1,28,3],[28,5,28,7],[28,12,28,14],[28,16,28,18],[25,1,25,3],[25,5,25,7],[25,12,25,14],[25,16,25,18],[26,1,26,3],[26,5,26,7],[26,12,26,14],[26,16,26,18],[31,1,31,3],[31,5,31,7],[31,12,31,14],[31,16,31,18],[32,1,32,3],[32,5,32,7],[32,12,32,14],[32,16,32,18],[29,1,29,3],[29,5,29,7],[29,12,29,14],[29,16,29,18],[30,1,30,3],[30,5,30,7],[30,12,30,14],[30,16,30,18],[35,1,35,3],[35,5,35,7],[35,12,35,14],[35,16,35,18],[36,1,36,3],[36,5,36,7],[36,12,36,14],[36,16,36,18],[33,1,33,3],[33,5,33,7],[33,12,33,14],[33,16,33,18],[34,1,34,3],[34,5,34,7],[34,12,34,14],[34,16,34,18],[39,1,39,3],[39,5,39,7],[39,12,39,14],[39,16,39,18],[40,1,40,3],[40,5,40,7],[40,12,40,14],[40,16,40,18],[37,1,37,3],[37,5,37,7],[37,12,37,14],[37,16,37,18],[38,1,38,3],[38,5,38,7],[38,12,38,14],[38,16,38,18],[43,1,43,3],[43,5,43,7],[43,12,43,14],[43,16,43,18],[44,1,44,3],[44,5,44,7],[44,12,44,14],[44,16,44,18],[41,1,41,3],[41,5,41,7],[41,12,41,14],[41,16,41,18],[42,1,42,3],[42,5,42,7],[42,12,42,14],[42,16,42,18],[47,1,47,3],[47,5,47,7],[47,12,47,14],[47,16,47,18],[48,1,48,3],[48,5,48,7],[48,12,48,14],[48,16,48,18],[45,1,45,3],[45,5,45,7],[45,12,45,14],[45,16,45,18],[46,1,46,3],[46,5,46,7],[46,12,46,14],[46,16,46,18],[51,1,51,4],[51,5,51,7],[51,12,51,15],[51,16,51,18],[53,1,53,4],[53,5,53,7],[53,12,53,15],[53,16,53,18],[49,1,49,3],[49,5,49,7],[49,12,49,14],[49,16,49,18],[50,1,50,3],[50,5,50,7],[50,12,50,14],[50,16,50,18]]}
[]
[null,"Devices for SLC 15 and SLC 16"]
[]
[null,{"$f":"Calcs!F8","v":"Latitude"},null,null,null,null,null,null,null,null,null,null,null,null,null,null,null,null,null,null,null,null,null,null,null,null,null,"all current in milliamps"]
[]
[]
[null,"SLC 15",null,null,null,null,null,null,null,null,null,null,"SLC 16",null,null,null,null,null,null,null,null,null,null,null,null,null,"standby","alarm","Maximum",null,"standby","alarm",null,"standby ","alarm",null,"sub-addresses"]
[null,"Device Type",null,null,null,"Quantity",null,null,null,null,null,null,"Device Type",null,null,null,"Quantity",null,null,null,null,null,null,null,null,null,"current","current","current",null,"SLC15total","SLC15total",null,"SLC16total","SLC16total",null,"SLC15",null,"SLC16"]
[null,"ALO-V",null,null,null,null,null,null,null,null,null,null,"ALO-V",null,null,null,null,null,null,null,null,null,null,null,null,"alo",0.34,0.34,8.5,null,{"$f":"F9*AA9","v":0},{"$f":"F9*AB9","v":0},null,{"$f":"Q9*AA9","v":0},{"$f":"Q9*AB9","v":0}]
[null,"ALN-V",null,null,null,null,null,null,null,null,null,null,"ALN-V",null,null,null,null,null,null,null,null,null,null,null,null,"aln",0.45,0.7,9.6,null,{"$f":"F10*AA10","v":0},{"$f":"F10*AB10","v":0},null,{"$f":"Q10*AA10","v":0},{"$f":"Q10*AB10","v":0}]
[null,"ALK-V",null,null,null,null,null,null,null,null,null,null,"ALK-V",null,null,null,null,null,null,null,null,null,null,null,null,"alk",0.4,10.1,10.1,null,0,0,null,0,0]
[null,"ALG-V",null,null,null,null,null,null,null,null,null,null,"ALG-V",null,null,null,null,null,null,null,null,null,null,null,null,"alg",0.4,0.54,17.100000000000001,null,0,0,null,0,0]
[null,"ATJ-EA",null,null,null,null,null,null,null,null,null,null,"ATJ-EA",null,null,null,null,null,null,null,null,null,null,null,null,"atj",0.35,0.35,17.100000000000001,null,0,0,null,0,0]
[null,"ATG-EA",null,null,null,null,null,null,null,null,null,null,"ATG-EA",null,null,null,null,null,null,null,null,null,null,null,null,"atg",0.5,0.8,10.1,null,0,0,null,0,0]
[null,"ACA-V",null,null,null,null,null,null,null,null,null,null,"ACA-V",null,null,null,null,null,null,null,null,null,null,null,null,"aca",0.45,0.6,19.100000000000001,null,0,0,null,0,0]
[null,"ACC-V",null,null,null,null,null,null,null,null,null,null,"ACC-V",null,null,null,null,null,null,null,null,null,null,null,null,"acc",0.45,0.65,8.3000000000000007,null,0,0,null,0,0]
[null,"ACE-V",null,null,null,null,null,null,null,null,null,null,"ACE-V",null,null,null,null,null,null,null,null,null,null,null,null,"ace",0.45,0.7,10.1,null,0,0,null,0,0]
[null,"ACD-V",null,null,null,null,null,null,null,null,null,null,"ACD-V",null,null,null,null,null,null,null,null,null,null,null,null,"acd",0.6,0.7,10.1,null,0,0,null,0,0]
[null,null,null,null,null,null,null,null,null,null,null,null,null,null,null,null,null,null,null,null,null,null,null,null,null,null,null,null,null,null,0,0,null,0,0]
[null,null,null,null,null,null,null,null,null,null,null,null,null,null,null,null,null,null,null,null,null,null,null,null,null,null,null,null,null,null,0,0,null,0,0]
[null,"DH-100A",null,null,null,null,null,null,null,null,null,null,"DH-100",null,null,null,null,null,null,null,null,null,null,null,null,"dh100",0.45,0.75,10.1,null,0,0,null,0,0,null,2,{"$f":"F21*AK21","v":0},{"$f":"Q21*AK21","v":0}]
[null,"DH-99",null,null,null,null,null,null,null,null,null,null,"DH-99",null,null,null,null,null,null,null,null,null,null,null,null,"dh99",0.45,0.75,10.1,null,0,0,null,0,0,null,2,{"$f":"F22*AK22","v":0},{"$f":"Q22*AK22","v":0}]
[null,"DH-98",null,null,null,null,null,null,null,null,null,null,"DH-98",null,null,null,null,null,null,null,null,null,null,null,null,"dh98",0.45,0.75,10.1,null,0,0,null,0,0,null,2,0,0]
[null,"AMS",null,null,null,null,null,null,null,null,null,null,"AMS",null,null,null,null,null,null,null,null,null,null,null,null,"ams",0.45,0.75,5.2,null,0,0,null,0,0,null,null,null,0]
[null,"CZM",null,null,null,null,null,null,null,null,null,null,"CZM",null,null,null,null,null,null,null,null,null,null,null,null,"czm",0.45,0.75,4.3,null,0,0,null,0,0,null,null,null,0]
[null,"FRCME",null,null,null,null,null,null,null,null,null,null,"FRCME",null,null,null,null,null,null,null,null,null,null,null,null,"frcme",0.6,0.95,0.95,null,0,0,null,0,0,null,null,null,0]
[null,"FRCMA",null,null,null,null,null,null,null,null,null,null,"FRCMA",null,null,null,null,null,null,null,null,null,null,null,null,"frcma",0.65,1,5.0999999999999996,null,0,0,null,0,0,null,null,null,0]
[null,"FRCMA-I",null,null,null,null,null,null,null,null,null,null,"FRCMA-I",null,null,null,null,null,null,null,null,null,null,null,null,"frcma-i",0.8,1.1000000000000001,5.0999999999999996,null,0,0,null,0,0,null,null,null,0]
[null,"FRCME-M",null,null,null,null,null,null,null,null,null,null,"FRCME-M",null,null,null,null,null,null,null,null,null,null,null,null,"frcme-m",0.6,0.9,0.95,null,0,0,null,0,0,null,null,null,0]
[null,"FRCME-P",null,null,null,null,null,null,null,null,null,null,"FRCME-P",null,null,null,null,null,null,null,null,null,null,null,null,"frcme-p",0.6,0.9,0.95,null,0,0,null,0,0,null,null,null,0]
[null,"DIMM",null,null,null,null,null,null,null,null,null,null,"DIMM",null,null,null,null,null,null,null,null,null,null,null,null,"dimm",1.05,1.1000000000000001,5.2,null,0,0,null,0,0,null,3,{"$f":"F31*AK31","v":0},0]
[null,"R2M",null,null,null,null,null,null,null,null,null,null,"R2M",null,null,null,null,null,null,null,null,null,null,null,null,"r2m",0.4,0.4,0.4,null,0,0,null,0,0,null,3,{"$f":"F32*AK32","v":0},0]
[null,"R2M-L",null,null,null,null,null,null,null,null,null,null,"R2M-L",null,null,null,null,null,null,null,null,null,null,null,null,"r2ml",0.55000000000000004,0.85,0.85,null,0,0,null,0,0,null,3,0,0]
[null,"R2M-LI",null,null,null,null,null,null,null,null,null,null,"R2M-LI",null,null,null,null,null,null,null,null,null,null,null,null,"r2mli",0.55000000000000004,0.85,0.85,null,0,0,null,0,0,null,3,0,0]
[null,"R2M-H",null,null,null,null,null,null,null,null,null,null,"R2M-H",null,null,null,null,null,null,null,null,null,null,null,null,"r2mh",0.55000000000000004,0.85,0.85,null,0,0,null,0,0,null,3,0,0]
[null,"R2M-HI",null,null,null,null,null,null,null,null,null,null,"R2M-HI",null,null,null,null,null,null,null,null,null,null,null,null,"r2mhi",0.55000000000000004,0.85,0.85,null,0,0,null,0,0,null,3,0,0]
[null,"SOM",null,null,null,null,null,null,null,null,null,null,"SOM",null,null,null,null,null,null,null,null,null,null,null,null,"som",0.2,0.15,0.15,null,0,0,null,0,0,null,2,0,0]
[null,"SOM-A",null,null,null,null,null,null,null,null,null,null,"SOM-A",null,null,null,null,null,null,null,null,null,null,null,null,"soma",0.45,0.8,0.8,null,0,0,null,0,0,null,2,0,0]
[null,"SOM-AI",null,null,null,null,null,null,null,null,null,null,"SOM-AI",null,null,null,null,null,null,null,null,null,null,null,null,"somai",0.45,0.8,0.8,null,0,0,null,0,0,null,2,0,0]
[null,"ASB/ASB7",null,null,null,null,null,null,null,null,null,null,"ASB/ASB7",null,null,null,null,null,null,null,null,null,null,null,null,"asb",0.12,0.12,0.12,null,0,0,null,0,0,null,null,null,0]
[null,"ASBL/ASBL7",null,null,null,null,null,null,null,null,null,null,"ASBL/ASBL7",null,null,null,null,null,null,null,null,null,null,null,null,"asbl",0.4,0.65,0.65,null,0,0,null,0,0,null,null,null,0]
[null,"MIOM (all)",null,null,null,null,null,null,null,null,null,null,"MIOM (all)",null,null,null,null,null,null,null,null,null,null,null,null,"miom",1.05,1.1000000000000001,4.3,null,0,0,null,0,0,null,7,0,0]
[null,"CLIM1",null,null,null,null,null,null,null,null,null,null,"CLIM1",null,null,null,null,null,null,null,null,null,null,null,null,"clim1",0.5,6,6,null,0,0,null,0,0,null,6,0,0]
[null,"CLIM2",null,null,null,null,null,null,null,null,null,null,"CLIM2",null,null,null,null,null,null,null,null,null,null,null,null,"clim2",0.55000000000000004,6,6,null,0,0,null,0,0,null,11,0,0]
[null,"SCI Module",null,null,null,null,null,null,null,null,null,null,"SCI Module",null,null,null,null,null,null,null,null,null,null,null,null,"sci",0.3,10,10,null,0,{"$f":"IF(F45>0,20,0)","v":0},null,0,{"$f":"IF(Q45>0,20,0)","v":0}]
[null,"SCI-B4 / -B6",null,null,null,null,null,null,null,null,null,null,"SCI-B4 / -B6",null,null,null,null,null,null,null,null,null,null,null,null,"sci bases",0.3,10,10,null,0,{"$f":"IF(F46>0,20,0)","v":0},null,0,{"$f":"IF(Q46>0,20,0)","v":0}]
[]
[]
[]
[null,null,null,null,null,null,null,null,null,null,null,null,null,null,null,null,null,null,null,null,null,null,null,null,null,null,null,null,null,null,null,null,null,null,null,null,null,"SLC1","SLC2","<- total subaddresses"]
[null,null,null,null,null,null,null,null,null,null,null,null,null,null,null,null,null,null,null,null,null,null,null,null,null,null,"SLC15total",{"$f":"F52","v":0},"SLC16 total",{"$f":"Q52","v":0},{"$f":"SUM(AE9:AE49)","v":0},{"$f":"IF(SUM(AF9:AF49)=0,0,SUM(AF9:AF49)+0.8)","v":0},null,{"$f":"SUM(AH9:AH49)","v":0},{"$f":"IF(SUM(AI9:AI49)=0,0,SUM(AI9:AI49)+0.8)","v":0},null,null,{"$f":"SUM(AL15:AL44)","v":0},{"$f":"SUM(AM15:AM44)","v":0}]
[null,"Device Total - ",null,null,null,{"$f":"SUM(F9:H39,F42,F43,F44)","v":0},null,null,null,null,null,null,"Device Total - ",null,null,null,{"$f":"SUM(Q9:S39,Q42,Q43,Q44)","v":0}]
[]
[null,"Total Bases - ",null,null,null,{"$f":"SUM(F40,F41,F46)","v":0},null,null,null,null,null,null,"Total Bases - ",null,null,null,{"$f":"SUM(Q40,Q41,Q46)","v":0},null,null,null,null,null,null,null,null,null,"SLC15",null,"SLC16"]
[null,null,null,null,null,null,null,null,null,null,null,null,null,null,null,null,null,null,null,null,null,null,null,null,null,"total detectors",{"$f":"SUM(F9:H18)","v":0},null,{"$f":"SUM(Q9:S18)","v":0}]
[null,{"$f":"IF(AA56>AA55,\"You have more Sounder Bases/SCI Bases than Detectors on SLC 15!\",\"\")","v":""},null,null,null,null,null,null,null,null,null,null,null,null,null,null,null,null,null,null,null,null,null,null,null,"total bases",{"$f":"F54","v":0},null,{"$f":"Q54","v":0}]
[null,{"$f":"IF(AC56>AC55,\"You have more Sounder Bases/SCI Bases than Detectors on SLC 16!\",\"\")","v":""},null,null,null,null,null,null,null,null,null,null,null,null,null,null,null,null,null,null,null,null,null,null,null,"total device count",{"$f":"F52","v":0},null,{"$f":"Q52","v":0}]
[null,{"$f":"IF(F52>127,\"You have exceeded 127 Devices on SLC 15!\",\"\")","v":""}]
[null,{"$f":"IF(Q52>127,\"You have exceeded 127 Devices on SLC 16!\",\"\")","v":""}]
[null,{"$f":"IF(AL51>400,\"You have exceeded 400 sub-addresses on SLC 15!\",\"\")","v":""}]
[null,{"$f":"IF(AM51>400,\"You have exceeded 400 sub-addresses on SLC 16!\",\"\")","v":""}]